Workbook

Sheet kalkulačka DPS
B2: Kalkulačka doplňkového penzijního spoření
A6: Zadejte vstupní parametry pro NOVOU SMLOUVU DPS | D6: Jednorázové vyrovnání nebo pravidelné penze | E6: Důchodový věk
A8: Měsíc narození klienta: | B8: 1 | D8: Možnost čerpání od (měsíc/rok): | E8: =IF($AG$69=1,AG70,AH70) -> 1 / 2076
A9: Rok narození klienta: | B9: 2016 | D9: Počet měsíců trvání spoření: | E9: =IF($AG$69=1,AG71,AH71) -> 683
A10: Měsíční příspěvek klienta: | B10: 1000 | D10: Celkem naspořeno: | E10: =IF($AG$69=1,AG81,AH81) -> 2221220.377
A11: Měsíční příspěvek zaměstnavatele: | B11: 0 | D11: z toho příspěvky klienta: | E11: =IF($AG$69=1,AG73+AG75,AH73+AH75) -> 683000
A12: Předplatné: | B12: 0 | D12: z toho příspěvky zaměstnavatele: | E12: =IF($AG$69=1,AG77,AH77) -> 0
A13: Měsíc počátku spoření: | B13: 1 | D13: z toho státní příspěvky: | E13: =IF($AG$69=1,AG79,AH79) -> 157090
A14: Rok počátku spoření: | B14: 2019 | D14: z toho zhodnocení PSČP: | E14: =IF($AG$69=1,AG82,AH82) -> 1381130.377
B15: =IF(AI72<0,"!! Částka předplatného je vyšší než celková potřebná výše příspěvků klienta","") ->  | D15: Zhodnocení díky státním příspěvkům a daňovým úlevám p.a.:
A16: Volba strategie spoření: | E16: =IF(AG69=1,AG88,AH88) -> 0.008070175439
C18: =$AE$52 -> 0.03 | D18: Jednorázové vyrovnání | E18: Částečné odbytné v 18-ti letech
A19: Odbytné | B19: Odbytné | D19: Celkem k výplatě: | E19: =IF($AG$69=1,AG90,AH90) -> 2014050.82
A20: Počet měsíců, po kterých klient požádá o odbytné: | B20: 24 | H20: Informace o zprostředkovateli
A21: Příspěvky klienta a zaměstnavatele: | B21: =IF(AE69=0,"",AE84) -> 24000 | D21: Pravidelná penze
A22: Odbytné - celkem k výplatě: | B22: =AE73+AE75+AE77*0.85+AE74*0.85+AE76*0.85+AE78*0.85+AE80*0.85 -> 24799.3629 | D22: Na 3 roky (měsíční částka): | E22: =IF($AG$69=1,AG91,AH91) -> 56565.77343 | H22: Jméno a příjmení:
D23: Celkem vyplaceno: | E23: =IF($AG$69=1,AG92,AH92) -> 2036367.844 | H23: Kontakt telefon a/nebo email:
A24: Částečné odbytné v 18 letech | D24: Na 10 let (měsíční částka): | E24: =IF($AG$69=1,AG93,AH93) -> 19213.66184
A25: Možnost čerpání od - do (měsíc/rok): | B25: =IF($AF$69=1,CONCATENATE(AH63," - ",AH64),"") -> 1 / 2034 - 1 / 2035 | D25: Celkem vyplaceno: | E25: =IF($AG$69=1,AG94,AH94) -> 2305639.421 | H25: Společnost:
A26: Celkem naspořeno: | B26: =IF($AF$69=1,AF81,"") -> 279874.3496
A27: z toho příspěvky klienta: | B27: =IF($AF$69=1,AF73+AF75,"") -> 180000 | D27: Přínos vůči jednorázovému vyrovnání | H27: Datum tvorby kalkulace: | I27: =TODAY() -> 2019-01-04
A28: Částečné odbytné - celkem k výplatě: | B28: =IF(AF69=1,(AF73+AF74+AF75+AF76+AF80)/3,"") -> 79491.44985 | D28: Penze na 3 roky: | E28: =E23-E19 -> 22317.02348
A29: Zůstatek na kontě DPS: | B29: =IF(AF69=1,(AF73+AF74+AF75+AF76+AF80)*2/3+AF77+AF78+AF79,"") -> 200382.8997 | D29: Penze na 10 let: | E29: =E25-E19 -> 291588.6008 | H29: Jméno a příjmení klienta:
A32: UPOZORNĚNÍ:
A33: Zobrazené výpočty mají pouze informativní charakter. Výnosy účastnických fondů PSČP v minulosti nejsou zárukou výnosů v budoucnosti. Budoucí výnosy budou vždy závislé na vývoji kapitálových trhů. Díky vlivům různých rizik spojených s investováním na kapitálových trzích může hodnota investice v čase kolísat.
A34: Předpoklady výpočtů:
A35: Kalkulačka nepočítá se zákonnou investiční brzdou.
A36: Zákonem dané podmínky zohledněné ve výpočtech:
A37: Odbytné je možné čerpat nejdříve po 2 letech spoření.
A38: Částečné odbytné je možné čerpat pouze v průběhu 18. roku věku klienta a podmínkou je trvání smlouvy minimálně 10 let. Při výpočtu dalších nároků ze smlouvy se předpokládá, že ho klient nečerpal.
A39: Podmínkou pro nárok na jednorázové vyrovnání nebo pravidelnou penzi jsou dosažení 60 let věku a zároveň minimálně 5 let spoření.
A40: Pravidelná penze na dobu 3 roky a více je osvobozena od daně z příjmu z příspěvků zaměstnavatele. | AE40: 1 | AF40: 10 | AG40: =AH40-0.01-((AH40-0.01)*0.15) -> 0.0765 | AH40: 0.1
A41: Pravidelná penze na dobu 10 let a víc je dále osvobozena od daně z příjmu ze zhodnocení PSČP. | AE41: 1 | AF41: 9 | AG41: 0.068 | AH41: 0.09
A42: V průběhu výplaty pravidelné penze jsou prostředky investovány v Povinném konzervativním fondu a je kalkulováno se zhodnocením 1,3 % p.a. | AE42: 1 | AF42: 8 | AG42: 0.0595 | AH42: 0.08
A43: Zhodnocení díky státním příspěvkům a daňový úlevám p.a. jsou pouze výhody zaručené státem. Tedy připsané státní příspěvky a čerpané daňové úlevy, bez jejich zhodnocení penzijní společností | AE43: 1 | AF43: 7 | AG43: 0.051 | AH43: 0.07
AE44: 1 | AF44: 6 | AG44: 0.0425 | AH44: 0.06
AE45: 2 | AF45: 5 | AG45: 0.034 | AH45: 0.05
AE46: 2 | AF46: 4 | AG46: 0.0255 | AH46: 0.04
AE47: 2 | AF47: 3 | AG47: 0.017 | AH47: 0.03
AE48: 3 | AF48: 2 | AG48: 0.0085 | AH48: 0.02
AA49: příspěvky klienta | AE49: 3 | AF49: 1 | AG49: 0 | AH49: 0.01
AA50: příspěvky zaměstnavatele | AE50: 3 | AF50: 0 | AG50: =AH50-0.01-((AH50-0.01)*0.15) -> -0.0085 | AH50: 0
AA51: státní příspěvky
AA52: zhodnocení PSČP | AD52: zhodnocení | AE52: =VLOOKUP(AF52,AF40:AH50,3,0) -> 0.03 | AF52: 3
AD53: povinný konzervativní fond | AE53: =AF53*0.85 -> 0.0075735 | AF53: =AG53-0.004-((AG53-0.004)*0.01) -> 0.00891 | AG53: 0.013
AD54: Státní příspěvek | AE54: =IF($B$10<300,0,MIN(0.2*$B$10+30,230)) -> 230
AD55: Měsíční sleva na dani | AE55: =MIN(300,(IF(B10>=1000,(B10-1000)*0.15,0))) -> 0
AD57: počátek spoření | AE57: =B14+B13/12 -> 2019.083333
AD58: narození | AE58: =B9+B8/12 -> 2016.083333
AD59: aktuální věk | AE59: =AE57-AE58 -> 3
AD60: věk odchodu do důchodu | AE60: =VLOOKUP(B9,AB99:AC189,2,0) -> 73 let a 6 měsíců | AF60: =VALUE(MID(AE60,1,2)) -> 73 | AG60: =IF(LEN($AE$60)>6,VALUE(MID($AE$60,10,2))/12,0) -> 0.5 | AH60: =AF60+AG60 -> 73.5
AD61: rok odchodu do důchodu | AE61: =AE58+AH60 -> 2089.583333 | AF61: =LEFT(AE61,4) -> 2089 | AG61: =IF(AF61-AE61<>0,ROUND((AE61-LEFT(AE61,4))*12,0),12) -> 7
AD62: čerpání odbytného | AE62: =AE57+((1+B20)/12) -> 2021.166667 | AF62: =LEFT(AE62,4) -> 2021 | AG62: =IF(AF62-AE62<>0,ROUND((AE62-LEFT(AE62,4))*12,0),12) -> 2
AD63: 18 let první měsíc | AE63: =AE58+18 -> 2034.083333 | AF63: =LEFT(AE63,4) -> 2034 | AG63: =IF(AF63-AE63<>0,ROUND((AE63-LEFT(AE63,4))*12,0),12) -> 1 | AH63: =CONCATENATE(AG63," / ",AF63) -> 1 / 2034
AD64: 18 let poslední měsíc | AE64: =AE58+19 -> 2035.083333 | AF64: =LEFT(AE64,4) -> 2035 | AG64: =IF(AF64-AE64<>0,ROUND((AE64-LEFT(AE64,4))*12,0),12) -> 1 | AH64: =CONCATENATE(AG64," / ",AF64) -> 1 / 2035
AD65: 60 let první měsíc | AE65: =AE58+60 -> 2076.083333 | AF65: =LEFT(AE65,4) -> 2076 | AG65: =IF(AF65-AE65<>0,ROUND((AE65-LEFT(AE65,4))*12,0),12) -> 1 | AH65: =CONCATENATE(AG65," / ",AF65) -> 1 / 2076
AE68: Odbytné | AF68: Část odb - 18 | AG68: důchodový věk | AH68: 5-ti leté spoření
AD69: oprávněnost nároku na (ok=1): | AE69: =IF(B20>=24,1,0) -> 1 | AF69: =IF(AE59<8,IF(AF71>=120,1,"")) -> 1 | AG69: =IF((AE65-5)>=AE57,1,0) -> 1
AD70: datum ukončení/částečného odbytného | AE70: =CONCATENATE(AG62," / ", AF62) -> 2 / 2021 | AF70: =AH63 -> 1 / 2034 | AG70: =IF(AE65-AF65<>0,CONCATENATE(AG65," / ", AF65),CONCATENATE(AG65," / ", AF65-1)) -> 1 / 2076 | AH70: =CONCATENATE(B13," / ", B14+5) -> 1 / 2024
AD71: počet měsíců trvání spoření | AE71: =B20 -> 24 | AF71: =IF((AE63-AE57)<0,0,(AE63-AE57)*12) -> 180 | AG71: =IF((AE65-AE57)<0,0,(AE65-AE57)*12)-1 -> 683 | AH71: 60
AD72: počet měsíců spoření | AE72: =AE71-FIXED($B$12/$B$10,0) -> 24 | AF72: =AF71-FIXED($B$12/$B$10,0) -> 180 | AG72: =AG71-FIXED($B$12/$B$10,0) -> 683 | AH72: =AH71-FIXED(B12/B10,0) -> 60 | AI72: =MAX(AG72,AH72) -> 683
AD73: Výše předplatného | AE73: =IF(AE71<=0,0,$B$12) -> 0 | AF73: =IF(AF71<=0,0,$B$12) -> 0 | AG73: =IF(AG71<=0,0,$B$12) -> 0 | AH73: =IF(AH71<=0,0,B12) -> 0
AD74: Zhodnocení Předplatného | AE74: =IF(AE71<=0,0,((AE73*(1+$AE$52/12)^AE71)-AE73)) -> 0 | AF74: =IF(AF71<=0,0,((AF73*(1+$AE$52/12)^AF71)-AF73)) -> 0 | AG74: =IF(AG71<=0,0,((AG73*(1+$AE$52/12)^AG71)-AG73)) -> 0 | AH74: =IF(AH71<=0,0,((AH73*(1+AE52/12)^AH71)-AH73)) -> 0
AD75: Pravidelné příspěvky klienta celkem | AE75: =IF(AE72<=0,0,($B$10*AE72)) -> 24000 | AF75: =IF(AF72<=0,0,($B$10*AF72)) -> 180000 | AG75: =IF(AG72<=0,0,($B$10*AG72)) -> 683000 | AH75: =IF(AH72<=0,0,(B10*AH72)) -> 60000
AD76: Zhodnocení pravidelné příspěvky klienta | AE76: =IF(AE72<=0,0,(FV($AE$52/12,AE72,-$B$10,,1)-AE75)) -> 764.5747491 | AF76: =IF(AF72<=0,0,(FV($AE$52/12,AF72,-$B$10,,1)-AF75)) -> 47540.12159 | AG76: =IF(AG72<=0,0,(FV($AE$52/12,AG72,-$B$10,,1)-AG75)) -> 1122870.225 | AH76: =IF(AH72<=0,0,(FV(AE52/12,AH72,-B10,,1)-AH75)) -> 4808.329404
AD77: Příspěvky zaměstnavatele celkem | AE77: =IF(AE71<=0,0,($B$11*AE71)) -> 0 | AF77: =IF(AF71<=0,0,($B$11*AF71)) -> 0 | AG77: =IF(AG71<=0,0,($B$11*AG71)) -> 0 | AH77: =IF(AH71<=0,0,(B11*AH71)) -> 0
AD78: Zhodnocení Příspěvek zaměstnavatele | AE78: =IF(AE71<=0,0,(FV($AE$52/12,AE71,-$B$11,,1)-AE77)) -> 0 | AF78: =IF(AF71<=0,0,(FV($AE$52/12,AF71,-$B$11,,1)-AF77)) -> 0 | AG78: =IF(AG71<=0,0,(FV($AE$52/12,AG71,-$B$11,,1)-AG77)) -> 0 | AH78: =IF(AH71<=0,0,(FV(AE52/12,AH71,-B11,,1)-AH77)) -> 0
AD79: Státní příspěvky celkem | AE79: =IF(AE71<=0,0,($AE$54*AE71)) -> 5520 | AF79: =IF(AF71<=0,0,($AE$54*AF71)) -> 41400 | AG79: =IF(AG71<=0,0,($AE$54*AG71)) -> 157090 | AH79: =IF(AH71<=0,0,(AE54*AH71)) -> 13800
AD80: Zhodnocení Státní příspěvky | AE80: =IF(AE71<=0,0,(FV($AE$52/12,AE71,-$AE$54,,1)-AE79)) -> 175.8521923 | AF80: =IF(AF71<=0,0,(FV($AE$52/12,AF71,-$AE$54,,1)-AF79)) -> 10934.22797 | AG80: =IF(AG71<=0,0,(FV($AE$52/12,AG71,-$AE$54,,1)-AG79)) -> 258260.1517 | AH80: =IF(AH71<=0,0,(FV(AE52/12,AH71,-AE54,,1)-AH79)) -> 1105.915763
AD81: Celkem naspořené konto | AE81: =SUM(AE73:AE80) -> 30460.42694 | AF81: =SUM(AF73:AF80) -> 279874.3496 | AG81: =SUM(AG73:AG80) -> 2221220.377 | AH81: =SUM(AH73:AH80) -> 79714.24517
AD82: z toho zhodnocení | AE82: =SUM(AE74,AE76,AE78,AE80) -> 940.4269413 | AF82: =SUM(AF74,AF76,AF78,AF80) -> 58474.34956 | AG82: =SUM(AG74,AG76,AG78,AG80) -> 1381130.377 | AH82: =SUM(AH74,AH76,AH78,AH80) -> 5914.245167
AD83: Daňové odpočty celkem | AG83: =IF(AG71<=0,0,($AE$55*AG71)) -> 0 | AH83: =IF(AH71<=0,0,(AE55*AH71)) -> 0
AD84: Příspěvek klienta a zaměstnavatele celkem | AE84: =AE75+AE77+AE73 -> 24000 | AF84: =AF75+AF77+AF73 -> 180000 | AG84: =AG75+AG77+AG73 -> 683000 | AH84: =AH75+AH77+AH73 -> 60000
AD86: počet měsíců trvání spoření | AG86: =(FIXED(AG71,0,0))/1 -> 683 | AH86: =(FIXED(AH71,0,0))/1 -> 60
AD87: Průměrné zhodnocení | AG87: =VLOOKUP($AG$86,$AH$98:$AT$1097,13,0) -> 0.07902290599 | AH87: =VLOOKUP($AH$86,$AH$98:$AT$1097,13,0) -> 0.1292737388
AD88: Garantované zhodnocení SP a daňových úlev | AG88: =VLOOKUP($AG$86,$AH$98:$AU$1097,14,0) -> 0.008070175439 | AH88: =VLOOKUP($AH$86,$AH$98:$AU$1097,14,0) -> 0.09049180328
AD90: Jednorázové vyrovnání - celkem k výplatě | AG90: =AG81-AG82*0.15-AG77*0.15 -> 2014050.82 | AH90: =AH81-AH82*0.15-AH77*0.15 -> 78827.10839
AD91: Pravidelná penze na 3 roky měsíčně | AG91: =PMT($AE$53/12,3*12,-(AG81-AG82*0.15),0,1) -> 56565.77343 | AH91: =PMT($AE$53/12,3*12,-(AH81-AH82*0.15),0,1) -> 2213.904589
AD92: Pravidelná penze na 3 roky celkem k výplatě | AG92: =AG91*3*12 -> 2036367.844 | AH92: =AH91*3*12 -> 79700.56521
AD93: Pravidelná penze na 10 let měsíčně | AG93: =PMT($AE$53/12,10*12,-AG81,0,1) -> 19213.66184 | AH93: =PMT($AE$53/12,10*12,-AH81,0,1) -> 689.5320098
AD94: Pravidelná penze na 10 let celkem k výplatě | AG94: =AG93*10*12 -> 2305639.421 | AH94: =AH93*10*12 -> 82743.84118
AB96: odchod do důchodu dle zákona
AH97: Měsíc spoření | AI97: Stav účtu na počátku období | AJ97: Příspěvek klienta | AK97: Předplatné | AL97: Příspěvěk zaměstnavatele | AM97: Státní příspěvek | AN97: Připsané zhodnocení | AO97: Stav účtu na konci období | AP97: Daňová úleva | AQ97: Příspěvky klienta a zaměstnavatele | AR97: Zhodnocení včetně státního příspěvku a daňových úlev | AS97: Státní příspěvky a daňové úlevy | AT97: průměrné zhodnocení | AU97: garantované zhodnocení SP a daňové úlevy
AB98: rok narození | AC98: muži | AH98: 1 | AI98: =B12+AJ98+AL98+AM98 -> 1230 | AJ98: =IF(($AG$71-$AG$72)>=AH98,0,$B$10) -> 1000 | AK98: =IF(($AG$71-$AG$72)>=AH98,$B$10,0) -> 0 | AL98: =$B$11 -> 0 | AM98: =$AE$54 -> 230 | AN98: =AI98*$AE$52/12 -> 3.075 | AO98: =AI98+AN98 -> 1233.075 | AP98: =$AE$55 -> 0 | AQ98: =B12+AJ98+AL98 -> 1000 | AR98: =AM98+AN98+AP98 -> 233.075 | AS98: =AM98+AP98 -> 230 | AT98: =(AR98/(AVERAGE($AQ$98:AQ98))/AH98*12) -> 2.7969 | AU98: =(AS98/(AVERAGE($AQ$98:AQ98))/AH98*12) -> 2.76
AB99: 2019 | AC99: 74 let | AH99: 2 | AI99: =AO98+AJ99+AL99+AM99 -> 2463.075 | AJ99: 1000 | AK99: 0 | AL99: 0 | AM99: 230 | AN99: =AI99*$AE$52/12 -> 6.1576875 | AO99: =AI99+AN99 -> 2469.232687 | AP99: =$AE$55 -> 0 | AQ99: =$B$12+SUM($AJ$98:AJ99,$AL$98:AL99) -> 2000 | AR99: =SUM($AM$98:AM99,$AN$98:AN99,$AP$98:AP99) -> 469.2326875 | AS99: =SUM($AM$98:AM99,$AP$98:AP99) -> 460 | AT99: =(AR99/(AVERAGE($AQ$98:AQ99))/AH99*12) -> 1.87693075 | AU99: =(AS99/(AVERAGE($AQ$98:AQ99))/AH99*12) -> 1.84
AB100: 2018 | AC100: 73 let a 10 měsíců | AH100: 3 | AI100: 3699.232687 | AJ100: 1000 | AK100: 0 | AL100: 0 | AM100: 230 | AN100: 9.248081719 | AO100: =AI100+AN100 -> 3708.480769 | AP100: 0 | AQ100: =$B$12+SUM($AJ$98:AJ100,$AL$98:AL100) -> 3000 | AR100: =SUM($AM$98:AM100,$AN$98:AN100,$AP$98:AP100) -> 708.4807692 | AS100: =SUM($AM$98:AM100,$AP$98:AP100) -> 690 | AT100: =(AR100/(AVERAGE($AQ$98:AQ100))/AH100*12) -> 1.416961538 | AU100: =(AS100/(AVERAGE($AQ$98:AQ100))/AH100*12) -> 1.38
AB101: 2017 | AC101: 73 let a 8 měsíců | AH101: 4 | AI101: 4938.480769 | AJ101: 1000 | AK101: 0 | AL101: 0 | AM101: 230 | AN101: 12.34620192 | AO101: =AI101+AN101 -> 4950.826971 | AP101: 0 | AQ101: =$B$12+SUM($AJ$98:AJ101,$AL$98:AL101) -> 4000 | AR101: =SUM($AM$98:AM101,$AN$98:AN101,$AP$98:AP101) -> 950.8269711 | AS101: =SUM($AM$98:AM101,$AP$98:AP101) -> 920 | AT101: =(AR101/(AVERAGE($AQ$98:AQ101))/AH101*12) -> 1.140992365 | AU101: =(AS101/(AVERAGE($AQ$98:AQ101))/AH101*12) -> 1.104
AB102: 2016 | AC102: 73 let a 6 měsíců | AH102: 5 | AI102: 6180.826971 | AJ102: 1000 | AK102: 0 | AL102: 0 | AM102: 230 | AN102: 15.45206743 | AO102: =AI102+AN102 -> 6196.279039 | AP102: 0 | AQ102: =$B$12+SUM($AJ$98:AJ102,$AL$98:AL102) -> 5000 | AR102: =SUM($AM$98:AM102,$AN$98:AN102,$AP$98:AP102) -> 1196.279039 | AS102: =SUM($AM$98:AM102,$AP$98:AP102) -> 1150 | AT102: =(AR102/(AVERAGE($AQ$98:AQ102))/AH102*12) -> 0.9570232309 | AU102: =(AS102/(AVERAGE($AQ$98:AQ102))/AH102*12) -> 0.92
AB103: 2015 | AC103: 73 let a 4 měsíce | AH103: 6 | AI103: 7426.279039 | AJ103: 1000 | AK103: 0 | AL103: 0 | AM103: 230 | AN103: 18.5656976 | AO103: 7444.844736 | AP103: 0 | AQ103: =$B$12+SUM($AJ$98:AJ103,$AL$98:AL103) -> 6000 | AR103: =SUM($AM$98:AM103,$AN$98:AN103,$AP$98:AP103) -> 1444.844736 | AS103: =SUM($AM$98:AM103,$AP$98:AP103) -> 1380 | AT103: =(AR103/(AVERAGE($AQ$98:AQ103))/AH103*12) -> 0.8256255635 | AU103: =(AS103/(AVERAGE($AQ$98:AQ103))/AH103*12) -> 0.7885714286
AB104: 2014 | AC104: 73 let a 2 měsíce | AH104: 7 | AI104: 8674.844736 | AJ104: 1000 | AK104: 0 | AL104: 0 | AM104: 230 | AN104: 21.68711184 | AO104: 8696.531848 | AP104: 0 | AQ104: =$B$12+SUM($AJ$98:AJ104,$AL$98:AL104) -> 7000 | AR104: =SUM($AM$98:AM104,$AN$98:AN104,$AP$98:AP104) -> 1696.531848 | AS104: =SUM($AM$98:AM104,$AP$98:AP104) -> 1610 | AT104: =(AR104/(AVERAGE($AQ$98:AQ104))/AH104*12) -> 0.7270850777 | AU104: =(AS104/(AVERAGE($AQ$98:AQ104))/AH104*12) -> 0.69
AB105: 2013 | AC105: 73 let | AH105: 8 | AI105: 9926.531848 | AJ105: 1000 | AK105: 0 | AL105: 0 | AM105: 230 | AN105: 24.81632962 | AO105: 9951.348178 | AP105: 0 | AQ105: =$B$12+SUM($AJ$98:AJ105,$AL$98:AL105) -> 8000 | AR105: =SUM($AM$98:AM105,$AN$98:AN105,$AP$98:AP105) -> 1951.348178 | AS105: =SUM($AM$98:AM105,$AP$98:AP105) -> 1840 | AT105: =(AR105/(AVERAGE($AQ$98:AQ105))/AH105*12) -> 0.6504493925 | AU105: =(AS105/(AVERAGE($AQ$98:AQ105))/AH105*12) -> 0.6133333333
AB106: 2012 | AC106: 72 let a 10 měsíců | AH106: 9 | AI106: 11181.34818 | AJ106: 1000 | AK106: 0 | AL106: 0 | AM106: 230 | AN106: 27.95337044 | AO106: 11209.30155 | AP106: 0 | AQ106: =$B$12+SUM($AJ$98:AJ106,$AL$98:AL106) -> 9000 | AR106: =SUM($AM$98:AM106,$AN$98:AN106,$AP$98:AP106) -> 2209.301548 | AS106: =SUM($AM$98:AM106,$AP$98:AP106) -> 2070 | AT106: =(AR106/(AVERAGE($AQ$98:AQ106))/AH106*12) -> 0.5891470795 | AU106: =(AS106/(AVERAGE($AQ$98:AQ106))/AH106*12) -> 0.552
AB107: 2011 | AC107: 72 let a 8 měsíců | AH107: 10 | AI107: 12439.30155 | AJ107: 1000 | AK107: 0 | AL107: 0 | AM107: 230 | AN107: 31.09825387 | AO107: =AI107+AN107 -> 12470.3998 | AP107: 0 | AQ107: =$B$12+SUM($AJ$98:AJ107,$AL$98:AL107) -> 10000 | AR107: =SUM($AM$98:AM107,$AN$98:AN107,$AP$98:AP107) -> 2470.399802 | AS107: =SUM($AM$98:AM107,$AP$98:AP107) -> 2300 | AT107: =(AR107/(AVERAGE($AQ$98:AQ107))/AH107*12) -> 0.5389963204 | AU107: =(AS107/(AVERAGE($AQ$98:AQ107))/AH107*12) -> 0.5018181818
AB108: 2010 | AC108: 72 let a 6 měsíců | AH108: 11 | AI108: 13700.3998 | AJ108: 1000 | AK108: 0 | AL108: 0 | AM108: 230 | AN108: 34.2509995 | AO108: 13734.6508 | AP108: 0 | AQ108: =$B$12+SUM($AJ$98:AJ108,$AL$98:AL108) -> 11000 | AR108: =SUM($AM$98:AM108,$AN$98:AN108,$AP$98:AP108) -> 2734.650801 | AS108: =SUM($AM$98:AM108,$AP$98:AP108) -> 2530 | AT108: =(AR108/(AVERAGE($AQ$98:AQ108))/AH108*12) -> 0.4972092366 | AU108: =(AS108/(AVERAGE($AQ$98:AQ108))/AH108*12) -> 0.46
AB109: 2009 | AC109: 72 let a 4 měsíce | AH109: 12 | AI109: =AO108+AJ109+AL109+AM109 -> 14964.6508 | AJ109: 1000 | AK109: 0 | AL109: 0 | AM109: 230 | AN109: 37.411627 | AO109: 15002.06243 | AP109: 0 | AQ109: =$B$12+SUM($AJ$98:AJ109,$AL$98:AL109) -> 12000 | AR109: =SUM($AM$98:AM109,$AN$98:AN109,$AP$98:AP109) -> 3002.062428 | AS109: =SUM($AM$98:AM109,$AP$98:AP109) -> 2760 | AT109: =(AR109/(AVERAGE($AQ$98:AQ109))/AH109*12) -> 0.4618557582 | AU109: =(AS109/(AVERAGE($AQ$98:AQ109))/AH109*12) -> 0.4246153846
AB110: 2008 | AC110: 72 let a 2 měsíce | AH110: 13 | AI110: 16232.06243 | AJ110: 1000 | AK110: 0 | AL110: 0 | AM110: 230 | AN110: 40.58015607 | AO110: 16272.64258 | AP110: 0 | AQ110: =$B$12+SUM($AJ$98:AJ110,$AL$98:AL110) -> 13000 | AR110: =SUM($AM$98:AM110,$AN$98:AN110,$AP$98:AP110) -> 3272.642585 | AS110: =SUM($AM$98:AM110,$AP$98:AP110) -> 2990 | AT110: =(AR110/(AVERAGE($AQ$98:AQ110))/AH110*12) -> 0.4315572639 | AU110: =(AS110/(AVERAGE($AQ$98:AQ110))/AH110*12) -> 0.3942857143
AB111: 2007 | AC111: 72 let | AH111: 14 | AI111: 17502.64258 | AJ111: 1000 | AK111: 0 | AL111: 0 | AM111: 230 | AN111: 43.75660646 | AO111: 17546.39919 | AP111: 0 | AQ111: =$B$12+SUM($AJ$98:AJ111,$AL$98:AL111) -> 14000 | AR111: =SUM($AM$98:AM111,$AN$98:AN111,$AP$98:AP111) -> 3546.399191 | AS111: =SUM($AM$98:AM111,$AP$98:AP111) -> 3220 | AT111: =(AR111/(AVERAGE($AQ$98:AQ111))/AH111*12) -> 0.4053027647 | AU111: =(AS111/(AVERAGE($AQ$98:AQ111))/AH111*12) -> 0.368
AB112: 2006 | AC112: 71 let a 10 měsíců | AH112: 15 | AI112: 18776.39919 | AJ112: 1000 | AK112: 0 | AL112: 0 | AM112: 230 | AN112: 46.94099798 | AO112: 18823.34019 | AP112: 0 | AQ112: =$B$12+SUM($AJ$98:AJ112,$AL$98:AL112) -> 15000 | AR112: =SUM($AM$98:AM112,$AN$98:AN112,$AP$98:AP112) -> 3823.340189 | AS112: =SUM($AM$98:AM112,$AP$98:AP112) -> 3450 | AT112: =(AR112/(AVERAGE($AQ$98:AQ112))/AH112*12) -> 0.3823340189 | AU112: =(AS112/(AVERAGE($AQ$98:AQ112))/AH112*12) -> 0.345
AB113: 2005 | AC113: 71 let a 8 měsíců | AH113: 16 | AI113: =AO112+AJ113+AL113+AM113 -> 20053.34019 | AJ113: 1000 | AK113: 0 | AL113: 0 | AM113: 230 | AN113: 50.13335047 | AO113: =AI113+AN113 -> 20103.47354 | AP113: 0 | AQ113: =$B$12+SUM($AJ$98:AJ113,$AL$98:AL113) -> 16000 | AR113: =SUM($AM$98:AM113,$AN$98:AN113,$AP$98:AP113) -> 4103.473539 | AS113: =SUM($AM$98:AM113,$AP$98:AP113) -> 3680 | AT113: =(AR113/(AVERAGE($AQ$98:AQ113))/AH113*12) -> 0.3620711947 | AU113: =(AS113/(AVERAGE($AQ$98:AQ113))/AH113*12) -> 0.3247058824
AB114: 2004 | AC114: 71 let a 6 měsíců | AH114: 17 | AI114: 21333.47354 | AJ114: 1000 | AK114: 0 | AL114: 0 | AM114: 230 | AN114: 53.33368385 | AO114: 21386.80722 | AP114: 0 | AQ114: =$B$12+SUM($AJ$98:AJ114,$AL$98:AL114) -> 17000 | AR114: =SUM($AM$98:AM114,$AN$98:AN114,$AP$98:AP114) -> 4386.807223 | AS114: =SUM($AM$98:AM114,$AP$98:AP114) -> 3910 | AT114: =(AR114/(AVERAGE($AQ$98:AQ114))/AH114*12) -> 0.3440633116 | AU114: =(AS114/(AVERAGE($AQ$98:AQ114))/AH114*12) -> 0.3066666667
AB115: 2003 | AC115: 71 let a 4 měsíce | AH115: 18 | AI115: 22616.80722 | AJ115: 1000 | AK115: 0 | AL115: 0 | AM115: 230 | AN115: 56.54201806 | AO115: 22673.34924 | AP115: 0 | AQ115: =$B$12+SUM($AJ$98:AJ115,$AL$98:AL115) -> 18000 | AR115: =SUM($AM$98:AM115,$AN$98:AN115,$AP$98:AP115) -> 4673.349241 | AS115: =SUM($AM$98:AM115,$AP$98:AP115) -> 4140 | AT115: =(AR115/(AVERAGE($AQ$98:AQ115))/AH115*12) -> 0.3279543327 | AU115: =(AS115/(AVERAGE($AQ$98:AQ115))/AH115*12) -> 0.2905263158
AB116: 2002 | AC116: 71 let a 2 měsíce | AH116: 19 | AI116: 23903.34924 | AJ116: 1000 | AK116: 0 | AL116: 0 | AM116: 230 | AN116: 59.7583731 | AO116: 23963.10761 | AP116: 0 | AQ116: =$B$12+SUM($AJ$98:AJ116,$AL$98:AL116) -> 19000 | AR116: =SUM($AM$98:AM116,$AN$98:AN116,$AP$98:AP116) -> 4963.107614 | AS116: =SUM($AM$98:AM116,$AP$98:AP116) -> 4370 | AT116: =(AR116/(AVERAGE($AQ$98:AQ116))/AH116*12) -> 0.3134594283 | AU116: =(AS116/(AVERAGE($AQ$98:AQ116))/AH116*12) -> 0.276
AB117: 2001 | AC117: 71 let | AH117: 20 | AI117: 25193.10761 | AJ117: 1000 | AK117: 0 | AL117: 0 | AM117: 230 | AN117: 62.98276904 | AO117: 25256.09038 | AP117: 0 | AQ117: =$B$12+SUM($AJ$98:AJ117,$AL$98:AL117) -> 20000 | AR117: =SUM($AM$98:AM117,$AN$98:AN117,$AP$98:AP117) -> 5256.090383 | AS117: =SUM($AM$98:AM117,$AP$98:AP117) -> 4600 | AT117: =(AR117/(AVERAGE($AQ$98:AQ117))/AH117*12) -> 0.3003480219 | AU117: =(AS117/(AVERAGE($AQ$98:AQ117))/AH117*12) -> 0.2628571429
AB118: 2000 | AC118: 70 let a 10 měsíců | AH118: 21 | AI118: 26486.09038 | AJ118: 1000 | AK118: 0 | AL118: 0 | AM118: 230 | AN118: 66.21522596 | AO118: 26552.30561 | AP118: 0 | AQ118: =$B$12+SUM($AJ$98:AJ118,$AL$98:AL118) -> 21000 | AR118: =SUM($AM$98:AM118,$AN$98:AN118,$AP$98:AP118) -> 5552.305609 | AS118: =SUM($AM$98:AM118,$AP$98:AP118) -> 4830 | AT118: =(AR118/(AVERAGE($AQ$98:AQ118))/AH118*12) -> 0.2884314602 | AU118: =(AS118/(AVERAGE($AQ$98:AQ118))/AH118*12) -> 0.2509090909
AB119: 1999 | AC119: 70 let a 8 měsíců | AH119: 22 | AI119: 27782.30561 | AJ119: 1000 | AK119: 0 | AL119: 0 | AM119: 230 | AN119: 69.45576402 | AO119: 27851.76137 | AP119: 0 | AQ119: =$B$12+SUM($AJ$98:AJ119,$AL$98:AL119) -> 22000 | AR119: =SUM($AM$98:AM119,$AN$98:AN119,$AP$98:AP119) -> 5851.761373 | AS119: =SUM($AM$98:AM119,$AP$98:AP119) -> 5060 | AT119: =(AR119/(AVERAGE($AQ$98:AQ119))/AH119*12) -> 0.2775538991 | AU119: =(AS119/(AVERAGE($AQ$98:AQ119))/AH119*12) -> 0.24
AB120: 1998 | AC120: 70 let a 6 měsíců | AH120: 23 | AI120: 29081.76137 | AJ120: 1000 | AK120: 0 | AL120: 0 | AM120: 230 | AN120: 72.70440343 | AO120: 29154.46578 | AP120: 0 | AQ120: =$B$12+SUM($AJ$98:AJ120,$AL$98:AL120) -> 23000 | AR120: =SUM($AM$98:AM120,$AN$98:AN120,$AP$98:AP120) -> 6154.465777 | AS120: =SUM($AM$98:AM120,$AP$98:AP120) -> 5290 | AT120: =(AR120/(AVERAGE($AQ$98:AQ120))/AH120*12) -> 0.2675854686 | AU120: =(AS120/(AVERAGE($AQ$98:AQ120))/AH120*12) -> 0.23
AB121: 1997 | AC121: 70 let a 4 měsíce | AH121: 24 | AI121: 30384.46578 | AJ121: 1000 | AK121: 0 | AL121: 0 | AM121: 230 | AN121: 75.96116444 | AO121: 30460.42694 | AP121: 0 | AQ121: =$B$12+SUM($AJ$98:AJ121,$AL$98:AL121) -> 24000 | AR121: =SUM($AM$98:AM121,$AN$98:AN121,$AP$98:AP121) -> 6460.426941 | AS121: =SUM($AM$98:AM121,$AP$98:AP121) -> 5520 | AT121: =(AR121/(AVERAGE($AQ$98:AQ121))/AH121*12) -> 0.2584170777 | AU121: =(AS121/(AVERAGE($AQ$98:AQ121))/AH121*12) -> 0.2208
AB122: 1996 | AC122: 70 let a 2 měsíce | AH122: 25 | AI122: 31690.42694 | AJ122: 1000 | AK122: 0 | AL122: 0 | AM122: 230 | AN122: 79.22606735 | AO122: 31769.65301 | AP122: 0 | AQ122: =$B$12+SUM($AJ$98:AJ122,$AL$98:AL122) -> 25000 | AR122: =SUM($AM$98:AM122,$AN$98:AN122,$AP$98:AP122) -> 6769.653009 | AS122: =SUM($AM$98:AM122,$AP$98:AP122) -> 5750 | AT122: =(AR122/(AVERAGE($AQ$98:AQ122))/AH122*12) -> 0.2499564188 | AU122: =(AS122/(AVERAGE($AQ$98:AQ122))/AH122*12) -> 0.2123076923
AB123: 1995 | AC123: 70 let | AH123: 26 | AI123: 32999.65301 | AJ123: 1000 | AK123: 0 | AL123: 0 | AM123: 230 | AN123: 82.49913252 | AO123: 33082.15214 | AP123: 0 | AQ123: =$B$12+SUM($AJ$98:AJ123,$AL$98:AL123) -> 26000 | AR123: =SUM($AM$98:AM123,$AN$98:AN123,$AP$98:AP123) -> 7082.152141 | AS123: =SUM($AM$98:AM123,$AP$98:AP123) -> 5980 | AT123: =(AR123/(AVERAGE($AQ$98:AQ123))/AH123*12) -> 0.2421248595 | AU123: =(AS123/(AVERAGE($AQ$98:AQ123))/AH123*12) -> 0.2044444444
AB124: 1994 | AC124: 69 let a 10 měsíců | AH124: 27 | AI124: =AO123+AJ124+AL124+AM124 -> 34312.15214 | AJ124: 1000 | AK124: 0 | AL124: 0 | AM124: 230 | AN124: 85.78038035 | AO124: 34397.93252 | AP124: 0 | AQ124: =$B$12+SUM($AJ$98:AJ124,$AL$98:AL124) -> 27000 | AR124: =SUM($AM$98:AM124,$AN$98:AN124,$AP$98:AP124) -> 7397.932522 | AS124: =SUM($AM$98:AM124,$AP$98:AP124) -> 6210 | AT124: =(AR124/(AVERAGE($AQ$98:AQ124))/AH124*12) -> 0.2348550007 | AU124: =(AS124/(AVERAGE($AQ$98:AQ124))/AH124*12) -> 0.1971428571
AB125: 1993 | AC125: 69 let a 8 měsíců | AH125: 28 | AI125: 35627.93252 | AJ125: 1000 | AK125: 0 | AL125: 0 | AM125: 230 | AN125: 89.0698313 | AO125: 35717.00235 | AP125: 0 | AQ125: =$B$12+SUM($AJ$98:AJ125,$AL$98:AL125) -> 28000 | AR125: =SUM($AM$98:AM125,$AN$98:AN125,$AP$98:AP125) -> 7717.002353 | AS125: =SUM($AM$98:AM125,$AP$98:AP125) -> 6440 | AT125: =(AR125/(AVERAGE($AQ$98:AQ125))/AH125*12) -> 0.2280887395 | AU125: =(AS125/(AVERAGE($AQ$98:AQ125))/AH125*12) -> 0.1903448276
AB126: 1992 | AC126: 69 let a 6 měsíců | AH126: 29 | AI126: 36947.00235 | AJ126: 1000 | AK126: 0 | AL126: 0 | AM126: 230 | AN126: 92.36750588 | AO126: 37039.36986 | AP126: 0 | AQ126: =$B$12+SUM($AJ$98:AJ126,$AL$98:AL126) -> 29000 | AR126: =SUM($AM$98:AM126,$AN$98:AN126,$AP$98:AP126) -> 8039.369859 | AS126: =SUM($AM$98:AM126,$AP$98:AP126) -> 6670 | AT126: =(AR126/(AVERAGE($AQ$98:AQ126))/AH126*12) -> 0.2217757202 | AU126: =(AS126/(AVERAGE($AQ$98:AQ126))/AH126*12) -> 0.184
AB127: 1991 | AC127: 69 let a 4 měsíce | AH127: 30 | AI127: 38269.36986 | AJ127: 1000 | AK127: 0 | AL127: 0 | AM127: 230 | AN127: 95.67342465 | AO127: 38365.04328 | AP127: 0 | AQ127: =$B$12+SUM($AJ$98:AJ127,$AL$98:AL127) -> 30000 | AR127: =SUM($AM$98:AM127,$AN$98:AN127,$AP$98:AP127) -> 8365.043283 | AS127: =SUM($AM$98:AM127,$AP$98:AP127) -> 6900 | AT127: =(AR127/(AVERAGE($AQ$98:AQ127))/AH127*12) -> 0.2158720847 | AU127: =(AS127/(AVERAGE($AQ$98:AQ127))/AH127*12) -> 0.1780645161
AB128: 1990 | AC128: 69 let a 2 měsíce | AH128: 31 | AI128: 39595.04328 | AJ128: 1000 | AK128: 0 | AL128: 0 | AM128: 230 | AN128: 98.98760821 | AO128: 39694.03089 | AP128: 0 | AQ128: =$B$12+SUM($AJ$98:AJ128,$AL$98:AL128) -> 31000 | AR128: =SUM($AM$98:AM128,$AN$98:AN128,$AP$98:AP128) -> 8694.030892 | AS128: =SUM($AM$98:AM128,$AP$98:AP128) -> 7130 | AT128: =(AR128/(AVERAGE($AQ$98:AQ128))/AH128*12) -> 0.2103394571 | AU128: =(AS128/(AVERAGE($AQ$98:AQ128))/AH128*12) -> 0.1725
AB129: 1989 | AC129: 69 let | AH129: 32 | AI129: 40924.03089 | AJ129: 1000 | AK129: 0 | AL129: 0 | AM129: 230 | AN129: 102.3100772 | AO129: 41026.34097 | AP129: 0 | AQ129: =$B$12+SUM($AJ$98:AJ129,$AL$98:AL129) -> 32000 | AR129: =SUM($AM$98:AM129,$AN$98:AN129,$AP$98:AP129) -> 9026.340969 | AS129: =SUM($AM$98:AM129,$AP$98:AP129) -> 7360 | AT129: =(AR129/(AVERAGE($AQ$98:AQ129))/AH129*12) -> 0.2051441129 | AU129: =(AS129/(AVERAGE($AQ$98:AQ129))/AH129*12) -> 0.1672727273
AB130: 1988 | AC130: 68 let a 10 měsíců | AH130: 33 | AI130: 42256.34097 | AJ130: 1000 | AK130: 0 | AL130: 0 | AM130: 230 | AN130: 105.6408524 | AO130: 42361.98182 | AP130: 0 | AQ130: =$B$12+SUM($AJ$98:AJ130,$AL$98:AL130) -> 33000 | AR130: =SUM($AM$98:AM130,$AN$98:AN130,$AP$98:AP130) -> 9361.981821 | AS130: =SUM($AM$98:AM130,$AP$98:AP130) -> 7590 | AT130: =(AR130/(AVERAGE($AQ$98:AQ130))/AH130*12) -> 0.2002562956 | AU130: =(AS130/(AVERAGE($AQ$98:AQ130))/AH130*12) -> 0.1623529412
AB131: 1987 | AC131: 68 let a 8 měsíců | AH131: 34 | AI131: 43591.98182 | AJ131: 1000 | AK131: 0 | AL131: 0 | AM131: 230 | AN131: 108.9799546 | AO131: 43700.96178 | AP131: 0 | AQ131: =$B$12+SUM($AJ$98:AJ131,$AL$98:AL131) -> 34000 | AR131: =SUM($AM$98:AM131,$AN$98:AN131,$AP$98:AP131) -> 9700.961776 | AS131: =SUM($AM$98:AM131,$AP$98:AP131) -> 7820 | AT131: =(AR131/(AVERAGE($AQ$98:AQ131))/AH131*12) -> 0.1956496493 | AU131: =(AS131/(AVERAGE($AQ$98:AQ131))/AH131*12) -> 0.1577142857
AB132: 1986 | AC132: 68 let a 6 měsíců | AH132: 35 | AI132: 44930.96178 | AJ132: 1000 | AK132: 0 | AL132: 0 | AM132: 230 | AN132: 112.3274044 | AO132: 45043.28918 | AP132: 0 | AQ132: =$B$12+SUM($AJ$98:AJ132,$AL$98:AL132) -> 35000 | AR132: =SUM($AM$98:AM132,$AN$98:AN132,$AP$98:AP132) -> 10043.28918 | AS132: =SUM($AM$98:AM132,$AP$98:AP132) -> 8050 | AT132: =(AR132/(AVERAGE($AQ$98:AQ132))/AH132*12) -> 0.1913007463 | AU132: =(AS132/(AVERAGE($AQ$98:AQ132))/AH132*12) -> 0.1533333333
AB133: 1985 | AC133: 68 let a 4 měsíce | AH133: 36 | AI133: 46273.28918 | AJ133: 1000 | AK133: 0 | AL133: 0 | AM133: 230 | AN133: 115.683223 | AO133: 46388.9724 | AP133: 0 | AQ133: =$B$12+SUM($AJ$98:AJ133,$AL$98:AL133) -> 36000 | AR133: =SUM($AM$98:AM133,$AN$98:AN133,$AP$98:AP133) -> 10388.9724 | AS133: =SUM($AM$98:AM133,$AP$98:AP133) -> 8280 | AT133: =(AR133/(AVERAGE($AQ$98:AQ133))/AH133*12) -> 0.1871886919 | AU133: =(AS133/(AVERAGE($AQ$98:AQ133))/AH133*12) -> 0.1491891892
AB134: 1984 | AC134: 68 let a 2 měsíce | AH134: 37 | AI134: 47618.9724 | AJ134: 1000 | AK134: 0 | AL134: 0 | AM134: 230 | AN134: 119.047431 | AO134: 47738.01983 | AP134: 0 | AQ134: =$B$12+SUM($AJ$98:AJ134,$AL$98:AL134) -> 37000 | AR134: =SUM($AM$98:AM134,$AN$98:AN134,$AP$98:AP134) -> 10738.01983 | AS134: =SUM($AM$98:AM134,$AP$98:AP134) -> 8510 | AT134: =(AR134/(AVERAGE($AQ$98:AQ134))/AH134*12) -> 0.1832947909 | AU134: =(AS134/(AVERAGE($AQ$98:AQ134))/AH134*12) -> 0.1452631579
AB135: 1983 | AC135: 68 let | AH135: 38 | AI135: 48968.01983 | AJ135: 1000 | AK135: 0 | AL135: 0 | AM135: 230 | AN135: 122.4200496 | AO135: 49090.43988 | AP135: 0 | AQ135: =$B$12+SUM($AJ$98:AJ135,$AL$98:AL135) -> 38000 | AR135: =SUM($AM$98:AM135,$AN$98:AN135,$AP$98:AP135) -> 11090.43988 | AS135: =SUM($AM$98:AM135,$AP$98:AP135) -> 8740 | AT135: =(AR135/(AVERAGE($AQ$98:AQ135))/AH135*12) -> 0.1796022653 | AU135: =(AS135/(AVERAGE($AQ$98:AQ135))/AH135*12) -> 0.1415384615
AB136: 1982 | AC136: 67 let a 10 měsíců | AH136: 39 | AI136: 50320.43988 | AJ136: 1000 | AK136: 0 | AL136: 0 | AM136: 230 | AN136: 125.8010997 | AO136: 50446.24098 | AP136: 0 | AQ136: =$B$12+SUM($AJ$98:AJ136,$AL$98:AL136) -> 39000 | AR136: =SUM($AM$98:AM136,$AN$98:AN136,$AP$98:AP136) -> 11446.24098 | AS136: =SUM($AM$98:AM136,$AP$98:AP136) -> 8970 | AT136: =(AR136/(AVERAGE($AQ$98:AQ136))/AH136*12) -> 0.1760960151 | AU136: =(AS136/(AVERAGE($AQ$98:AQ136))/AH136*12) -> 0.138
AB137: 1981 | AC137: 67 let a 8 měsíců | AH137: 40 | AI137: 51676.24098 | AJ137: 1000 | AK137: 0 | AL137: 0 | AM137: 230 | AN137: 129.1906025 | AO137: 51805.43159 | AP137: 0 | AQ137: =$B$12+SUM($AJ$98:AJ137,$AL$98:AL137) -> 40000 | AR137: =SUM($AM$98:AM137,$AN$98:AN137,$AP$98:AP137) -> 11805.43159 | AS137: =SUM($AM$98:AM137,$AP$98:AP137) -> 9200 | AT137: =(AR137/(AVERAGE($AQ$98:AQ137))/AH137*12) -> 0.1727624135 | AU137: =(AS137/(AVERAGE($AQ$98:AQ137))/AH137*12) -> 0.1346341463
AB138: 1980 | AC138: 67 let a 6 měsíců | AH138: 41 | AI138: 53035.43159 | AJ138: 1000 | AK138: 0 | AL138: 0 | AM138: 230 | AN138: 132.588579 | AO138: 53168.02016 | AP138: 0 | AQ138: =$B$12+SUM($AJ$98:AJ138,$AL$98:AL138) -> 41000 | AR138: =SUM($AM$98:AM138,$AN$98:AN138,$AP$98:AP138) -> 12168.02016 | AS138: =SUM($AM$98:AM138,$AP$98:AP138) -> 9430 | AT138: =(AR138/(AVERAGE($AQ$98:AQ138))/AH138*12) -> 0.1695891312 | AU138: =(AS138/(AVERAGE($AQ$98:AQ138))/AH138*12) -> 0.1314285714
AB139: 1979 | AC139: 67 let a 4 měsíce | AH139: 42 | AI139: 54398.02016 | AJ139: 1000 | AK139: 0 | AL139: 0 | AM139: 230 | AN139: 135.9950504 | AO139: 54534.01522 | AP139: 0 | AQ139: =$B$12+SUM($AJ$98:AJ139,$AL$98:AL139) -> 42000 | AR139: =SUM($AM$98:AM139,$AN$98:AN139,$AP$98:AP139) -> 12534.01522 | AS139: =SUM($AM$98:AM139,$AP$98:AP139) -> 9660 | AT139: =(AR139/(AVERAGE($AQ$98:AQ139))/AH139*12) -> 0.1665649863 | AU139: =(AS139/(AVERAGE($AQ$98:AQ139))/AH139*12) -> 0.128372093
AB140: 1978 | AC140: 67 let a 2 měsíce | AH140: 43 | AI140: 55764.01522 | AJ140: 1000 | AK140: 0 | AL140: 0 | AM140: 230 | AN140: 139.410038 | AO140: 55903.42525 | AP140: 0 | AQ140: =$B$12+SUM($AJ$98:AJ140,$AL$98:AL140) -> 43000 | AR140: =SUM($AM$98:AM140,$AN$98:AN140,$AP$98:AP140) -> 12903.42525 | AS140: =SUM($AM$98:AM140,$AP$98:AP140) -> 9890 | AT140: =(AR140/(AVERAGE($AQ$98:AQ140))/AH140*12) -> 0.1636798129 | AU140: =(AS140/(AVERAGE($AQ$98:AQ140))/AH140*12) -> 0.1254545455
AB141: 1977 | AC141: 67 let | AH141: 44 | AI141: 57133.42525 | AJ141: 1000 | AK141: 0 | AL141: 0 | AM141: 230 | AN141: 142.8335631 | AO141: 57276.25882 | AP141: 0 | AQ141: =$B$12+SUM($AJ$98:AJ141,$AL$98:AL141) -> 44000 | AR141: =SUM($AM$98:AM141,$AN$98:AN141,$AP$98:AP141) -> 13276.25882 | AS141: =SUM($AM$98:AM141,$AP$98:AP141) -> 10120 | AT141: =(AR141/(AVERAGE($AQ$98:AQ141))/AH141*12) -> 0.1609243493 | AU141: =(AS141/(AVERAGE($AQ$98:AQ141))/AH141*12) -> 0.1226666667
AB142: 1976 | AC142: 66 let a 10 měsíců | AH142: 45 | AI142: 58506.25882 | AJ142: 1000 | AK142: 0 | AL142: 0 | AM142: 230 | AN142: 146.265647 | AO142: 58652.52446 | AP142: 0 | AQ142: =$B$12+SUM($AJ$98:AJ142,$AL$98:AL142) -> 45000 | AR142: =SUM($AM$98:AM142,$AN$98:AN142,$AP$98:AP142) -> 13652.52446 | AS142: =SUM($AM$98:AM142,$AP$98:AP142) -> 10350 | AT142: =(AR142/(AVERAGE($AQ$98:AQ142))/AH142*12) -> 0.1582901387 | AU142: =(AS142/(AVERAGE($AQ$98:AQ142))/AH142*12) -> 0.12
AB143: 1975 | AC143: 66 let a 8 měsíců | AH143: 46 | AI143: 59882.52446 | AJ143: 1000 | AK143: 0 | AL143: 0 | AM143: 230 | AN143: 149.7063112 | AO143: 60032.23077 | AP143: 0 | AQ143: =$B$12+SUM($AJ$98:AJ143,$AL$98:AL143) -> 46000 | AR143: =SUM($AM$98:AM143,$AN$98:AN143,$AP$98:AP143) -> 14032.23077 | AS143: =SUM($AM$98:AM143,$AP$98:AP143) -> 10580 | AT143: =(AR143/(AVERAGE($AQ$98:AQ143))/AH143*12) -> 0.1557694443 | AU143: =(AS143/(AVERAGE($AQ$98:AQ143))/AH143*12) -> 0.1174468085
AB144: 1974 | AC144: 66 let a 6 měsíců | AH144: 47 | AI144: 61262.23077 | AJ144: 1000 | AK144: 0 | AL144: 0 | AM144: 230 | AN144: 153.1555769 | AO144: 61415.38635 | AP144: 0 | AQ144: =$B$12+SUM($AJ$98:AJ144,$AL$98:AL144) -> 47000 | AR144: =SUM($AM$98:AM144,$AN$98:AN144,$AP$98:AP144) -> 14415.38635 | AS144: =SUM($AM$98:AM144,$AP$98:AP144) -> 10810 | AT144: =(AR144/(AVERAGE($AQ$98:AQ144))/AH144*12) -> 0.153355174 | AU144: =(AS144/(AVERAGE($AQ$98:AQ144))/AH144*12) -> 0.115
AB145: 1973 | AC145: 66 let a 4 měsíce | AH145: 48 | AI145: 62645.38635 | AJ145: 1000 | AK145: 0 | AL145: 0 | AM145: 230 | AN145: 156.6134659 | AO145: 62801.99982 | AP145: 0 | AQ145: =$B$12+SUM($AJ$98:AJ145,$AL$98:AL145) -> 48000 | AR145: =SUM($AM$98:AM145,$AN$98:AN145,$AP$98:AP145) -> 14801.99982 | AS145: =SUM($AM$98:AM145,$AP$98:AP145) -> 11040 | AT145: =(AR145/(AVERAGE($AQ$98:AQ145))/AH145*12) -> 0.1510408145 | AU145: =(AS145/(AVERAGE($AQ$98:AQ145))/AH145*12) -> 0.1126530612
AB146: 1972 | AC146: 66 let a 2 měsíce | AH146: 49 | AI146: 64031.99982 | AJ146: 1000 | AK146: 0 | AL146: 0 | AM146: 230 | AN146: 160.0799995 | AO146: 64192.07982 | AP146: 0 | AQ146: =$B$12+SUM($AJ$98:AJ146,$AL$98:AL146) -> 49000 | AR146: =SUM($AM$98:AM146,$AN$98:AN146,$AP$98:AP146) -> 15192.07982 | AS146: =SUM($AM$98:AM146,$AP$98:AP146) -> 11270 | AT146: =(AR146/(AVERAGE($AQ$98:AQ146))/AH146*12) -> 0.1488203737 | AU146: =(AS146/(AVERAGE($AQ$98:AQ146))/AH146*12) -> 0.1104
AB147: 1971 | AC147: 66 let | AH147: 50 | AI147: 65422.07982 | AJ147: 1000 | AK147: 0 | AL147: 0 | AM147: 230 | AN147: 163.5551995 | AO147: 65585.63502 | AP147: 0 | AQ147: =$B$12+SUM($AJ$98:AJ147,$AL$98:AL147) -> 50000 | AR147: =SUM($AM$98:AM147,$AN$98:AN147,$AP$98:AP147) -> 15585.63502 | AS147: =SUM($AM$98:AM147,$AP$98:AP147) -> 11500 | AT147: =(AR147/(AVERAGE($AQ$98:AQ147))/AH147*12) -> 0.1466883296 | AU147: =(AS147/(AVERAGE($AQ$98:AQ147))/AH147*12) -> 0.1082352941
AB148: 1970 | AC148: 65 let a 10 měsíců | AH148: 51 | AI148: 66815.63502 | AJ148: 1000 | AK148: 0 | AL148: 0 | AM148: 230 | AN148: 167.0390875 | AO148: 66982.6741 | AP148: 0 | AQ148: =$B$12+SUM($AJ$98:AJ148,$AL$98:AL148) -> 51000 | AR148: =SUM($AM$98:AM148,$AN$98:AN148,$AP$98:AP148) -> 15982.6741 | AS148: =SUM($AM$98:AM148,$AP$98:AP148) -> 11730 | AT148: =(AR148/(AVERAGE($AQ$98:AQ148))/AH148*12) -> 0.1446395847 | AU148: =(AS148/(AVERAGE($AQ$98:AQ148))/AH148*12) -> 0.1061538462
AB149: 1969 | AC149: 65 let a 8 měsíců | AH149: 52 | AI149: 68212.6741 | AJ149: 1000 | AK149: 0 | AL149: 0 | AM149: 230 | AN149: 170.5316853 | AO149: 68383.20579 | AP149: 0 | AQ149: =$B$12+SUM($AJ$98:AJ149,$AL$98:AL149) -> 52000 | AR149: =SUM($AM$98:AM149,$AN$98:AN149,$AP$98:AP149) -> 16383.20579 | AS149: =SUM($AM$98:AM149,$AP$98:AP149) -> 11960 | AT149: =(AR149/(AVERAGE($AQ$98:AQ149))/AH149*12) -> 0.1426694263 | AU149: =(AS149/(AVERAGE($AQ$98:AQ149))/AH149*12) -> 0.1041509434
AB150: 1968 | AC150: 65 let a 6 měsíců | AH150: 53 | AI150: 69613.20579 | AJ150: 1000 | AK150: 0 | AL150: 0 | AM150: 230 | AN150: 174.0330145 | AO150: 69787.2388 | AP150: 0 | AQ150: =$B$12+SUM($AJ$98:AJ150,$AL$98:AL150) -> 53000 | AR150: =SUM($AM$98:AM150,$AN$98:AN150,$AP$98:AP150) -> 16787.2388 | AS150: =SUM($AM$98:AM150,$AP$98:AP150) -> 12190 | AT150: =(AR150/(AVERAGE($AQ$98:AQ150))/AH150*12) -> 0.140773491 | AU150: =(AS150/(AVERAGE($AQ$98:AQ150))/AH150*12) -> 0.1022222222
AB151: 1967 | AC151: 65 let a 4 měsíce | AH151: 54 | AI151: 71017.2388 | AJ151: 1000 | AK151: 0 | AL151: 0 | AM151: 230 | AN151: 177.543097 | AO151: 71194.7819 | AP151: 0 | AQ151: =$B$12+SUM($AJ$98:AJ151,$AL$98:AL151) -> 54000 | AR151: =SUM($AM$98:AM151,$AN$98:AN151,$AP$98:AP151) -> 17194.7819 | AS151: =SUM($AM$98:AM151,$AP$98:AP151) -> 12420 | AT151: =(AR151/(AVERAGE($AQ$98:AQ151))/AH151*12) -> 0.1389477325 | AU151: =(AS151/(AVERAGE($AQ$98:AQ151))/AH151*12) -> 0.1003636364
AB152: 1966 | AC152: 65 let a 2 měsíce | AH152: 55 | AI152: 72424.7819 | AJ152: 1000 | AK152: 0 | AL152: 0 | AM152: 230 | AN152: 181.0619548 | AO152: 72605.84386 | AP152: 0 | AQ152: =$B$12+SUM($AJ$98:AJ152,$AL$98:AL152) -> 55000 | AR152: =SUM($AM$98:AM152,$AN$98:AN152,$AP$98:AP152) -> 17605.84386 | AS152: =SUM($AM$98:AM152,$AP$98:AP152) -> 12650 | AT152: =(AR152/(AVERAGE($AQ$98:AQ152))/AH152*12) -> 0.1371883937 | AU152: =(AS152/(AVERAGE($AQ$98:AQ152))/AH152*12) -> 0.09857142857
AB153: 1965 | AC153: 65 let | AH153: 56 | AI153: 73835.84386 | AJ153: 1000 | AK153: 0 | AL153: 0 | AM153: 230 | AN153: 184.5896096 | AO153: 74020.43347 | AP153: 0 | AQ153: =$B$12+SUM($AJ$98:AJ153,$AL$98:AL153) -> 56000 | AR153: =SUM($AM$98:AM153,$AN$98:AN153,$AP$98:AP153) -> 18020.43347 | AS153: =SUM($AM$98:AM153,$AP$98:AP153) -> 12880 | AT153: =(AR153/(AVERAGE($AQ$98:AQ153))/AH153*12) -> 0.1354919809 | AU153: =(AS153/(AVERAGE($AQ$98:AQ153))/AH153*12) -> 0.09684210526
AB154: 1964 | AC154: 64 let a 10 měsíců | AH154: 57 | AI154: 75250.43347 | AJ154: 1000 | AK154: 0 | AL154: 0 | AM154: 230 | AN154: 188.1260837 | AO154: 75438.55955 | AP154: 0 | AQ154: =$B$12+SUM($AJ$98:AJ154,$AL$98:AL154) -> 57000 | AR154: =SUM($AM$98:AM154,$AN$98:AN154,$AP$98:AP154) -> 18438.55955 | AS154: =SUM($AM$98:AM154,$AP$98:AP154) -> 13110 | AT154: =(AR154/(AVERAGE($AQ$98:AQ154))/AH154*12) -> 0.1338552417 | AU154: =(AS154/(AVERAGE($AQ$98:AQ154))/AH154*12) -> 0.09517241379
AB155: 1963 | AC155: 64 let a 8 měsíců | AH155: 58 | AI155: 76668.55955 | AJ155: 1000 | AK155: 0 | AL155: 0 | AM155: 230 | AN155: 191.6713989 | AO155: 76860.23095 | AP155: 0 | AQ155: =$B$12+SUM($AJ$98:AJ155,$AL$98:AL155) -> 58000 | AR155: =SUM($AM$98:AM155,$AN$98:AN155,$AP$98:AP155) -> 18860.23095 | AS155: =SUM($AM$98:AM155,$AP$98:AP155) -> 13340 | AT155: =(AR155/(AVERAGE($AQ$98:AQ155))/AH155*12) -> 0.132275144 | AU155: =(AS155/(AVERAGE($AQ$98:AQ155))/AH155*12) -> 0.09355932203
AB156: 1962 | AC156: 64 let a 6 měsíců | AH156: 59 | AI156: 78090.23095 | AJ156: 1000 | AK156: 0 | AL156: 0 | AM156: 230 | AN156: 195.2255774 | AO156: 78285.45653 | AP156: 0 | AQ156: =$B$12+SUM($AJ$98:AJ156,$AL$98:AL156) -> 59000 | AR156: =SUM($AM$98:AM156,$AN$98:AN156,$AP$98:AP156) -> 19285.45653 | AS156: =SUM($AM$98:AM156,$AP$98:AP156) -> 13570 | AT156: =(AR156/(AVERAGE($AQ$98:AQ156))/AH156*12) -> 0.1307488578 | AU156: =(AS156/(AVERAGE($AQ$98:AQ156))/AH156*12) -> 0.092
AB157: 1961 | AC157: 64 let a 4 měsíce | AH157: 60 | AI157: 79515.45653 | AJ157: 1000 | AK157: 0 | AL157: 0 | AM157: 230 | AN157: 198.7886413 | AO157: 79714.24517 | AP157: 0 | AQ157: =$B$12+SUM($AJ$98:AJ157,$AL$98:AL157) -> 60000 | AR157: =SUM($AM$98:AM157,$AN$98:AN157,$AP$98:AP157) -> 19714.24517 | AS157: =SUM($AM$98:AM157,$AP$98:AP157) -> 13800 | AT157: =(AR157/(AVERAGE($AQ$98:AQ157))/AH157*12) -> 0.1292737388 | AU157: =(AS157/(AVERAGE($AQ$98:AQ157))/AH157*12) -> 0.09049180328
AB158: 1960 | AC158: 64 let a 2 měsíce | AH158: 61 | AI158: =AO157+AJ158+AL158+AM158 -> 80944.24517 | AJ158: 1000 | AK158: 0 | AL158: 0 | AM158: 230 | AN158: 202.3606129 | AO158: =AI158+AN158 -> 81146.60578 | AP158: 0 | AQ158: =$B$12+SUM($AJ$98:AJ158,$AL$98:AL158) -> 61000 | AR158: =SUM($AM$98:AM158,$AN$98:AN158,$AP$98:AP158) -> 20146.60578 | AS158: =SUM($AM$98:AM158,$AP$98:AP158) -> 14030 | AT158: =(AR158/(AVERAGE($AQ$98:AQ158))/AH158*12) -> 0.1278473132 | AU158: =(AS158/(AVERAGE($AQ$98:AQ158))/AH158*12) -> 0.08903225806
AB159: 1959 | AC159: 64 let | AH159: 62 | AI159: 82376.60578 | AJ159: 1000 | AK159: 0 | AL159: 0 | AM159: 230 | AN159: 205.9415144 | AO159: 82582.54729 | AP159: 0 | AQ159: =$B$12+SUM($AJ$98:AJ159,$AL$98:AL159) -> 62000 | AR159: =SUM($AM$98:AM159,$AN$98:AN159,$AP$98:AP159) -> 20582.54729 | AS159: =SUM($AM$98:AM159,$AP$98:AP159) -> 14260 | AT159: =(AR159/(AVERAGE($AQ$98:AQ159))/AH159*12) -> 0.1264672645 | AU159: =(AS159/(AVERAGE($AQ$98:AQ159))/AH159*12) -> 0.08761904762
AB160: 1958 | AC160: 63 let a 10 měsíců | AH160: 63 | AI160: 83812.54729 | AJ160: 1000 | AK160: 0 | AL160: 0 | AM160: 230 | AN160: 209.5313682 | AO160: 84022.07866 | AP160: 0 | AQ160: =$B$12+SUM($AJ$98:AJ160,$AL$98:AL160) -> 63000 | AR160: =SUM($AM$98:AM160,$AN$98:AN160,$AP$98:AP160) -> 21022.07866 | AS160: =SUM($AM$98:AM160,$AP$98:AP160) -> 14490 | AT160: =(AR160/(AVERAGE($AQ$98:AQ160))/AH160*12) -> 0.1251314206 | AU160: =(AS160/(AVERAGE($AQ$98:AQ160))/AH160*12) -> 0.08625
AB161: 1957 | AC161: 63 let a 8 měsíců | AH161: 64 | AI161: 85252.07866 | AJ161: 1000 | AK161: 0 | AL161: 0 | AM161: 230 | AN161: 213.1301967 | AO161: 85465.20886 | AP161: 0 | AQ161: =$B$12+SUM($AJ$98:AJ161,$AL$98:AL161) -> 64000 | AR161: =SUM($AM$98:AM161,$AN$98:AN161,$AP$98:AP161) -> 21465.20886 | AS161: =SUM($AM$98:AM161,$AP$98:AP161) -> 14720 | AT161: =(AR161/(AVERAGE($AQ$98:AQ161))/AH161*12) -> 0.1238377434 | AU161: =(AS161/(AVERAGE($AQ$98:AQ161))/AH161*12) -> 0.08492307692
AB162: 1956 | AC162: 63 let a 6 měsíců | AH162: 65 | AI162: 86695.20886 | AJ162: =IF(($AG$71-$AG$72)>=AH162,0,$B$10) -> 1000 | AK162: =IF(($AG$71-$AG$72)>=AH162,$B$10,0) -> 0 | AL162: =$B$11 -> 0 | AM162: =$AE$54 -> 230 | AN162: =AI162*$AE$52/12 -> 216.7380221 | AO162: 86911.94688 | AP162: =$AE$55 -> 0 | AQ162: =$B$12+SUM($AJ$98:AJ162,$AL$98:AL162) -> 65000 | AR162: =SUM($AM$98:AM162,$AN$98:AN162,$AP$98:AP162) -> 21911.94688 | AS162: =SUM($AM$98:AM162,$AP$98:AP162) -> 14950 | AT162: =(AR162/(AVERAGE($AQ$98:AQ162))/AH162*12) -> 0.1225843182 | AU162: =(AS162/(AVERAGE($AQ$98:AQ162))/AH162*12) -> 0.08363636364
AB163: 1955 | AC163: 63 let a 4 měsíce | AH163: 66 | AI163: 88141.94688 | AJ163: 1000 | AK163: 0 | AL163: 0 | AM163: 230 | AN163: 220.3548672 | AO163: 88362.30175 | AP163: 0 | AQ163: =$B$12+SUM($AJ$98:AJ163,$AL$98:AL163) -> 66000 | AR163: =SUM($AM$98:AM163,$AN$98:AN163,$AP$98:AP163) -> 22362.30175 | AS163: =SUM($AM$98:AM163,$AP$98:AP163) -> 15180 | AT163: =(AR163/(AVERAGE($AQ$98:AQ163))/AH163*12) -> 0.1213693446 | AU163: =(AS163/(AVERAGE($AQ$98:AQ163))/AH163*12) -> 0.0823880597
AB164: 1954 | AC164: 63 let a 2 měsíce | AH164: 67 | AI164: 89592.30175 | AJ164: 1000 | AK164: 0 | AL164: 0 | AM164: 230 | AN164: 223.9807544 | AO164: 89816.2825 | AP164: 0 | AQ164: =$B$12+SUM($AJ$98:AJ164,$AL$98:AL164) -> 67000 | AR164: =SUM($AM$98:AM164,$AN$98:AN164,$AP$98:AP164) -> 22816.2825 | AS164: =SUM($AM$98:AM164,$AP$98:AP164) -> 15410 | AT164: =(AR164/(AVERAGE($AQ$98:AQ164))/AH164*12) -> 0.1201911282 | AU164: =(AS164/(AVERAGE($AQ$98:AQ164))/AH164*12) -> 0.08117647059
AB165: 1953 | AC165: 63 let | AH165: 68 | AI165: 91046.2825 | AJ165: 1000 | AK165: 0 | AL165: 0 | AM165: 230 | AN165: 227.6157063 | AO165: 91273.89821 | AP165: 0 | AQ165: =$B$12+SUM($AJ$98:AJ165,$AL$98:AL165) -> 68000 | AR165: =SUM($AM$98:AM165,$AN$98:AN165,$AP$98:AP165) -> 23273.89821 | AS165: =SUM($AM$98:AM165,$AP$98:AP165) -> 15640 | AT165: =(AR165/(AVERAGE($AQ$98:AQ165))/AH165*12) -> 0.1190480727 | AU165: =(AS165/(AVERAGE($AQ$98:AQ165))/AH165*12) -> 0.08
AB166: 1952 | AC166: 62 let a 10 měsíců | AH166: 69 | AI166: 92503.89821 | AJ166: 1000 | AK166: 0 | AL166: 0 | AM166: 230 | AN166: 231.2597455 | AO166: 92735.15795 | AP166: 0 | AQ166: =$B$12+SUM($AJ$98:AJ166,$AL$98:AL166) -> 69000 | AR166: =SUM($AM$98:AM166,$AN$98:AN166,$AP$98:AP166) -> 23735.15795 | AS166: =SUM($AM$98:AM166,$AP$98:AP166) -> 15870 | AT166: =(AR166/(AVERAGE($AQ$98:AQ166))/AH166*12) -> 0.1179386731 | AU166: =(AS166/(AVERAGE($AQ$98:AQ166))/AH166*12) -> 0.07885714286
AB167: 1951 | AC167: 62 let a 8 měsíců | AH167: 70 | AI167: 93965.15795 | AJ167: 1000 | AK167: 0 | AL167: 0 | AM167: 230 | AN167: 234.9128949 | AO167: 94200.07085 | AP167: 0 | AQ167: =$B$12+SUM($AJ$98:AJ167,$AL$98:AL167) -> 70000 | AR167: =SUM($AM$98:AM167,$AN$98:AN167,$AP$98:AP167) -> 24200.07085 | AS167: =SUM($AM$98:AM167,$AP$98:AP167) -> 16100 | AT167: =(AR167/(AVERAGE($AQ$98:AQ167))/AH167*12) -> 0.1168615091 | AU167: =(AS167/(AVERAGE($AQ$98:AQ167))/AH167*12) -> 0.07774647887
AB168: 1950 | AC168: 62 let a 6 měsíců | AH168: 71 | AI168: 95430.07085 | AJ168: 1000 | AK168: 0 | AL168: 0 | AM168: 230 | AN168: 238.5751771 | AO168: 95668.64603 | AP168: 0 | AQ168: =$B$12+SUM($AJ$98:AJ168,$AL$98:AL168) -> 71000 | AR168: =SUM($AM$98:AM168,$AN$98:AN168,$AP$98:AP168) -> 24668.64603 | AS168: =SUM($AM$98:AM168,$AP$98:AP168) -> 16330 | AT168: =(AR168/(AVERAGE($AQ$98:AQ168))/AH168*12) -> 0.1158152396 | AU168: =(AS168/(AVERAGE($AQ$98:AQ168))/AH168*12) -> 0.07666666667
AB169: 1949 | AC169: 62 let a 4 měsíce | AH169: 72 | AI169: 96898.64603 | AJ169: 1000 | AK169: 0 | AL169: 0 | AM169: 230 | AN169: 242.2466151 | AO169: 97140.89264 | AP169: 0 | AQ169: =$B$12+SUM($AJ$98:AJ169,$AL$98:AL169) -> 72000 | AR169: =SUM($AM$98:AM169,$AN$98:AN169,$AP$98:AP169) -> 25140.89264 | AS169: =SUM($AM$98:AM169,$AP$98:AP169) -> 16560 | AT169: =(AR169/(AVERAGE($AQ$98:AQ169))/AH169*12) -> 0.1147985965 | AU169: =(AS169/(AVERAGE($AQ$98:AQ169))/AH169*12) -> 0.07561643836
AB170: 1948 | AC170: 62 let a 2 měsíce | AH170: 73 | AI170: 98370.89264 | AJ170: 1000 | AK170: 0 | AL170: 0 | AM170: 230 | AN170: 245.9272316 | AO170: 98616.81987 | AP170: 0 | AQ170: =$B$12+SUM($AJ$98:AJ170,$AL$98:AL170) -> 73000 | AR170: =SUM($AM$98:AM170,$AN$98:AN170,$AP$98:AP170) -> 25616.81987 | AS170: =SUM($AM$98:AM170,$AP$98:AP170) -> 16790 | AT170: =(AR170/(AVERAGE($AQ$98:AQ170))/AH170*12) -> 0.1138103808 | AU170: =(AS170/(AVERAGE($AQ$98:AQ170))/AH170*12) -> 0.07459459459
AB171: 1947 | AC171: 62 let | AH171: 74 | AI171: 99846.81987 | AJ171: 1000 | AK171: 0 | AL171: 0 | AM171: 230 | AN171: 249.6170497 | AO171: 100096.4369 | AP171: 0 | AQ171: =$B$12+SUM($AJ$98:AJ171,$AL$98:AL171) -> 74000 | AR171: =SUM($AM$98:AM171,$AN$98:AN171,$AP$98:AP171) -> 26096.43692 | AS171: =SUM($AM$98:AM171,$AP$98:AP171) -> 17020 | AT171: =(AR171/(AVERAGE($AQ$98:AQ171))/AH171*12) -> 0.112849457 | AU171: =(AS171/(AVERAGE($AQ$98:AQ171))/AH171*12) -> 0.0736
AB172: 1946 | AC172: 61 let a 10 měsíců | AH172: 75 | AI172: 101326.4369 | AJ172: 1000 | AK172: 0 | AL172: 0 | AM172: 230 | AN172: 253.3160923 | AO172: 101579.753 | AP172: 0 | AQ172: =$B$12+SUM($AJ$98:AJ172,$AL$98:AL172) -> 75000 | AR172: =SUM($AM$98:AM172,$AN$98:AN172,$AP$98:AP172) -> 26579.75301 | AS172: =SUM($AM$98:AM172,$AP$98:AP172) -> 17250 | AT172: =(AR172/(AVERAGE($AQ$98:AQ172))/AH172*12) -> 0.1119147495 | AU172: =(AS172/(AVERAGE($AQ$98:AQ172))/AH172*12) -> 0.07263157895
AB173: 1945 | AC173: 61 let a 8 měsíců | AH173: 76 | AI173: 102809.753 | AJ173: 1000 | AK173: 0 | AL173: 0 | AM173: 230 | AN173: 257.0243825 | AO173: 103066.7774 | AP173: 0 | AQ173: =$B$12+SUM($AJ$98:AJ173,$AL$98:AL173) -> 76000 | AR173: =SUM($AM$98:AM173,$AN$98:AN173,$AP$98:AP173) -> 27066.7774 | AS173: =SUM($AM$98:AM173,$AP$98:AP173) -> 17480 | AT173: =(AR173/(AVERAGE($AQ$98:AQ173))/AH173*12) -> 0.1110052388 | AU173: =(AS173/(AVERAGE($AQ$98:AQ173))/AH173*12) -> 0.07168831169
AB174: 1944 | AC174: 61 let a 6 měsíců | AH174: 77 | AI174: 104296.7774 | AJ174: 1000 | AK174: 0 | AL174: 0 | AM174: 230 | AN174: 260.7419435 | AO174: 104557.5193 | AP174: 0 | AQ174: =$B$12+SUM($AJ$98:AJ174,$AL$98:AL174) -> 77000 | AR174: =SUM($AM$98:AM174,$AN$98:AN174,$AP$98:AP174) -> 27557.51934 | AS174: =SUM($AM$98:AM174,$AP$98:AP174) -> 17710 | AT174: =(AR174/(AVERAGE($AQ$98:AQ174))/AH174*12) -> 0.1101199574 | AU174: =(AS174/(AVERAGE($AQ$98:AQ174))/AH174*12) -> 0.07076923077
AB175: 1943 | AC175: 61 let a 4 měsíce | AH175: 78 | AI175: 105787.5193 | AJ175: 1000 | AK175: 0 | AL175: 0 | AM175: 230 | AN175: 264.4687984 | AO175: 106051.9881 | AP175: 0 | AQ175: =$B$12+SUM($AJ$98:AJ175,$AL$98:AL175) -> 78000 | AR175: =SUM($AM$98:AM175,$AN$98:AN175,$AP$98:AP175) -> 28051.98814 | AS175: =SUM($AM$98:AM175,$AP$98:AP175) -> 17940 | AT175: =(AR175/(AVERAGE($AQ$98:AQ175))/AH175*12) -> 0.1092579869 | AU175: =(AS175/(AVERAGE($AQ$98:AQ175))/AH175*12) -> 0.06987341772
AB176: 1942 | AC176: 61 let a 2 měsíce | AH176: 79 | AI176: 107281.9881 | AJ176: 1000 | AK176: 0 | AL176: 0 | AM176: 230 | AN176: 268.2049703 | AO176: 107550.1931 | AP176: 0 | AQ176: =$B$12+SUM($AJ$98:AJ176,$AL$98:AL176) -> 79000 | AR176: =SUM($AM$98:AM176,$AN$98:AN176,$AP$98:AP176) -> 28550.19311 | AS176: =SUM($AM$98:AM176,$AP$98:AP176) -> 18170 | AT176: =(AR176/(AVERAGE($AQ$98:AQ176))/AH176*12) -> 0.1084184548 | AU176: =(AS176/(AVERAGE($AQ$98:AQ176))/AH176*12) -> 0.069
AB177: 1941 | AC177: 61 let | AH177: 80 | AI177: 108780.1931 | AJ177: 1000 | AK177: 0 | AL177: 0 | AM177: 230 | AN177: 271.9504828 | AO177: 109052.1436 | AP177: 0 | AQ177: =$B$12+SUM($AJ$98:AJ177,$AL$98:AL177) -> 80000 | AR177: =SUM($AM$98:AM177,$AN$98:AN177,$AP$98:AP177) -> 29052.14359 | AS177: =SUM($AM$98:AM177,$AP$98:AP177) -> 18400 | AT177: =(AR177/(AVERAGE($AQ$98:AQ177))/AH177*12) -> 0.1076005318 | AU177: =(AS177/(AVERAGE($AQ$98:AQ177))/AH177*12) -> 0.06814814815
AB178: 1940 | AC178: 60 let a 10 měsíců | AH178: 81 | AI178: 110282.1436 | AJ178: 1000 | AK178: 0 | AL178: 0 | AM178: 230 | AN178: 275.705359 | AO178: 110557.849 | AP178: 0 | AQ178: =$B$12+SUM($AJ$98:AJ178,$AL$98:AL178) -> 81000 | AR178: =SUM($AM$98:AM178,$AN$98:AN178,$AP$98:AP178) -> 29557.84895 | AS178: =SUM($AM$98:AM178,$AP$98:AP178) -> 18630 | AT178: =(AR178/(AVERAGE($AQ$98:AQ178))/AH178*12) -> 0.1068034289 | AU178: =(AS178/(AVERAGE($AQ$98:AQ178))/AH178*12) -> 0.06731707317
AB179: 1939 | AC179: 60 let a 8 měsíců | AH179: 82 | AI179: 111787.849 | AJ179: 1000 | AK179: 0 | AL179: 0 | AM179: 230 | AN179: 279.4696224 | AO179: 112067.3186 | AP179: 0 | AQ179: =$B$12+SUM($AJ$98:AJ179,$AL$98:AL179) -> 82000 | AR179: =SUM($AM$98:AM179,$AN$98:AN179,$AP$98:AP179) -> 30067.31857 | AS179: =SUM($AM$98:AM179,$AP$98:AP179) -> 18860 | AT179: =(AR179/(AVERAGE($AQ$98:AQ179))/AH179*12) -> 0.1060263952 | AU179: =(AS179/(AVERAGE($AQ$98:AQ179))/AH179*12) -> 0.0665060241
AB180: 1938 | AC180: 60 let a 6 měsíců | AH180: 83 | AI180: 113297.3186 | AJ180: 1000 | AK180: 0 | AL180: 0 | AM180: 230 | AN180: 283.2432964 | AO180: 113580.5619 | AP180: 0 | AQ180: =$B$12+SUM($AJ$98:AJ180,$AL$98:AL180) -> 83000 | AR180: =SUM($AM$98:AM180,$AN$98:AN180,$AP$98:AP180) -> 30580.56187 | AS180: =SUM($AM$98:AM180,$AP$98:AP180) -> 19090 | AT180: =(AR180/(AVERAGE($AQ$98:AQ180))/AH180*12) -> 0.1052687156 | AU180: =(AS180/(AVERAGE($AQ$98:AQ180))/AH180*12) -> 0.06571428571
AB181: 1937 | AC181: 60 let a 4 měsíce | AH181: 84 | AI181: 114810.5619 | AJ181: 1000 | AK181: 0 | AL181: 0 | AM181: 230 | AN181: 287.0264047 | AO181: 115097.5883 | AP181: 0 | AQ181: =$B$12+SUM($AJ$98:AJ181,$AL$98:AL181) -> 84000 | AR181: =SUM($AM$98:AM181,$AN$98:AN181,$AP$98:AP181) -> 31097.58827 | AS181: =SUM($AM$98:AM181,$AP$98:AP181) -> 19320 | AT181: =(AR181/(AVERAGE($AQ$98:AQ181))/AH181*12) -> 0.1045297085 | AU181: =(AS181/(AVERAGE($AQ$98:AQ181))/AH181*12) -> 0.06494117647
AB182: 1936 | AC182: 60 let a 2 měsíce | AH182: 85 | AI182: 116327.5883 | AJ182: 1000 | AK182: 0 | AL182: 0 | AM182: 230 | AN182: 290.8189707 | AO182: 116618.4072 | AP182: 0 | AQ182: =$B$12+SUM($AJ$98:AJ182,$AL$98:AL182) -> 85000 | AR182: =SUM($AM$98:AM182,$AN$98:AN182,$AP$98:AP182) -> 31618.40725 | AS182: =SUM($AM$98:AM182,$AP$98:AP182) -> 19550 | AT182: =(AR182/(AVERAGE($AQ$98:AQ182))/AH182*12) -> 0.1038087242 | AU182: =(AS182/(AVERAGE($AQ$98:AQ182))/AH182*12) -> 0.06418604651
AB183: 1935 | AC183: 60 let | AH183: 86 | AI183: 117848.4072 | AJ183: 1000 | AK183: 0 | AL183: 0 | AM183: 230 | AN183: 294.6210181 | AO183: 118143.0283 | AP183: 0 | AQ183: =$B$12+SUM($AJ$98:AJ183,$AL$98:AL183) -> 86000 | AR183: =SUM($AM$98:AM183,$AN$98:AN183,$AP$98:AP183) -> 32143.02826 | AS183: =SUM($AM$98:AM183,$AP$98:AP183) -> 19780 | AT183: =(AR183/(AVERAGE($AQ$98:AQ183))/AH183*12) -> 0.1031051428 | AU183: =(AS183/(AVERAGE($AQ$98:AQ183))/AH183*12) -> 0.06344827586
AB184: 1934 | AC184: 60 let a 10 měsíců | AH184: 87 | AI184: 119373.0283 | AJ184: 1000 | AK184: 0 | AL184: 0 | AM184: 230 | AN184: 298.4325707 | AO184: 119671.4608 | AP184: 0 | AQ184: =$B$12+SUM($AJ$98:AJ184,$AL$98:AL184) -> 87000 | AR184: =SUM($AM$98:AM184,$AN$98:AN184,$AP$98:AP184) -> 32671.46083 | AS184: =SUM($AM$98:AM184,$AP$98:AP184) -> 20010 | AT184: =(AR184/(AVERAGE($AQ$98:AQ184))/AH184*12) -> 0.1024183725 | AU184: =(AS184/(AVERAGE($AQ$98:AQ184))/AH184*12) -> 0.06272727273
AB185: 1933 | AC185: 60 let a 8 měsíců | AH185: 88 | AI185: 120901.4608 | AJ185: 1000 | AK185: 0 | AL185: 0 | AM185: 230 | AN185: 302.2536521 | AO185: 121203.7145 | AP185: 0 | AQ185: =$B$12+SUM($AJ$98:AJ185,$AL$98:AL185) -> 88000 | AR185: =SUM($AM$98:AM185,$AN$98:AN185,$AP$98:AP185) -> 33203.71449 | AS185: =SUM($AM$98:AM185,$AP$98:AP185) -> 20240 | AT185: =(AR185/(AVERAGE($AQ$98:AQ185))/AH185*12) -> 0.1017478483 | AU185: =(AS185/(AVERAGE($AQ$98:AQ185))/AH185*12) -> 0.06202247191
AB186: 1932 | AC186: 60 let a 6 měsíců | AH186: 89 | AI186: 122433.7145 | AJ186: 1000 | AK186: 0 | AL186: 0 | AM186: 230 | AN186: 306.0842862 | AO186: 122739.7988 | AP186: 0 | AQ186: =$B$12+SUM($AJ$98:AJ186,$AL$98:AL186) -> 89000 | AR186: =SUM($AM$98:AM186,$AN$98:AN186,$AP$98:AP186) -> 33739.79877 | AS186: =SUM($AM$98:AM186,$AP$98:AP186) -> 20470 | AT186: =(AR186/(AVERAGE($AQ$98:AQ186))/AH186*12) -> 0.10109303 | AU186: =(AS186/(AVERAGE($AQ$98:AQ186))/AH186*12) -> 0.06133333333
AB187: 1931 | AC187: 60 let a 4 měsíce | AH187: 90 | AI187: 123969.7988 | AJ187: 1000 | AK187: 0 | AL187: 0 | AM187: 230 | AN187: 309.9244969 | AO187: 124279.7233 | AP187: 0 | AQ187: =$B$12+SUM($AJ$98:AJ187,$AL$98:AL187) -> 90000 | AR187: =SUM($AM$98:AM187,$AN$98:AN187,$AP$98:AP187) -> 34279.72327 | AS187: =SUM($AM$98:AM187,$AP$98:AP187) -> 20700 | AT187: =(AR187/(AVERAGE($AQ$98:AQ187))/AH187*12) -> 0.1004534015 | AU187: =(AS187/(AVERAGE($AQ$98:AQ187))/AH187*12) -> 0.06065934066
AB188: 1930 | AC188: 60 let a 2 měsíce | AH188: 91 | AI188: 125509.7233 | AJ188: 1000 | AK188: 0 | AL188: 0 | AM188: 230 | AN188: 313.7743082 | AO188: 125823.4976 | AP188: 0 | AQ188: =$B$12+SUM($AJ$98:AJ188,$AL$98:AL188) -> 91000 | AR188: =SUM($AM$98:AM188,$AN$98:AN188,$AP$98:AP188) -> 34823.49758 | AS188: =SUM($AM$98:AM188,$AP$98:AP188) -> 20930 | AT188: =(AR188/(AVERAGE($AQ$98:AQ188))/AH188*12) -> 0.09982846893 | AU188: =(AS188/(AVERAGE($AQ$98:AQ188))/AH188*12) -> 0.06
AB189: 1929 | AC189: 60 let | AH189: 92 | AI189: 127053.4976 | AJ189: 1000 | AK189: 0 | AL189: 0 | AM189: 230 | AN189: 317.6337439 | AO189: 127371.1313 | AP189: 0 | AQ189: =$B$12+SUM($AJ$98:AJ189,$AL$98:AL189) -> 92000 | AR189: =SUM($AM$98:AM189,$AN$98:AN189,$AP$98:AP189) -> 35371.13132 | AS189: =SUM($AM$98:AM189,$AP$98:AP189) -> 21160 | AT189: =(AR189/(AVERAGE($AQ$98:AQ189))/AH189*12) -> 0.09921775967 | AU189: =(AS189/(AVERAGE($AQ$98:AQ189))/AH189*12) -> 0.05935483871
AH190: 93 | AI190: 128601.1313 | AJ190: 1000 | AK190: 0 | AL190: 0 | AM190: 230 | AN190: 321.5028283 | AO190: 128922.6342 | AP190: 0 | AQ190: =$B$12+SUM($AJ$98:AJ190,$AL$98:AL190) -> 93000 | AR190: =SUM($AM$98:AM190,$AN$98:AN190,$AP$98:AP190) -> 35922.63415 | AS190: =SUM($AM$98:AM190,$AP$98:AP190) -> 21390 | AT190: =(AR190/(AVERAGE($AQ$98:AQ190))/AH190*12) -> 0.09862082128 | AU190: =(AS190/(AVERAGE($AQ$98:AQ190))/AH190*12) -> 0.05872340426
AH191: 94 | AI191: 130152.6342 | AJ191: 1000 | AK191: 0 | AL191: 0 | AM191: 230 | AN191: 325.3815854 | AO191: 130478.0157 | AP191: 0 | AQ191: =$B$12+SUM($AJ$98:AJ191,$AL$98:AL191) -> 94000 | AR191: =SUM($AM$98:AM191,$AN$98:AN191,$AP$98:AP191) -> 36478.01574 | AS191: =SUM($AM$98:AM191,$AP$98:AP191) -> 21620 | AT191: =(AR191/(AVERAGE($AQ$98:AQ191))/AH191*12) -> 0.09803722034 | AU191: =(AS191/(AVERAGE($AQ$98:AQ191))/AH191*12) -> 0.05810526316
AH192: 95 | AI192: 131708.0157 | AJ192: 1000 | AK192: 0 | AL192: 0 | AM192: 230 | AN192: 329.2700393 | AO192: 132037.2858 | AP192: 0 | AQ192: =$B$12+SUM($AJ$98:AJ192,$AL$98:AL192) -> 95000 | AR192: =SUM($AM$98:AM192,$AN$98:AN192,$AP$98:AP192) -> 37037.28577 | AS192: =SUM($AM$98:AM192,$AP$98:AP192) -> 21850 | AT192: =(AR192/(AVERAGE($AQ$98:AQ192))/AH192*12) -> 0.09746654151 | AU192: =(AS192/(AVERAGE($AQ$98:AQ192))/AH192*12) -> 0.0575
AH193: 96 | AI193: 133267.2858 | AJ193: 1000 | AK193: 0 | AL193: 0 | AM193: 230 | AN193: 333.1682144 | AO193: 133600.454 | AP193: 0 | AQ193: =$B$12+SUM($AJ$98:AJ193,$AL$98:AL193) -> 96000 | AR193: =SUM($AM$98:AM193,$AN$98:AN193,$AP$98:AP193) -> 37600.45399 | AS193: =SUM($AM$98:AM193,$AP$98:AP193) -> 22080 | AT193: =(AR193/(AVERAGE($AQ$98:AQ193))/AH193*12) -> 0.09690838657 | AU193: =(AS193/(AVERAGE($AQ$98:AQ193))/AH193*12) -> 0.05690721649
AH194: 97 | AI194: 134830.454 | AJ194: 1000 | AK194: 0 | AL194: 0 | AM194: 230 | AN194: 337.076135 | AO194: 135167.5301 | AP194: 0 | AQ194: =$B$12+SUM($AJ$98:AJ194,$AL$98:AL194) -> 97000 | AR194: =SUM($AM$98:AM194,$AN$98:AN194,$AP$98:AP194) -> 38167.53012 | AS194: =SUM($AM$98:AM194,$AP$98:AP194) -> 22310 | AT194: =(AR194/(AVERAGE($AQ$98:AQ194))/AH194*12) -> 0.09636237355 | AU194: =(AS194/(AVERAGE($AQ$98:AQ194))/AH194*12) -> 0.05632653061
AH195: 98 | AI195: 136397.5301 | AJ195: 1000 | AK195: 0 | AL195: 0 | AM195: 230 | AN195: 340.9938253 | AO195: 136738.5239 | AP195: 0 | AQ195: =$B$12+SUM($AJ$98:AJ195,$AL$98:AL195) -> 98000 | AR195: =SUM($AM$98:AM195,$AN$98:AN195,$AP$98:AP195) -> 38738.52395 | AS195: =SUM($AM$98:AM195,$AP$98:AP195) -> 22540 | AT195: =(AR195/(AVERAGE($AQ$98:AQ195))/AH195*12) -> 0.09582813593 | AU195: =(AS195/(AVERAGE($AQ$98:AQ195))/AH195*12) -> 0.05575757576
AH196: 99 | AI196: 137968.5239 | AJ196: 1000 | AK196: 0 | AL196: 0 | AM196: 230 | AN196: 344.9213099 | AO196: 138313.4453 | AP196: 0 | AQ196: =$B$12+SUM($AJ$98:AJ196,$AL$98:AL196) -> 99000 | AR196: =SUM($AM$98:AM196,$AN$98:AN196,$AP$98:AP196) -> 39313.44526 | AS196: =SUM($AM$98:AM196,$AP$98:AP196) -> 22770 | AT196: =(AR196/(AVERAGE($AQ$98:AQ196))/AH196*12) -> 0.09530532184 | AU196: =(AS196/(AVERAGE($AQ$98:AQ196))/AH196*12) -> 0.0552
AH197: 100 | AI197: 139543.4453 | AJ197: 1000 | AK197: 0 | AL197: 0 | AM197: 230 | AN197: 348.8586131 | AO197: 139892.3039 | AP197: 0 | AQ197: =$B$12+SUM($AJ$98:AJ197,$AL$98:AL197) -> 100000 | AR197: =SUM($AM$98:AM197,$AN$98:AN197,$AP$98:AP197) -> 39892.30387 | AS197: =SUM($AM$98:AM197,$AP$98:AP197) -> 23000 | AT197: =(AR197/(AVERAGE($AQ$98:AQ197))/AH197*12) -> 0.09479359336 | AU197: =(AS197/(AVERAGE($AQ$98:AQ197))/AH197*12) -> 0.05465346535
AH198: 101 | AI198: 141122.3039 | AJ198: 1000 | AK198: 0 | AL198: 0 | AM198: 230 | AN198: 352.8057597 | AO198: 141475.1096 | AP198: 0 | AQ198: =$B$12+SUM($AJ$98:AJ198,$AL$98:AL198) -> 101000 | AR198: =SUM($AM$98:AM198,$AN$98:AN198,$AP$98:AP198) -> 40475.10963 | AS198: =SUM($AM$98:AM198,$AP$98:AP198) -> 23230 | AT198: =(AR198/(AVERAGE($AQ$98:AQ198))/AH198*12) -> 0.09429262582 | AU198: =(AS198/(AVERAGE($AQ$98:AQ198))/AH198*12) -> 0.05411764706
AH199: 102 | AI199: 142705.1096 | AJ199: 1000 | AK199: 0 | AL199: 0 | AM199: 230 | AN199: 356.7627741 | AO199: 143061.8724 | AP199: 0 | AQ199: =$B$12+SUM($AJ$98:AJ199,$AL$98:AL199) -> 102000 | AR199: =SUM($AM$98:AM199,$AN$98:AN199,$AP$98:AP199) -> 41061.87241 | AS199: =SUM($AM$98:AM199,$AP$98:AP199) -> 23460 | AT199: =(AR199/(AVERAGE($AQ$98:AQ199))/AH199*12) -> 0.09380210715 | AU199: =(AS199/(AVERAGE($AQ$98:AQ199))/AH199*12) -> 0.05359223301
AH200: 103 | AI200: 144291.8724 | AJ200: 1000 | AK200: 0 | AL200: 0 | AM200: 230 | AN200: 360.729681 | AO200: 144652.6021 | AP200: 0 | AQ200: =$B$12+SUM($AJ$98:AJ200,$AL$98:AL200) -> 103000 | AR200: =SUM($AM$98:AM200,$AN$98:AN200,$AP$98:AP200) -> 41652.60209 | AS200: =SUM($AM$98:AM200,$AP$98:AP200) -> 23690 | AT200: =(AR200/(AVERAGE($AQ$98:AQ200))/AH200*12) -> 0.09332173731 | AU200: =(AS200/(AVERAGE($AQ$98:AQ200))/AH200*12) -> 0.05307692308
AH201: 104 | AI201: 145882.6021 | AJ201: 1000 | AK201: 0 | AL201: 0 | AM201: 230 | AN201: 364.7065052 | AO201: 146247.3086 | AP201: 0 | AQ201: =$B$12+SUM($AJ$98:AJ201,$AL$98:AL201) -> 104000 | AR201: =SUM($AM$98:AM201,$AN$98:AN201,$AP$98:AP201) -> 42247.30859 | AS201: =SUM($AM$98:AM201,$AP$98:AP201) -> 23920 | AT201: =(AR201/(AVERAGE($AQ$98:AQ201))/AH201*12) -> 0.09285122768 | AU201: =(AS201/(AVERAGE($AQ$98:AQ201))/AH201*12) -> 0.05257142857
AH202: 105 | AI202: 147477.3086 | AJ202: 1000 | AK202: 0 | AL202: 0 | AM202: 230 | AN202: 368.6932715 | AO202: 147846.0019 | AP202: 0 | AQ202: =$B$12+SUM($AJ$98:AJ202,$AL$98:AL202) -> 105000 | AR202: =SUM($AM$98:AM202,$AN$98:AN202,$AP$98:AP202) -> 42846.00186 | AS202: =SUM($AM$98:AM202,$AP$98:AP202) -> 24150 | AT202: =(AR202/(AVERAGE($AQ$98:AQ202))/AH202*12) -> 0.09239030052 | AU202: =(AS202/(AVERAGE($AQ$98:AQ202))/AH202*12) -> 0.0520754717
AH203: 106 | AI203: 149076.0019 | AJ203: 1000 | AK203: 0 | AL203: 0 | AM203: 230 | AN203: 372.6900047 | AO203: 149448.6919 | AP203: 0 | AQ203: =$B$12+SUM($AJ$98:AJ203,$AL$98:AL203) -> 106000 | AR203: =SUM($AM$98:AM203,$AN$98:AN203,$AP$98:AP203) -> 43448.69187 | AS203: =SUM($AM$98:AM203,$AP$98:AP203) -> 24380 | AT203: =(AR203/(AVERAGE($AQ$98:AQ203))/AH203*12) -> 0.09193868849 | AU203: =(AS203/(AVERAGE($AQ$98:AQ203))/AH203*12) -> 0.05158878505
AH204: 107 | AI204: 150678.6919 | AJ204: 1000 | AK204: 0 | AL204: 0 | AM204: 230 | AN204: 376.6967297 | AO204: 151055.3886 | AP204: 0 | AQ204: =$B$12+SUM($AJ$98:AJ204,$AL$98:AL204) -> 107000 | AR204: =SUM($AM$98:AM204,$AN$98:AN204,$AP$98:AP204) -> 44055.3886 | AS204: =SUM($AM$98:AM204,$AP$98:AP204) -> 24610 | AT204: =(AR204/(AVERAGE($AQ$98:AQ204))/AH204*12) -> 0.09149613416 | AU204: =(AS204/(AVERAGE($AQ$98:AQ204))/AH204*12) -> 0.05111111111
AH205: 108 | AI205: 152285.3886 | AJ205: 1000 | AK205: 0 | AL205: 0 | AM205: 230 | AN205: 380.7134715 | AO205: 152666.1021 | AP205: 0 | AQ205: =$B$12+SUM($AJ$98:AJ205,$AL$98:AL205) -> 108000 | AR205: =SUM($AM$98:AM205,$AN$98:AN205,$AP$98:AP205) -> 44666.10207 | AS205: =SUM($AM$98:AM205,$AP$98:AP205) -> 24840 | AT205: =(AR205/(AVERAGE($AQ$98:AQ205))/AH205*12) -> 0.09106238954 | AU205: =(AS205/(AVERAGE($AQ$98:AQ205))/AH205*12) -> 0.05064220183
AH206: 109 | AI206: 153896.1021 | AJ206: 1000 | AK206: 0 | AL206: 0 | AM206: 230 | AN206: 384.7402552 | AO206: 154280.8423 | AP206: 0 | AQ206: =$B$12+SUM($AJ$98:AJ206,$AL$98:AL206) -> 109000 | AR206: =SUM($AM$98:AM206,$AN$98:AN206,$AP$98:AP206) -> 45280.84232 | AS206: =SUM($AM$98:AM206,$AP$98:AP206) -> 25070 | AT206: =(AR206/(AVERAGE($AQ$98:AQ206))/AH206*12) -> 0.09063721566 | AU206: =(AS206/(AVERAGE($AQ$98:AQ206))/AH206*12) -> 0.05018181818
AH207: 110 | AI207: 155510.8423 | AJ207: 1000 | AK207: 0 | AL207: 0 | AM207: 230 | AN207: 388.7771058 | AO207: 155899.6194 | AP207: 0 | AQ207: =$B$12+SUM($AJ$98:AJ207,$AL$98:AL207) -> 110000 | AR207: =SUM($AM$98:AM207,$AN$98:AN207,$AP$98:AP207) -> 45899.61943 | AS207: =SUM($AM$98:AM207,$AP$98:AP207) -> 25300 | AT207: =(AR207/(AVERAGE($AQ$98:AQ207))/AH207*12) -> 0.09022038217 | AU207: =(AS207/(AVERAGE($AQ$98:AQ207))/AH207*12) -> 0.04972972973
AH208: 111 | AI208: 157129.6194 | AJ208: 1000 | AK208: 0 | AL208: 0 | AM208: 230 | AN208: 392.8240486 | AO208: 157522.4435 | AP208: 0 | AQ208: =$B$12+SUM($AJ$98:AJ208,$AL$98:AL208) -> 111000 | AR208: =SUM($AM$98:AM208,$AN$98:AN208,$AP$98:AP208) -> 46522.44348 | AS208: =SUM($AM$98:AM208,$AP$98:AP208) -> 25530 | AT208: =(AR208/(AVERAGE($AQ$98:AQ208))/AH208*12) -> 0.08981166695 | AU208: =(AS208/(AVERAGE($AQ$98:AQ208))/AH208*12) -> 0.04928571429
AH209: 112 | AI209: 158752.4435 | AJ209: 1000 | AK209: 0 | AL209: 0 | AM209: 230 | AN209: 396.8811087 | AO209: 159149.3246 | AP209: 0 | AQ209: =$B$12+SUM($AJ$98:AJ209,$AL$98:AL209) -> 112000 | AR209: =SUM($AM$98:AM209,$AN$98:AN209,$AP$98:AP209) -> 47149.32459 | AS209: =SUM($AM$98:AM209,$AP$98:AP209) -> 25760 | AT209: =(AR209/(AVERAGE($AQ$98:AQ209))/AH209*12) -> 0.08941085573 | AU209: =(AS209/(AVERAGE($AQ$98:AQ209))/AH209*12) -> 0.04884955752
AH210: 113 | AI210: 160379.3246 | AJ210: 1000 | AK210: 0 | AL210: 0 | AM210: 230 | AN210: 400.9483115 | AO210: 160780.2729 | AP210: 0 | AQ210: =$B$12+SUM($AJ$98:AJ210,$AL$98:AL210) -> 113000 | AR210: =SUM($AM$98:AM210,$AN$98:AN210,$AP$98:AP210) -> 47780.2729 | AS210: =SUM($AM$98:AM210,$AP$98:AP210) -> 25990 | AT210: =(AR210/(AVERAGE($AQ$98:AQ210))/AH210*12) -> 0.08901774178 | AU210: =(AS210/(AVERAGE($AQ$98:AQ210))/AH210*12) -> 0.04842105263
AH211: 114 | AI211: 162010.2729 | AJ211: 1000 | AK211: 0 | AL211: 0 | AM211: 230 | AN211: 405.0256822 | AO211: 162415.2986 | AP211: 0 | AQ211: =$B$12+SUM($AJ$98:AJ211,$AL$98:AL211) -> 114000 | AR211: =SUM($AM$98:AM211,$AN$98:AN211,$AP$98:AP211) -> 48415.29858 | AS211: =SUM($AM$98:AM211,$AP$98:AP211) -> 26220 | AT211: =(AR211/(AVERAGE($AQ$98:AQ211))/AH211*12) -> 0.08863212555 | AU211: =(AS211/(AVERAGE($AQ$98:AQ211))/AH211*12) -> 0.048
AH212: 115 | AI212: 163645.2986 | AJ212: 1000 | AK212: 0 | AL212: 0 | AM212: 230 | AN212: 409.1132465 | AO212: 164054.4118 | AP212: 0 | AQ212: =$B$12+SUM($AJ$98:AJ212,$AL$98:AL212) -> 115000 | AR212: =SUM($AM$98:AM212,$AN$98:AN212,$AP$98:AP212) -> 49054.41183 | AS212: =SUM($AM$98:AM212,$AP$98:AP212) -> 26450 | AT212: =(AR212/(AVERAGE($AQ$98:AQ212))/AH212*12) -> 0.08825381438 | AU212: =(AS212/(AVERAGE($AQ$98:AQ212))/AH212*12) -> 0.0475862069
AH213: 116 | AI213: 165284.4118 | AJ213: 1000 | AK213: 0 | AL213: 0 | AM213: 230 | AN213: 413.2110296 | AO213: 165697.6229 | AP213: 0 | AQ213: =$B$12+SUM($AJ$98:AJ213,$AL$98:AL213) -> 116000 | AR213: =SUM($AM$98:AM213,$AN$98:AN213,$AP$98:AP213) -> 49697.62286 | AS213: =SUM($AM$98:AM213,$AP$98:AP213) -> 26680 | AT213: =(AR213/(AVERAGE($AQ$98:AQ213))/AH213*12) -> 0.08788262221 | AU213: =(AS213/(AVERAGE($AQ$98:AQ213))/AH213*12) -> 0.04717948718
AH214: 117 | AI214: 166927.6229 | AJ214: 1000 | AK214: 0 | AL214: 0 | AM214: 230 | AN214: 417.3190571 | AO214: 167344.9419 | AP214: 0 | AQ214: =$B$12+SUM($AJ$98:AJ214,$AL$98:AL214) -> 117000 | AR214: =SUM($AM$98:AM214,$AN$98:AN214,$AP$98:AP214) -> 50344.94191 | AS214: =SUM($AM$98:AM214,$AP$98:AP214) -> 26910 | AT214: =(AR214/(AVERAGE($AQ$98:AQ214))/AH214*12) -> 0.08751836926 | AU214: =(AS214/(AVERAGE($AQ$98:AQ214))/AH214*12) -> 0.04677966102
... 883 more rows

Sheet kalkulačka DPS konverze
C2: Kalkulačka srovnání DPS a penzijního připojištění
B6: Zadejte vstupní parametry | E6: Volba strategie spoření: | I6: Předpoklad zhodnocení Transformovaného fondu
B9: Měsíc narození klienta: | C9: 1
B10: Rok narození klienta: | C10: 1987 | G10: =$AF$51 -> 0.046 | K10: =$AK$51 -> 0.01
B11: Měsíční příspěvek klienta: | C11: 1000 | E11: Výpočet pro doplňkové penzijní spoření | I11: Výpočet pro transformovaný fond
B12: Měsíční příspěvek zaměstnavatele: | C12: 1000
B13: Převod prostředků | C13: 40000 | E13: Celkem naspořeno: | F13: =IF($AH$68=1,AH80,AI80) -> 1664067.523 | I13: Celkem naspořeno: | J13: =IF($AK$68=1,AK80,AL80) -> 914927.5093
B14: Měsíc počátku spoření: | C14: 1 | E14: z toho zhodnocení PSČP: | F14: =IF($AH$68=1,AH81,AI81) -> 877017.5233 | I14: z toho zhodnocení PSČP: | J14: =IF($AK$68=1,AK81,AL81) -> 127877.5093
B15: Rok počátku spoření: | C15: 2019
E16: Jednorázové vyrovnání | I16: Jednorázové vyrovnání
E17: Celkem k výplatě: | F17: =IF($AH$68=1,AH89,AI89) -> 1482264.895 | I17: Celkem k výplatě: | J17: =IF($AK$68=1,AK89,AL89) -> 845495.8829
B18: Možnost čerpání JV od (měsíc/rok): | C18: =IF($AH$68=1,AH69,AI69) -> 1 / 2047
B19: Počet měsíců trvání spoření: | C19: =IF($AH$68=1,AH70,AI70) -> 335
B21: Informace o zprostředkovateli
B22: Jméno a příjmení:
B24: Kontakt telefon a/nebo email:
B27: Společnost:
B30: Datum tvorby kalkulace: | C30: =TODAY() -> 2019-01-04
B32: Jméno a příjmení klienta:
B36: UPOZORNĚNÍ:
B37: Zobrazené výpočty mají pouze informativní charakter. Výnosy účastnických fondů PSČP v minulosti nejsou zárukou výnosů v budoucnosti. Budoucí výnosy budou vždy závislé na vývoji kapitálových trhů. Díky vlivům různých rizik spojených s investováním na kapitálových trzích může hodnota investice v čase kolísat.
B38: Předpoklady výpočtů:
B39: Kalkulačka DPS nepočítá se zákonnou investiční brzdou.
B40: Zákonem dané podmínky zohledněné ve výpočtech:
B41: Podmínkou pro nárok na jednorázové vyrovnání nebo pravidelnou penzi jsou dosažení 60 let věku a zároveň minimálně 5 let spoření.
B42: JV je sníženo o zdanění příspěvku zaměstnavatele a zhodnocení daní z příjmů (15%) | AF42: 1 | AG42: 10 | AH42: =AI42-0.01-((AI42-0.01)*0.15) -> 0.0765 | AI42: 0.1
AF43: 1 | AG43: 9 | AH43: 0.068 | AI43: 0.09
AF44: 2 | AG44: 5 | AH44: 0.034 | AI44: 0.05
AF45: 2 | AG45: 4 | AH45: 0.0255 | AI45: 0.04
AF46: 2 | AG46: 3 | AH46: 0.017 | AI46: 0.03
AF47: 3 | AG47: 2 | AH47: 0.0085 | AI47: 0.02
AB48: příspěvky klienta | AF48: 3 | AG48: 1 | AH48: 0 | AI48: 0.01
R49: příspěvky klienta | S49: příspěvky zaměstnavatele | T49: státní příspěvky | U49: zhodnocení PSČP | V49: Možnost čerpání od (měsíc/rok): | W49: Počet měsíců trvání spoření: | X49: Celkem naspořeno: | AB49: příspěvky zaměstnavatele | AF49: 3 | AG49: 0 | AH49: =AI49-0.01-((AI49-0.01)*0.15) -> -0.0085 | AI49: 0
Q50: DPS | R50: =IF($AH$68=1,AH72+AH74,AI72+AI74) -> 375000 | S50: =IF($AH$68=1,AH76,AI76) -> 335000 | T50: =IF($AH$68=1,AH78,AI78) -> 77050 | U50: =IF($AH$68=1,AH81,AI81) -> 877017.5233 | V50: =IF($AH$68=1,AH69,AI69) -> 1 / 2047 | W50: =IF($AH$68=1,AH70,AI70) -> 335 | X50: =IF($AH$68=1,AH80,AI80) -> 1664067.523 | AB50: státní příspěvky
Q51: TF | R51: =IF($AK$68=1,AK72+AK74,AL72+AL74) -> 375000 | S51: =IF($AK$68=1,AK76,AL76) -> 335000 | T51: =IF($AK$68=1,AK78,AL78) -> 77050 | U51: =IF($AK$68=1,AK81,AL81) -> 127877.5093 | V51: =IF($AK$68=1,AK69,AL69) -> 1 / 2047 | W51: =IF($AK$68=1,AK70,AL70) -> 335 | X51: =IF($AK$68=1,AK80,AL80) -> 914927.5093 | AB51: zhodnocení PSČP | AE51: zhodnocení | AF51: =AG51/1000 -> 0.046 | AG51: 46 | AK51: =AL51/1000 -> 0.01 | AL51: 10
AE52: povinný konzervativní fond | AF52: =AG52*0.85 -> 0.0075735 | AG52: =AH52-0.004-((AH52-0.004)*0.01) -> 0.00891 | AH52: 0.013
AE53: Státní příspěvek | AF53: =IF($C$11<300,0,MIN(0.2*$C$11+30,230)) -> 230
AE54: Měsíční sleva na dani | AF54: =MIN(300,(IF(C11>=1000,(C11-1000)*0.15,0))) -> 0
AE56: počátek spoření | AF56: =C15+C14/12 -> 2019.083333
AE57: narození | AF57: =C10+C9/12 -> 1987.083333
AE58: aktuální věk | AF58: =AF56-AF57 -> 32
AE59: věk odchodu do důchodu | AF59: =VLOOKUP(C10,AC98:AD188,2,0) -> 68 let a 8 měsíců | AG59: =VALUE(MID(AF59,1,2)) -> 68 | AH59: =IF(LEN($AF$59)>6,VALUE(MID($AF$59,10,2))/12,0) -> 0.6666666667 | AI59: =AG59+AH59 -> 68.66666667
AE60: rok odchodu do důchodu | AF60: =AF57+AI59 -> 2055.75 | AG60: =LEFT(AF60,4) -> 2055 | AH60: =IF(AG60-AF60<>0,ROUND((AF60-LEFT(AF60,4))*12,0),12) -> 9
AE61: čerpání odbytného | AF61: =AF56+((1+C22)/12) -> 2019.166667 | AG61: =LEFT(AF61,4) -> 2019 | AH61: =IF(AG61-AF61<>0,ROUND((AF61-LEFT(AF61,4))*12,0),12) -> 2
AE62: 18 let první měsíc | AF62: =AF57+18 -> 2005.083333 | AG62: =LEFT(AF62,4) -> 2005 | AH62: =IF(AG62-AF62<>0,ROUND((AF62-LEFT(AF62,4))*12,0),12) -> 1 | AI62: =CONCATENATE(AH62," / ",AG62) -> 1 / 2005
AE63: 18 let poslední měsíc | AF63: =AF57+19 -> 2006.083333 | AG63: =LEFT(AF63,4) -> 2006 | AH63: =IF(AG63-AF63<>0,ROUND((AF63-LEFT(AF63,4))*12,0),12) -> 1 | AI63: =CONCATENATE(AH63," / ",AG63) -> 1 / 2006
AE64: 60 let první měsíc | AF64: =AF57+60 -> 2047.083333 | AG64: =LEFT(AF64,4) -> 2047 | AH64: =IF(AG64-AF64<>0,ROUND((AF64-LEFT(AF64,4))*12,0),12) -> 1 | AI64: =CONCATENATE(AH64," / ",AG64) -> 1 / 2047
AK66: TF | AN66: TF dle kalkulačky na webu
AF67: Odbytné | AG67: Část odb - 18 | AH67: důchodový věk | AI67: 5-ti leté spoření | AK67: důchodový věk | AL67: 5-ti leté spoření | AN67: důchodový věk | AO67: 5-ti leté spoření
AE68: oprávněnost nároku na (ok=1): | AF68: =IF(C22>=24,1,0) -> 0 | AG68: =IF(AF58<8,IF(AG70>=120,1,"")) -> FALSE | AH68: =IF((AF64-5)>=AF56,1,0) -> 1 | AK68: =IF((AF64-5)>=AF56,1,0) -> 1 | AN68: =IF((AF64-5)>=AF56,1,0) -> 1
AE69: datum ukončení/částečného odbytného | AF69: =CONCATENATE(AH61," / ", AG61) -> 2 / 2019 | AG69: =AI62 -> 1 / 2005 | AH69: =IF(AF64-AG64<>0,CONCATENATE(AH64," / ", AG64),CONCATENATE(AH64," / ", AG64-1)) -> 1 / 2047 | AI69: =CONCATENATE(C14," / ", C15+5) -> 1 / 2024 | AK69: =IF(AF64-AG64<>0,CONCATENATE(AH64," / ", AG64),CONCATENATE(AH64," / ", AG64-1)) -> 1 / 2047 | AL69: =CONCATENATE(C14," / ", C15+5) -> 1 / 2024 | AN69: =IF(AF64-AG64<>0,CONCATENATE(AH64," / ", AG64),CONCATENATE(AH64," / ", AG64-1)) -> 1 / 2047 | AO69: =CONCATENATE(C14," / ", C15+5) -> 1 / 2024
AE70: počet měsíců trvání spoření | AF70: =C22 -> 0 | AG70: =IF((AF62-AF56)<0,0,(AF62-AF56)*12) -> 0 | AH70: =IF((AF64-AF56)<0,0,(AF64-AF56)*12)-1 -> 335 | AI70: 60 | AK70: =IF((AF64-AF56)<0,0,(AF64-AF56)*12)-1 -> 335 | AL70: 60 | AN70: =IF((AF64-AF56)<0,0,(AF64-AF56)*12)-1 -> 335 | AO70: 60
AE71: počet měsíců spoření | AF71: =AF70 -> 0 | AG71: =AG70 -> 0 | AH71: =AH70 -> 335 | AI71: =AI70 -> 60 | AJ71: =MAX(AH71,AI71) -> 335 | AK71: =AH70 -> 335 | AL71: =AL70 -> 60 | AN71: =AH70 -> 335 | AO71: =AO70 -> 60
AE72: Výše předplatného | AF72: =IF(AF70<=0,0,$C$13) -> 0 | AG72: =IF(AG70<=0,0,$C$13) -> 0 | AH72: =IF(AH70<=0,0,$C$13) -> 40000 | AI72: =IF(AI70<=0,0,C13) -> 40000 | AK72: =IF(AK70<=0,0,$C$13) -> 40000 | AL72: =IF(AL70<=0,0,C13) -> 40000 | AN72: =IF(AN70<=0,0,$C$13) -> 40000 | AO72: =IF(AO70<=0,0,C13) -> 40000
AE73: Zhodnocení Předplatného | AF73: =IF(AF70<=0,0,((AF72*(1+$AF$51/12)^AF70)-AF72)) -> 0 | AG73: =IF(AG70<=0,0,((AG72*(1+$AF$51/12)^AG70)-AG72)) -> 0 | AH73: =IF(AH70<=0,0,((AH72*(1+$AF$51/12)^AH70)-AH72)) -> 104112.043 | AI73: =IF(AI70<=0,0,((AI72*(1+AF51/12)^AI70)-AI72)) -> 10321.8685 | AK73: =IF(AH70<=0,0,((AH72*(1+$AK$51/12)^AH70)-AH72)) -> 12874.95921 | AL73: =IF(AL70<=0,0,((AL72*(1+AK51/12)^AL70)-AL72)) -> 2049.968291 | AN73: =IF(AK70<=0,0,((AK72*(1+$AK$51)^(AK70/12))-AK72)) -> 12807.83257 | AO73: =IF(AO70<=0,0,((AO72*(1+AK51/12)^AO70)-AO72)) -> 2049.968291
AE74: Pravidelné příspěvky klienta celkem | AF74: =IF(AF71<=0,0,($C$11*AF71)) -> 0 | AG74: =IF(AG71<=0,0,($C$11*AG71)) -> 0 | AH74: =IF(AH71<=0,0,($C$11*AH71)) -> 335000 | AI74: =IF(AI71<=0,0,(C11*AI71)) -> 60000 | AK74: =IF(AK71<=0,0,($C$11*AK71)) -> 335000 | AL74: =IF(AL71<=0,0,(C11*AL71)) -> 60000 | AN74: =IF(AN71<=0,0,($C$11*AN71)) -> 335000 | AO74: =IF(AO71<=0,0,(C11*AO71)) -> 60000
AE75: Zhodnocení pravidelné příspěvky klienta | AF75: =IF(AF71<=0,0,(FV($AF$51/12,AF71,-$C$11,,1)-AF74)) -> 0 | AG75: =IF(AG71<=0,0,(FV($AF$51/12,AG71,-$C$11,,1)-AG74)) -> 0 | AH75: =IF(AH71<=0,0,(FV($AF$51/12,AH71,-$C$11,,1)-AH74)) -> 346594.3858 | AI75: =IF(AI71<=0,0,(FV(AF51/12,AI71,-C11,,1)-AI74)) -> 7574.580431 | AK75: =IF(AK71<=0,0,(FV($AK$51/12,AK71,-$C$11,,1)-AK74)) -> 51570.65027 | AL75: =IF(AL71<=0,0,(FV(AK51/12,AL71,-C11,,1)-AL74)) -> 1550.297946 | AN75: =IF(AN71<=0,0,(FV((1+$AK$51)^(1/12)-1,AN71,-$C$11,,1)-AN74)) -> 51313.08585 | AO75: =IF(AO71<=0,0,(FV((1+AK51)^(1/12)-1,AO71,-$C$11,,1)-AO74)) -> 1543.121404
AE76: Příspěvky zaměstnavatele celkem | AF76: =IF(AF70<=0,0,($C$12*AF70)) -> 0 | AG76: =IF(AG70<=0,0,($C$12*AG70)) -> 0 | AH76: =IF(AH70<=0,0,($C$12*AH70)) -> 335000 | AI76: =IF(AI70<=0,0,(C12*AI70)) -> 60000 | AK76: =IF(AK70<=0,0,($C$12*AK70)) -> 335000 | AL76: =IF(AL70<=0,0,(C12*AL70)) -> 60000 | AN76: =IF(AN70<=0,0,($C$12*AN70)) -> 335000 | AO76: =IF(AO70<=0,0,($C$12*AO70)) -> 60000
AE77: Zhodnocení Příspěvek zaměstnavatele | AF77: =IF(AF70<=0,0,(FV($AF$51/12,AF70,-$C$12,,1)-AF76)) -> 0 | AG77: =IF(AG70<=0,0,(FV($AF$51/12,AG70,-$C$12,,1)-AG76)) -> 0 | AH77: =IF(AH70<=0,0,(FV($AF$51/12,AH70,-$C$12,,1)-AH76)) -> 346594.3858 | AI77: =IF(AI70<=0,0,(FV(AF51/12,AI70,-C12,,1)-AI76)) -> 7574.580431 | AK77: =IF(AK70<=0,0,(FV($AK$51/12,AK70,-$C$12,,1)-AK76)) -> 51570.65027 | AL77: =IF(AL70<=0,0,(FV(AK51/12,AL70,-C12,,1)-AL76)) -> 1550.297946 | AN77: =IF(AN70<=0,0,(FV($AK$51/12,AN70,-$C$12,,1)-AN76)) -> 51570.65027 | AO77: =IF(AO70<=0,0,(FV((1+AK51)^(1/12)-1,AO70,-$C$12,,1)-AO76)) -> 1543.121404
AE78: Státní příspěvky celkem | AF78: =IF(AF70<=0,0,($AF$53*AF70)) -> 0 | AG78: =IF(AG70<=0,0,($AF$53*AG70)) -> 0 | AH78: =IF(AH70<=0,0,($AF$53*AH70)) -> 77050 | AI78: =IF(AI70<=0,0,(AF53*AI70)) -> 13800 | AK78: =IF(AK70<=0,0,($AF$53*AK70)) -> 77050 | AL78: =IF(AL70<=0,0,(AF53*AL70)) -> 13800 | AN78: =IF(AN70<=0,0,($AF$53*AN70)) -> 77050 | AO78: =IF(AO70<=0,0,(AF53*AO70)) -> 13800
AE79: Zhodnocení Státní příspěvky | AF79: =IF(AF70<=0,0,(FV($AF$51/12,AF70,-$AF$53,,1)-AF78)) -> 0 | AG79: =IF(AG70<=0,0,(FV($AF$51/12,AG70,-$AF$53,,1)-AG78)) -> 0 | AH79: =IF(AH70<=0,0,(FV($AF$51/12,AH70,-$AF$53,,1)-AH78)) -> 79716.70873 | AI79: =IF(AI70<=0,0,(FV(AF51/12,AI70,-AF53,,1)-AI78)) -> 1742.153499 | AK79: =IF(AK70<=0,0,(FV($AK$51/12,AK70,-$AF$53,,1)-AK78)) -> 11861.24956 | AL79: =IF(AL70<=0,0,(FV(AK51/12,AL70,-AF53,,1)-AL78)) -> 356.5685277 | AN79: =IF(AN70<=0,0,(FV((1+$AK$51)^(3/12)-1,AN70/3,-3*$AF$53,,0)-AN78)) -> 11654.76038 | AO79: =IF(AO70<=0,0,(FV((1+AK51)^(3/12)-1,AO70/3,-3*AF53,,0)-AO78)) -> 331.4597855
AE80: Celkem naspořené konto | AF80: =SUM(AF72:AF79) -> 0 | AG80: =SUM(AG72:AG79) -> 0 | AH80: =SUM(AH72:AH79) -> 1664067.523 | AI80: =SUM(AI72:AI79) -> 201013.1829 | AK80: =SUM(AK72:AK79) -> 914927.5093 | AL80: =SUM(AL72:AL79) -> 179307.1327 | AN80: =SUM(AN72:AN79) -> 914396.3291 | AO80: =SUM(AO72:AO79) -> 179267.6709
AE81: z toho zhodnocení | AF81: =SUM(AF73,AF75,AF77,AF79) -> 0 | AG81: =SUM(AG73,AG75,AG77,AG79) -> 0 | AH81: =SUM(AH73,AH75,AH77,AH79) -> 877017.5233 | AI81: =SUM(AI73,AI75,AI77,AI79) -> 27213.18287 | AK81: =SUM(AK73,AK75,AK77,AK79) -> 127877.5093 | AL81: =SUM(AL73,AL75,AL77,AL79) -> 5507.132712 | AN81: =SUM(AN73,AN75,AN77,AN79) -> 127346.3291 | AO81: =SUM(AO73,AO75,AO77,AO79) -> 5467.670886
AE82: Daňové odpočty celkem | AH82: =IF(AH70<=0,0,($AF$54*AH70)) -> 0 | AI82: =IF(AI70<=0,0,(AF54*AI70)) -> 0 | AK82: =IF(AK70<=0,0,($AF$54*AK70)) -> 0 | AL82: =IF(AL70<=0,0,(AF54*AL70)) -> 0 | AN82: =IF(AN70<=0,0,($AF$54*AN70)) -> 0 | AO82: =IF(AO70<=0,0,(AI54*AO70)) -> 0
AE83: Příspěvek klienta a zaměstnavatele celkem | AF83: =AF74+AF76+AF72 -> 0 | AG83: =AG74+AG76+AG72 -> 0 | AH83: =AH74+AH76+AH72 -> 710000 | AI83: =AI74+AI76+AI72 -> 160000 | AK83: =AK74+AK76+AK72 -> 710000 | AL83: =AL74+AL76+AL72 -> 160000 | AN83: =AN74+AN76+AN72 -> 710000 | AO83: =AO74+AO76+AO72 -> 160000
AE85: počet měsíců trvání spoření | AH85: =(FIXED(AH70,0,0))/1 -> 335 | AI85: =(FIXED(AI70,0,0))/1 -> 60 | AK85: =(FIXED(AK70,0,0))/1 -> 335 | AL85: =(FIXED(AL70,0,0))/1 -> 60 | AN85: =(FIXED(AN70,0,0))/1 -> 335 | AO85: =(FIXED(AO70,0,0))/1 -> 60
AE86: Průměrné zhodnocení | AH86: =VLOOKUP($AH$85,$AI$97:$AU$1096,13,0) -> 0.09089242839 | AI86: =VLOOKUP($AI$85,$AI$97:$AU$1096,13,0) -> 0.0812142235
AE87: Garantované zhodnocení SP a daňových úlev | AH87: =VLOOKUP($AH$85,$AI$97:$AV$1096,14,0) -> 0.007340425532 | AI87: =VLOOKUP($AI$85,$AI$97:$AV$1096,14,0) -> 0.02732673267 | AK87: =(AK78+AK82)/(((AK85/12))*(AK72+AVERAGE(AK74,MIN(AK74,$C$11))*(AK85-AK72/$C$11)/AK85+AVERAGE(AK76,$C$12))) -> 0.007754109359 | AL87: =(AL78+AL82)/(((AL85/12))*(AL72+AVERAGE(AL74,MIN(AL74,$C$11))*MIN(1,(AL85-AL72/$C$11)/AL85)+AVERAGE(AL76,$C$12))) -> 0.03421487603 | AN87: =(AN78+AN82)/(((AN85/12))*(AN72+AVERAGE(AN74,MIN(AN74,$C$11))*(AN85-AN72/$C$11)/AN85+AVERAGE(AN76,$C$12))) -> 0.007754109359 | AO87: =(AO78+AO82)/(((AO85/12))*(AO72+AVERAGE(AO74,MIN(AO74,$C$11))*(AO85-AO72/$C$11)/AO85+AVERAGE(AO76,$C$12))) -> 0.03421487603
AE89: Jednorázové vyrovnání - celkem k výplatě | AH89: =AH80-AH81*0.15-AH76*0.15 -> 1482264.895 | AI89: =AI80-AI81*0.15-AI76*0.15 -> 187931.2054 | AK89: =AK80-AK81*0.15-AK76*0.15 -> 845495.8829 | AL89: =AL80-AL81*0.15-AL76*0.15 -> 169481.0628 | AN89: =AN80-AN81*0.15-AN76*0.15 -> 845044.3797 | AO89: =AO80-AO81*0.15-AO76*0.15 -> 169447.5203
AE90: Pravidelná penze na 3 roky měsíčně | AH90: =PMT($AF$52/12,3*12,-(AH80-AH81*0.15),0,1) -> 43041.56055 | AI90: =PMT($AF$52/12,3*12,-(AI80-AI81*0.15),0,1) -> 5530.925951
AE91: Pravidelná penze na 3 roky celkem k výplatě | AH91: =AH90*3*12 -> 1549496.18 | AI91: =AI90*3*12 -> 199113.3343
AE92: Pravidelná penze na 10 let měsíčně | AH92: =PMT($AF$52/12,10*12,-AH80,0,1) -> 14394.26318 | AI92: =PMT($AF$52/12,10*12,-AI80,0,1) -> 1738.773587
AE93: Pravidelná penze na 10 let celkem k výplatě | AH93: =AH92*10*12 -> 1727311.581 | AI93: =AI92*10*12 -> 208652.8304
AC95: odchod do důchodu dle zákona
AI96: Měsíc spoření | AJ96: Stav účtu na počátku období | AK96: Příspěvek klienta | AL96: Předplatné | AM96: Příspěvěk zaměstnavatele | AN96: Státní příspěvek | AO96: Připsané zhodnocení | AP96: Stav účtu na konci období | AQ96: Daňová úleva | AR96: Příspěvky klienta a zaměstnavatele | AS96: Zhodnocení včetně státního příspěvku a daňových úlev | AT96: Státní příspěvky a daňové úlevy | AU96: průměrné zhodnocení | AV96: garantované zhodnocení SP a daňové úlevy
AC97: rok narození | AD97: muži | AI97: 1 | AJ97: =C13+AK97+AM97+AN97 -> 42230 | AK97: =IF(($AH$70-$AH$71)>=AI97,0,$C$11) -> 1000 | AL97: =IF(($AH$70-$AH$71)>=AI97,$C$11,0) -> 0 | AM97: =$C$12 -> 1000 | AN97: =$AF$53 -> 230 | AO97: =AJ97*$AF$51/12 -> 161.8816667 | AP97: =AJ97+AO97 -> 42391.88167 | AQ97: =$AF$54 -> 0 | AR97: =C13+AK97+AM97 -> 42000 | AS97: =AN97+AO97+AQ97 -> 391.8816667 | AT97: =AN97+AQ97 -> 230 | AU97: =(AS97/(AVERAGE($AR$97:AR97))/AI97*12) -> 0.1119661905 | AV97: =(AT97/(AVERAGE($AR$97:AR97))/AI97*12) -> 0.06571428571
AC98: 2019 | AD98: 74 let | AI98: 2 | AJ98: =AP97+AK98+AM98+AN98 -> 44621.88167 | AK98: 1000 | AL98: 0 | AM98: 1000 | AN98: 230 | AO98: =AJ98*$AF$51/12 -> 171.0505464 | AP98: =AJ98+AO98 -> 44792.93221 | AQ98: =$AF$54 -> 0 | AR98: =$C$13+SUM($AK$97:AK98,$AM$97:AM98) -> 44000 | AS98: =SUM($AN$97:AN98,$AO$97:AO98,$AQ$97:AQ98) -> 792.9322131 | AT98: =SUM($AN$97:AN98,$AQ$97:AQ98) -> 460 | AU98: =(AS98/(AVERAGE($AR$97:AR98))/AI98*12) -> 0.1106417041 | AV98: =(AT98/(AVERAGE($AR$97:AR98))/AI98*12) -> 0.06418604651
AC99: 2018 | AD99: 73 let a 10 měsíců | AI99: 3 | AJ99: 47022.93221 | AK99: 1000 | AL99: 0 | AM99: 1000 | AN99: 230 | AO99: 180.2545735 | AP99: =AJ99+AO99 -> 47203.18679 | AQ99: 0 | AR99: =$C$13+SUM($AK$97:AK99,$AM$97:AM99) -> 46000 | AS99: =SUM($AN$97:AN99,$AO$97:AO99,$AQ$97:AQ99) -> 1203.186787 | AT99: =SUM($AN$97:AN99,$AQ$97:AQ99) -> 690 | AU99: =(AS99/(AVERAGE($AR$97:AR99))/AI99*12) -> 0.109380617 | AV99: =(AT99/(AVERAGE($AR$97:AR99))/AI99*12) -> 0.06272727273
AC100: 2017 | AD100: 73 let a 8 měsíců | AI100: 4 | AJ100: 49433.18679 | AK100: 1000 | AL100: 0 | AM100: 1000 | AN100: 230 | AO100: 189.4938827 | AP100: =AJ100+AO100 -> 49622.68067 | AQ100: 0 | AR100: =$C$13+SUM($AK$97:AK100,$AM$97:AM100) -> 48000 | AS100: =SUM($AN$97:AN100,$AO$97:AO100,$AQ$97:AQ100) -> 1622.680669 | AT100: =SUM($AN$97:AN100,$AQ$97:AQ100) -> 920 | AU100: =(AS100/(AVERAGE($AR$97:AR100))/AI100*12) -> 0.1081787113 | AV100: =(AT100/(AVERAGE($AR$97:AR100))/AI100*12) -> 0.06133333333
AC101: 2016 | AD101: 73 let a 6 měsíců | AI101: 5 | AJ101: 51852.68067 | AK101: 1000 | AL101: 0 | AM101: 1000 | AN101: 230 | AO101: 198.7686092 | AP101: =AJ101+AO101 -> 52051.44928 | AQ101: 0 | AR101: =$C$13+SUM($AK$97:AK101,$AM$97:AM101) -> 50000 | AS101: =SUM($AN$97:AN101,$AO$97:AO101,$AQ$97:AQ101) -> 2051.449278 | AT101: =SUM($AN$97:AN101,$AQ$97:AQ101) -> 1150 | AU101: =(AS101/(AVERAGE($AR$97:AR101))/AI101*12) -> 0.1070321363 | AV101: =(AT101/(AVERAGE($AR$97:AR101))/AI101*12) -> 0.06
AC102: 2015 | AD102: 73 let a 4 měsíce | AI102: 6 | AJ102: 54281.44928 | AK102: 1000 | AL102: 0 | AM102: 1000 | AN102: 230 | AO102: 208.0788889 | AP102: 54489.52817 | AQ102: 0 | AR102: =$C$13+SUM($AK$97:AK102,$AM$97:AM102) -> 52000 | AS102: =SUM($AN$97:AN102,$AO$97:AO102,$AQ$97:AQ102) -> 2489.528167 | AT102: =SUM($AN$97:AN102,$AQ$97:AQ102) -> 1380 | AU102: =(AS102/(AVERAGE($AR$97:AR102))/AI102*12) -> 0.1059373688 | AV102: =(AT102/(AVERAGE($AR$97:AR102))/AI102*12) -> 0.05872340426
AC103: 2014 | AD103: 73 let a 2 měsíce | AI103: 7 | AJ103: 56719.52817 | AK103: 1000 | AL103: 0 | AM103: 1000 | AN103: 230 | AO103: 217.424858 | AP103: 56936.95303 | AQ103: 0 | AR103: =$C$13+SUM($AK$97:AK103,$AM$97:AM103) -> 54000 | AS103: =SUM($AN$97:AN103,$AO$97:AO103,$AQ$97:AQ103) -> 2936.953025 | AT103: =SUM($AN$97:AN103,$AQ$97:AQ103) -> 1610 | AU103: =(AS103/(AVERAGE($AR$97:AR103))/AI103*12) -> 0.1048911795 | AV103: =(AT103/(AVERAGE($AR$97:AR103))/AI103*12) -> 0.0575
AC104: 2013 | AD104: 73 let | AI104: 8 | AJ104: 59166.95303 | AK104: 1000 | AL104: 0 | AM104: 1000 | AN104: 230 | AO104: 226.8066533 | AP104: 59393.75968 | AQ104: 0 | AR104: =$C$13+SUM($AK$97:AK104,$AM$97:AM104) -> 56000 | AS104: =SUM($AN$97:AN104,$AO$97:AO104,$AQ$97:AQ104) -> 3393.759679 | AT104: =SUM($AN$97:AN104,$AQ$97:AQ104) -> 1840 | AU104: =(AS104/(AVERAGE($AR$97:AR104))/AI104*12) -> 0.1038906024 | AV104: =(AT104/(AVERAGE($AR$97:AR104))/AI104*12) -> 0.05632653061
AC105: 2012 | AD105: 72 let a 10 měsíců | AI105: 9 | AJ105: 61623.75968 | AK105: 1000 | AL105: 0 | AM105: 1000 | AN105: 230 | AO105: 236.2244121 | AP105: 61859.98409 | AQ105: 0 | AR105: =$C$13+SUM($AK$97:AK105,$AM$97:AM105) -> 58000 | AS105: =SUM($AN$97:AN105,$AO$97:AO105,$AQ$97:AQ105) -> 3859.984091 | AT105: =SUM($AN$97:AN105,$AQ$97:AQ105) -> 2070 | AU105: =(AS105/(AVERAGE($AR$97:AR105))/AI105*12) -> 0.1029329091 | AV105: =(AT105/(AVERAGE($AR$97:AR105))/AI105*12) -> 0.0552
AC106: 2011 | AD106: 72 let a 8 měsíců | AI106: 10 | AJ106: 64089.98409 | AK106: 1000 | AL106: 0 | AM106: 1000 | AN106: 230 | AO106: 245.6782723 | AP106: =AJ106+AO106 -> 64335.66236 | AQ106: 0 | AR106: =$C$13+SUM($AK$97:AK106,$AM$97:AM106) -> 60000 | AS106: =SUM($AN$97:AN106,$AO$97:AO106,$AQ$97:AQ106) -> 4335.662363 | AT106: =SUM($AN$97:AN106,$AQ$97:AQ106) -> 2300 | AU106: =(AS106/(AVERAGE($AR$97:AR106))/AI106*12) -> 0.102015585 | AV106: =(AT106/(AVERAGE($AR$97:AR106))/AI106*12) -> 0.05411764706
AC107: 2010 | AD107: 72 let a 6 měsíců | AI107: 11 | AJ107: 66565.66236 | AK107: 1000 | AL107: 0 | AM107: 1000 | AN107: 230 | AO107: 255.1683724 | AP107: 66820.83074 | AQ107: 0 | AR107: =$C$13+SUM($AK$97:AK107,$AM$97:AM107) -> 62000 | AS107: =SUM($AN$97:AN107,$AO$97:AO107,$AQ$97:AQ107) -> 4820.830735 | AT107: =SUM($AN$97:AN107,$AQ$97:AQ107) -> 2530 | AU107: =(AS107/(AVERAGE($AR$97:AR107))/AI107*12) -> 0.1011363091 | AV107: =(AT107/(AVERAGE($AR$97:AR107))/AI107*12) -> 0.05307692308
AC108: 2009 | AD108: 72 let a 4 měsíce | AI108: 12 | AJ108: 69050.83074 | AK108: 1000 | AL108: 0 | AM108: 1000 | AN108: 230 | AO108: 264.6948512 | AP108: 69315.52559 | AQ108: 0 | AR108: =$C$13+SUM($AK$97:AK108,$AM$97:AM108) -> 64000 | AS108: =SUM($AN$97:AN108,$AO$97:AO108,$AQ$97:AQ108) -> 5315.525587 | AT108: =SUM($AN$97:AN108,$AQ$97:AQ108) -> 2760 | AU108: =(AS108/(AVERAGE($AR$97:AR108))/AI108*12) -> 0.1002929356 | AV108: =(AT108/(AVERAGE($AR$97:AR108))/AI108*12) -> 0.0520754717
AC109: 2008 | AD109: 72 let a 2 měsíce | AI109: 13 | AJ109: 71545.52559 | AK109: 1000 | AL109: 0 | AM109: 1000 | AN109: 230 | AO109: 274.2578481 | AP109: 71819.78343 | AQ109: 0 | AR109: =$C$13+SUM($AK$97:AK109,$AM$97:AM109) -> 66000 | AS109: =SUM($AN$97:AN109,$AO$97:AO109,$AQ$97:AQ109) -> 5819.783435 | AT109: =SUM($AN$97:AN109,$AQ$97:AQ109) -> 2990 | AU109: =(AS109/(AVERAGE($AR$97:AR109))/AI109*12) -> 0.09948347752 | AV109: =(AT109/(AVERAGE($AR$97:AR109))/AI109*12) -> 0.05111111111
AC110: 2007 | AD110: 72 let | AI110: 14 | AJ110: 74049.78343 | AK110: 1000 | AL110: 0 | AM110: 1000 | AN110: 230 | AO110: 283.8575032 | AP110: 74333.64094 | AQ110: 0 | AR110: =$C$13+SUM($AK$97:AK110,$AM$97:AM110) -> 68000 | AS110: =SUM($AN$97:AN110,$AO$97:AO110,$AQ$97:AQ110) -> 6333.640938 | AT110: =SUM($AN$97:AN110,$AQ$97:AQ110) -> 3220 | AU110: =(AS110/(AVERAGE($AR$97:AR110))/AI110*12) -> 0.09870609254 | AV110: =(AT110/(AVERAGE($AR$97:AR110))/AI110*12) -> 0.05018181818
AC111: 2006 | AD111: 71 let a 10 měsíců | AI111: 15 | AJ111: 76563.64094 | AK111: 1000 | AL111: 0 | AM111: 1000 | AN111: 230 | AO111: 293.4939569 | AP111: 76857.13489 | AQ111: 0 | AR111: =$C$13+SUM($AK$97:AK111,$AM$97:AM111) -> 70000 | AS111: =SUM($AN$97:AN111,$AO$97:AO111,$AQ$97:AQ111) -> 6857.134895 | AT111: =SUM($AN$97:AN111,$AQ$97:AQ111) -> 3450 | AU111: =(AS111/(AVERAGE($AR$97:AR111))/AI111*12) -> 0.09795906993 | AV111: =(AT111/(AVERAGE($AR$97:AR111))/AI111*12) -> 0.04928571429
AC112: 2005 | AD112: 71 let a 8 měsíců | AI112: 16 | AJ112: 79087.13489 | AK112: 1000 | AL112: 0 | AM112: 1000 | AN112: 230 | AO112: 303.1673504 | AP112: 79390.30225 | AQ112: 0 | AR112: =$C$13+SUM($AK$97:AK112,$AM$97:AM112) -> 72000 | AS112: =SUM($AN$97:AN112,$AO$97:AO112,$AQ$97:AQ112) -> 7390.302245 | AT112: =SUM($AN$97:AN112,$AQ$97:AQ112) -> 3680 | AU112: =(AS112/(AVERAGE($AR$97:AR112))/AI112*12) -> 0.09724081902 | AV112: =(AT112/(AVERAGE($AR$97:AR112))/AI112*12) -> 0.04842105263
AC113: 2004 | AD113: 71 let a 6 měsíců | AI113: 17 | AJ113: 81620.30225 | AK113: 1000 | AL113: 0 | AM113: 1000 | AN113: 230 | AO113: 312.8778253 | AP113: 81933.18007 | AQ113: 0 | AR113: =$C$13+SUM($AK$97:AK113,$AM$97:AM113) -> 74000 | AS113: =SUM($AN$97:AN113,$AO$97:AO113,$AQ$97:AQ113) -> 7933.18007 | AT113: =SUM($AN$97:AN113,$AQ$97:AQ113) -> 3910 | AU113: =(AS113/(AVERAGE($AR$97:AR113))/AI113*12) -> 0.09654985887 | AV113: =(AT113/(AVERAGE($AR$97:AR113))/AI113*12) -> 0.0475862069
AC114: 2003 | AD114: 71 let a 4 měsíce | AI114: 18 | AJ114: 84163.18007 | AK114: 1000 | AL114: 0 | AM114: 1000 | AN114: 230 | AO114: 322.6255236 | AP114: 84485.80559 | AQ114: 0 | AR114: =$C$13+SUM($AK$97:AK114,$AM$97:AM114) -> 76000 | AS114: =SUM($AN$97:AN114,$AO$97:AO114,$AQ$97:AQ114) -> 8485.805594 | AT114: =SUM($AN$97:AN114,$AQ$97:AQ114) -> 4140 | AU114: =(AS114/(AVERAGE($AR$97:AR114))/AI114*12) -> 0.09588480897 | AV114: =(AT114/(AVERAGE($AR$97:AR114))/AI114*12) -> 0.04677966102
AC115: 2002 | AD115: 71 let a 2 měsíce | AI115: 19 | AJ115: 86715.80559 | AK115: 1000 | AL115: 0 | AM115: 1000 | AN115: 230 | AO115: 332.4105881 | AP115: 87048.21618 | AQ115: 0 | AR115: =$C$13+SUM($AK$97:AK115,$AM$97:AM115) -> 78000 | AS115: =SUM($AN$97:AN115,$AO$97:AO115,$AQ$97:AQ115) -> 9048.216182 | AT115: =SUM($AN$97:AN115,$AQ$97:AQ115) -> 4370 | AU115: =(AS115/(AVERAGE($AR$97:AR115))/AI115*12) -> 0.09524438087 | AV115: =(AT115/(AVERAGE($AR$97:AR115))/AI115*12) -> 0.046
AC116: 2001 | AD116: 71 let | AI116: 20 | AJ116: 89278.21618 | AK116: 1000 | AL116: 0 | AM116: 1000 | AN116: 230 | AO116: 342.233162 | AP116: 89620.44934 | AQ116: 0 | AR116: =$C$13+SUM($AK$97:AK116,$AM$97:AM116) -> 80000 | AS116: =SUM($AN$97:AN116,$AO$97:AO116,$AQ$97:AQ116) -> 9620.449344 | AT116: =SUM($AN$97:AN116,$AQ$97:AQ116) -> 4600 | AU116: =(AS116/(AVERAGE($AR$97:AR116))/AI116*12) -> 0.0946273706 | AV116: =(AT116/(AVERAGE($AR$97:AR116))/AI116*12) -> 0.04524590164
AC117: 2000 | AD117: 70 let a 10 měsíců | AI117: 21 | AJ117: 91850.44934 | AK117: 1000 | AL117: 0 | AM117: 1000 | AN117: 230 | AO117: 352.0933892 | AP117: 92202.54273 | AQ117: 0 | AR117: =$C$13+SUM($AK$97:AK117,$AM$97:AM117) -> 82000 | AS117: =SUM($AN$97:AN117,$AO$97:AO117,$AQ$97:AQ117) -> 10202.54273 | AT117: =SUM($AN$97:AN117,$AQ$97:AQ117) -> 4830 | AU117: =(AS117/(AVERAGE($AR$97:AR117))/AI117*12) -> 0.09403265192 | AV117: =(AT117/(AVERAGE($AR$97:AR117))/AI117*12) -> 0.04451612903
AC118: 1999 | AD118: 70 let a 8 měsíců | AI118: 22 | AJ118: 94432.54273 | AK118: 1000 | AL118: 0 | AM118: 1000 | AN118: 230 | AO118: 361.9914138 | AP118: 94794.53415 | AQ118: 0 | AR118: =$C$13+SUM($AK$97:AK118,$AM$97:AM118) -> 84000 | AS118: =SUM($AN$97:AN118,$AO$97:AO118,$AQ$97:AQ118) -> 10794.53415 | AT118: =SUM($AN$97:AN118,$AQ$97:AQ118) -> 5060 | AU118: =(AS118/(AVERAGE($AR$97:AR118))/AI118*12) -> 0.09345917011 | AV118: =(AT118/(AVERAGE($AR$97:AR118))/AI118*12) -> 0.04380952381
AC119: 1998 | AD119: 70 let a 6 měsíců | AI119: 23 | AJ119: 97024.53415 | AK119: 1000 | AL119: 0 | AM119: 1000 | AN119: 230 | AO119: 371.9273809 | AP119: 97396.46153 | AQ119: 0 | AR119: =$C$13+SUM($AK$97:AK119,$AM$97:AM119) -> 86000 | AS119: =SUM($AN$97:AN119,$AO$97:AO119,$AQ$97:AQ119) -> 11396.46153 | AT119: =SUM($AN$97:AN119,$AQ$97:AQ119) -> 5290 | AU119: =(AS119/(AVERAGE($AR$97:AR119))/AI119*12) -> 0.09290593637 | AV119: =(AT119/(AVERAGE($AR$97:AR119))/AI119*12) -> 0.043125
AC120: 1997 | AD120: 70 let a 4 měsíce | AI120: 24 | AJ120: 99626.46153 | AK120: 1000 | AL120: 0 | AM120: 1000 | AN120: 230 | AO120: 381.9014359 | AP120: 100008.363 | AQ120: 0 | AR120: =$C$13+SUM($AK$97:AK120,$AM$97:AM120) -> 88000 | AS120: =SUM($AN$97:AN120,$AO$97:AO120,$AQ$97:AQ120) -> 12008.36296 | AT120: =SUM($AN$97:AN120,$AQ$97:AQ120) -> 5520 | AU120: =(AS120/(AVERAGE($AR$97:AR120))/AI120*12) -> 0.0923720228 | AV120: =(AT120/(AVERAGE($AR$97:AR120))/AI120*12) -> 0.04246153846
AC121: 1996 | AD121: 70 let a 2 měsíce | AI121: 25 | AJ121: 102238.363 | AK121: 1000 | AL121: 0 | AM121: 1000 | AN121: 230 | AO121: 391.9137247 | AP121: 102630.2767 | AQ121: 0 | AR121: =$C$13+SUM($AK$97:AK121,$AM$97:AM121) -> 90000 | AS121: =SUM($AN$97:AN121,$AO$97:AO121,$AQ$97:AQ121) -> 12630.27669 | AT121: =SUM($AN$97:AN121,$AQ$97:AQ121) -> 5750 | AU121: =(AS121/(AVERAGE($AR$97:AR121))/AI121*12) -> 0.09185655774 | AV121: =(AT121/(AVERAGE($AR$97:AR121))/AI121*12) -> 0.04181818182
AC122: 1995 | AD122: 70 let | AI122: 26 | AJ122: 104860.2767 | AK122: 1000 | AL122: 0 | AM122: 1000 | AN122: 230 | AO122: 401.964394 | AP122: 105262.2411 | AQ122: 0 | AR122: =$C$13+SUM($AK$97:AK122,$AM$97:AM122) -> 92000 | AS122: =SUM($AN$97:AN122,$AO$97:AO122,$AQ$97:AQ122) -> 13262.24108 | AT122: =SUM($AN$97:AN122,$AQ$97:AQ122) -> 5980 | AU122: =(AS122/(AVERAGE($AR$97:AR122))/AI122*12) -> 0.09135872158 | AV122: =(AT122/(AVERAGE($AR$97:AR122))/AI122*12) -> 0.04119402985
AC123: 1994 | AD123: 69 let a 10 měsíců | AI123: 27 | AJ123: =AP122+AK123+AM123+AN123 -> 107492.2411 | AK123: 1000 | AL123: 0 | AM123: 1000 | AN123: 230 | AO123: 412.0535908 | AP123: 107904.2947 | AQ123: 0 | AR123: =$C$13+SUM($AK$97:AK123,$AM$97:AM123) -> 94000 | AS123: =SUM($AN$97:AN123,$AO$97:AO123,$AQ$97:AQ123) -> 13904.29467 | AT123: =SUM($AN$97:AN123,$AQ$97:AQ123) -> 6210 | AU123: =(AS123/(AVERAGE($AR$97:AR123))/AI123*12) -> 0.09087774296 | AV123: =(AT123/(AVERAGE($AR$97:AR123))/AI123*12) -> 0.04058823529
AC124: 1993 | AD124: 69 let a 8 měsíců | AI124: 28 | AJ124: 110134.2947 | AK124: 1000 | AL124: 0 | AM124: 1000 | AN124: 230 | AO124: 422.1814629 | AP124: 110556.4761 | AQ124: 0 | AR124: =$C$13+SUM($AK$97:AK124,$AM$97:AM124) -> 96000 | AS124: =SUM($AN$97:AN124,$AO$97:AO124,$AQ$97:AQ124) -> 14556.47614 | AT124: =SUM($AN$97:AN124,$AQ$97:AQ124) -> 6440 | AU124: =(AS124/(AVERAGE($AR$97:AR124))/AI124*12) -> 0.09041289526 | AV124: =(AT124/(AVERAGE($AR$97:AR124))/AI124*12) -> 0.04
AC125: 1992 | AD125: 69 let a 6 měsíců | AI125: 29 | AJ125: 112786.4761 | AK125: 1000 | AL125: 0 | AM125: 1000 | AN125: 230 | AO125: 432.3481585 | AP125: 113218.8243 | AQ125: 0 | AR125: =$C$13+SUM($AK$97:AK125,$AM$97:AM125) -> 98000 | AS125: =SUM($AN$97:AN125,$AO$97:AO125,$AQ$97:AQ125) -> 15218.82429 | AT125: =SUM($AN$97:AN125,$AQ$97:AQ125) -> 6670 | AU125: =(AS125/(AVERAGE($AR$97:AR125))/AI125*12) -> 0.08996349337 | AV125: =(AT125/(AVERAGE($AR$97:AR125))/AI125*12) -> 0.03942857143
AC126: 1991 | AD126: 69 let a 4 měsíce | AI126: 30 | AJ126: 115448.8243 | AK126: 1000 | AL126: 0 | AM126: 1000 | AN126: 230 | AO126: 442.5538265 | AP126: 115891.3781 | AQ126: 0 | AR126: =$C$13+SUM($AK$97:AK126,$AM$97:AM126) -> 100000 | AS126: =SUM($AN$97:AN126,$AO$97:AO126,$AQ$97:AQ126) -> 15891.37812 | AT126: =SUM($AN$97:AN126,$AQ$97:AQ126) -> 6900 | AU126: =(AS126/(AVERAGE($AR$97:AR126))/AI126*12) -> 0.08952889082 | AV126: =(AT126/(AVERAGE($AR$97:AR126))/AI126*12) -> 0.03887323944
AC127: 1990 | AD127: 69 let a 2 měsíce | AI127: 31 | AJ127: 118121.3781 | AK127: 1000 | AL127: 0 | AM127: 1000 | AN127: 230 | AO127: 452.7986161 | AP127: 118574.1767 | AQ127: 0 | AR127: =$C$13+SUM($AK$97:AK127,$AM$97:AM127) -> 102000 | AS127: =SUM($AN$97:AN127,$AO$97:AO127,$AQ$97:AQ127) -> 16574.17674 | AT127: =SUM($AN$97:AN127,$AQ$97:AQ127) -> 7130 | AU127: =(AS127/(AVERAGE($AR$97:AR127))/AI127*12) -> 0.08910847708 | AV127: =(AT127/(AVERAGE($AR$97:AR127))/AI127*12) -> 0.03833333333
AC128: 1989 | AD128: 69 let | AI128: 32 | AJ128: 120804.1767 | AK128: 1000 | AL128: 0 | AM128: 1000 | AN128: 230 | AO128: 463.0826775 | AP128: 121267.2594 | AQ128: 0 | AR128: =$C$13+SUM($AK$97:AK128,$AM$97:AM128) -> 104000 | AS128: =SUM($AN$97:AN128,$AO$97:AO128,$AQ$97:AQ128) -> 17267.25941 | AT128: =SUM($AN$97:AN128,$AQ$97:AQ128) -> 7360 | AU128: =(AS128/(AVERAGE($AR$97:AR128))/AI128*12) -> 0.08870167508 | AV128: =(AT128/(AVERAGE($AR$97:AR128))/AI128*12) -> 0.03780821918
AC129: 1988 | AD129: 68 let a 10 měsíců | AI129: 33 | AJ129: 123497.2594 | AK129: 1000 | AL129: 0 | AM129: 1000 | AN129: 230 | AO129: 473.4061611 | AP129: 123970.6656 | AQ129: 0 | AR129: =$C$13+SUM($AK$97:AK129,$AM$97:AM129) -> 106000 | AS129: =SUM($AN$97:AN129,$AO$97:AO129,$AQ$97:AQ129) -> 17970.66558 | AT129: =SUM($AN$97:AN129,$AQ$97:AQ129) -> 7590 | AU129: =(AS129/(AVERAGE($AR$97:AR129))/AI129*12) -> 0.08830793895 | AV129: =(AT129/(AVERAGE($AR$97:AR129))/AI129*12) -> 0.0372972973
AC130: 1987 | AD130: 68 let a 8 měsíců | AI130: 34 | AJ130: 126200.6656 | AK130: 1000 | AL130: 0 | AM130: 1000 | AN130: 230 | AO130: 483.769218 | AP130: 126684.4348 | AQ130: 0 | AR130: =$C$13+SUM($AK$97:AK130,$AM$97:AM130) -> 108000 | AS130: =SUM($AN$97:AN130,$AO$97:AO130,$AQ$97:AQ130) -> 18684.43479 | AT130: =SUM($AN$97:AN130,$AQ$97:AQ130) -> 7820 | AU130: =(AS130/(AVERAGE($AR$97:AR130))/AI130*12) -> 0.08792675197 | AV130: =(AT130/(AVERAGE($AR$97:AR130))/AI130*12) -> 0.0368
AC131: 1986 | AD131: 68 let a 6 měsíců | AI131: 35 | AJ131: 128914.4348 | AK131: 1000 | AL131: 0 | AM131: 1000 | AN131: 230 | AO131: 494.172 | AP131: 129408.6068 | AQ131: 0 | AR131: =$C$13+SUM($AK$97:AK131,$AM$97:AM131) -> 110000 | AS131: =SUM($AN$97:AN131,$AO$97:AO131,$AQ$97:AQ131) -> 19408.60679 | AT131: =SUM($AN$97:AN131,$AQ$97:AQ131) -> 8050 | AU131: =(AS131/(AVERAGE($AR$97:AR131))/AI131*12) -> 0.08755762464 | AV131: =(AT131/(AVERAGE($AR$97:AR131))/AI131*12) -> 0.03631578947
AC132: 1985 | AD132: 68 let a 4 měsíce | AI132: 36 | AJ132: 131638.6068 | AK132: 1000 | AL132: 0 | AM132: 1000 | AN132: 230 | AO132: 504.6146594 | AP132: 132143.2215 | AQ132: 0 | AR132: =$C$13+SUM($AK$97:AK132,$AM$97:AM132) -> 112000 | AS132: =SUM($AN$97:AN132,$AO$97:AO132,$AQ$97:AQ132) -> 20143.22145 | AT132: =SUM($AN$97:AN132,$AQ$97:AQ132) -> 8280 | AU132: =(AS132/(AVERAGE($AR$97:AR132))/AI132*12) -> 0.08720009287 | AV132: =(AT132/(AVERAGE($AR$97:AR132))/AI132*12) -> 0.03584415584
AC133: 1984 | AD133: 68 let a 2 měsíce | AI133: 37 | AJ133: 134373.2215 | AK133: 1000 | AL133: 0 | AM133: 1000 | AN133: 230 | AO133: 515.0973489 | AP133: 134888.3188 | AQ133: 0 | AR133: =$C$13+SUM($AK$97:AK133,$AM$97:AM133) -> 114000 | AS133: =SUM($AN$97:AN133,$AO$97:AO133,$AQ$97:AQ133) -> 20888.3188 | AT133: =SUM($AN$97:AN133,$AQ$97:AQ133) -> 8510 | AU133: =(AS133/(AVERAGE($AR$97:AR133))/AI133*12) -> 0.08685371643 | AV133: =(AT133/(AVERAGE($AR$97:AR133))/AI133*12) -> 0.03538461538
AC134: 1983 | AD134: 68 let | AI134: 38 | AJ134: 137118.3188 | AK134: 1000 | AL134: 0 | AM134: 1000 | AN134: 230 | AO134: 525.6202221 | AP134: 137643.939 | AQ134: 0 | AR134: =$C$13+SUM($AK$97:AK134,$AM$97:AM134) -> 116000 | AS134: =SUM($AN$97:AN134,$AO$97:AO134,$AQ$97:AQ134) -> 21643.93902 | AT134: =SUM($AN$97:AN134,$AQ$97:AQ134) -> 8740 | AU134: =(AS134/(AVERAGE($AR$97:AR134))/AI134*12) -> 0.08651807738 | AV134: =(AT134/(AVERAGE($AR$97:AR134))/AI134*12) -> 0.03493670886
AC135: 1982 | AD135: 67 let a 10 měsíců | AI135: 39 | AJ135: 139873.939 | AK135: 1000 | AL135: 0 | AM135: 1000 | AN135: 230 | AO135: 536.1834329 | AP135: 140410.1225 | AQ135: 0 | AR135: =$C$13+SUM($AK$97:AK135,$AM$97:AM135) -> 118000 | AS135: =SUM($AN$97:AN135,$AO$97:AO135,$AQ$97:AQ135) -> 22410.12246 | AT135: =SUM($AN$97:AN135,$AQ$97:AQ135) -> 8970 | AU135: =(AS135/(AVERAGE($AR$97:AR135))/AI135*12) -> 0.08619277868 | AV135: =(AT135/(AVERAGE($AR$97:AR135))/AI135*12) -> 0.0345
AC136: 1981 | AD136: 67 let a 8 měsíců | AI136: 40 | AJ136: 142640.1225 | AK136: 1000 | AL136: 0 | AM136: 1000 | AN136: 230 | AO136: 546.7871361 | AP136: 143186.9096 | AQ136: 0 | AR136: =$C$13+SUM($AK$97:AK136,$AM$97:AM136) -> 120000 | AS136: =SUM($AN$97:AN136,$AO$97:AO136,$AQ$97:AQ136) -> 23186.90959 | AT136: =SUM($AN$97:AN136,$AQ$97:AQ136) -> 9200 | AU136: =(AS136/(AVERAGE($AR$97:AR136))/AI136*12) -> 0.08587744294 | AV136: =(AT136/(AVERAGE($AR$97:AR136))/AI136*12) -> 0.03407407407
AC137: 1980 | AD137: 67 let a 6 měsíců | AI137: 41 | AJ137: 145416.9096 | AK137: 1000 | AL137: 0 | AM137: 1000 | AN137: 230 | AO137: 557.4314868 | AP137: 145974.3411 | AQ137: 0 | AR137: =$C$13+SUM($AK$97:AK137,$AM$97:AM137) -> 122000 | AS137: =SUM($AN$97:AN137,$AO$97:AO137,$AQ$97:AQ137) -> 23974.34108 | AT137: =SUM($AN$97:AN137,$AQ$97:AQ137) -> 9430 | AU137: =(AS137/(AVERAGE($AR$97:AR137))/AI137*12) -> 0.08557171117 | AV137: =(AT137/(AVERAGE($AR$97:AR137))/AI137*12) -> 0.03365853659
AC138: 1979 | AD138: 67 let a 4 měsíce | AI138: 42 | AJ138: 148204.3411 | AK138: 1000 | AL138: 0 | AM138: 1000 | AN138: 230 | AO138: 568.1166408 | AP138: 148772.4577 | AQ138: 0 | AR138: =$C$13+SUM($AK$97:AK138,$AM$97:AM138) -> 124000 | AS138: =SUM($AN$97:AN138,$AO$97:AO138,$AQ$97:AQ138) -> 24772.45772 | AT138: =SUM($AN$97:AN138,$AQ$97:AQ138) -> 9660 | AU138: =(AS138/(AVERAGE($AR$97:AR138))/AI138*12) -> 0.08527524172 | AV138: =(AT138/(AVERAGE($AR$97:AR138))/AI138*12) -> 0.03325301205
AC139: 1978 | AD139: 67 let a 2 měsíce | AI139: 43 | AJ139: 151002.4577 | AK139: 1000 | AL139: 0 | AM139: 1000 | AN139: 230 | AO139: 578.8427546 | AP139: 151581.3005 | AQ139: 0 | AR139: =$C$13+SUM($AK$97:AK139,$AM$97:AM139) -> 126000 | AS139: =SUM($AN$97:AN139,$AO$97:AO139,$AQ$97:AQ139) -> 25581.30048 | AT139: =SUM($AN$97:AN139,$AQ$97:AQ139) -> 9890 | AU139: =(AS139/(AVERAGE($AR$97:AR139))/AI139*12) -> 0.08498770922 | AV139: =(AT139/(AVERAGE($AR$97:AR139))/AI139*12) -> 0.03285714286
AC140: 1977 | AD140: 67 let | AI140: 44 | AJ140: 153811.3005 | AK140: 1000 | AL140: 0 | AM140: 1000 | AN140: 230 | AO140: 589.6099852 | AP140: 154400.9105 | AQ140: 0 | AR140: =$C$13+SUM($AK$97:AK140,$AM$97:AM140) -> 128000 | AS140: =SUM($AN$97:AN140,$AO$97:AO140,$AQ$97:AQ140) -> 26400.91046 | AT140: =SUM($AN$97:AN140,$AQ$97:AQ140) -> 10120 | AU140: =(AS140/(AVERAGE($AR$97:AR140))/AI140*12) -> 0.08470880362 | AV140: =(AT140/(AVERAGE($AR$97:AR140))/AI140*12) -> 0.03247058824
AC141: 1976 | AD141: 66 let a 10 měsíců | AI141: 45 | AJ141: 156630.9105 | AK141: 1000 | AL141: 0 | AM141: 1000 | AN141: 230 | AO141: 600.4184901 | AP141: 157231.329 | AQ141: 0 | AR141: =$C$13+SUM($AK$97:AK141,$AM$97:AM141) -> 130000 | AS141: =SUM($AN$97:AN141,$AO$97:AO141,$AQ$97:AQ141) -> 27231.32895 | AT141: =SUM($AN$97:AN141,$AQ$97:AQ141) -> 10350 | AU141: =(AS141/(AVERAGE($AR$97:AR141))/AI141*12) -> 0.08443822931 | AV141: =(AT141/(AVERAGE($AR$97:AR141))/AI141*12) -> 0.03209302326
AC142: 1975 | AD142: 66 let a 8 měsíců | AI142: 46 | AJ142: 159461.329 | AK142: 1000 | AL142: 0 | AM142: 1000 | AN142: 230 | AO142: 611.2684276 | AP142: 160072.5974 | AQ142: 0 | AR142: =$C$13+SUM($AK$97:AK142,$AM$97:AM142) -> 132000 | AS142: =SUM($AN$97:AN142,$AO$97:AO142,$AQ$97:AQ142) -> 28072.59738 | AT142: =SUM($AN$97:AN142,$AQ$97:AQ142) -> 10580 | AU142: =(AS142/(AVERAGE($AR$97:AR142))/AI142*12) -> 0.08417570428 | AV142: =(AT142/(AVERAGE($AR$97:AR142))/AI142*12) -> 0.03172413793
AC143: 1974 | AD143: 66 let a 6 měsíců | AI143: 47 | AJ143: 162302.5974 | AK143: 1000 | AL143: 0 | AM143: 1000 | AN143: 230 | AO143: 622.1599566 | AP143: 162924.7573 | AQ143: 0 | AR143: =$C$13+SUM($AK$97:AK143,$AM$97:AM143) -> 134000 | AS143: =SUM($AN$97:AN143,$AO$97:AO143,$AQ$97:AQ143) -> 28924.75734 | AT143: =SUM($AN$97:AN143,$AQ$97:AQ143) -> 10810 | AU143: =(AS143/(AVERAGE($AR$97:AR143))/AI143*12) -> 0.08392095939 | AV143: =(AT143/(AVERAGE($AR$97:AR143))/AI143*12) -> 0.03136363636
AC144: 1973 | AD144: 66 let a 4 měsíce | AI144: 48 | AJ144: 165154.7573 | AK144: 1000 | AL144: 0 | AM144: 1000 | AN144: 230 | AO144: 633.0932365 | AP144: 165787.8506 | AQ144: 0 | AR144: =$C$13+SUM($AK$97:AK144,$AM$97:AM144) -> 136000 | AS144: =SUM($AN$97:AN144,$AO$97:AO144,$AQ$97:AQ144) -> 29787.85057 | AT144: =SUM($AN$97:AN144,$AQ$97:AQ144) -> 11040 | AU144: =(AS144/(AVERAGE($AR$97:AR144))/AI144*12) -> 0.08367373756 | AV144: =(AT144/(AVERAGE($AR$97:AR144))/AI144*12) -> 0.03101123596
AC145: 1972 | AD145: 66 let a 2 měsíce | AI145: 49 | AJ145: 168017.8506 | AK145: 1000 | AL145: 0 | AM145: 1000 | AN145: 230 | AO145: 644.0684272 | AP145: 168661.919 | AQ145: 0 | AR145: =$C$13+SUM($AK$97:AK145,$AM$97:AM145) -> 138000 | AS145: =SUM($AN$97:AN145,$AO$97:AO145,$AQ$97:AQ145) -> 30661.919 | AT145: =SUM($AN$97:AN145,$AQ$97:AQ145) -> 11270 | AU145: =(AS145/(AVERAGE($AR$97:AR145))/AI145*12) -> 0.08343379319 | AV145: =(AT145/(AVERAGE($AR$97:AR145))/AI145*12) -> 0.03066666667
AC146: 1971 | AD146: 66 let | AI146: 50 | AJ146: 170891.919 | AK146: 1000 | AL146: 0 | AM146: 1000 | AN146: 230 | AO146: 655.0856895 | AP146: 171547.0047 | AQ146: 0 | AR146: =$C$13+SUM($AK$97:AK146,$AM$97:AM146) -> 140000 | AS146: =SUM($AN$97:AN146,$AO$97:AO146,$AQ$97:AQ146) -> 31547.00469 | AT146: =SUM($AN$97:AN146,$AQ$97:AQ146) -> 11500 | AU146: =(AS146/(AVERAGE($AR$97:AR146))/AI146*12) -> 0.08320089149 | AV146: =(AT146/(AVERAGE($AR$97:AR146))/AI146*12) -> 0.03032967033
AC147: 1970 | AD147: 65 let a 10 měsíců | AI147: 51 | AJ147: 173777.0047 | AK147: 1000 | AL147: 0 | AM147: 1000 | AN147: 230 | AO147: 666.1451846 | AP147: 174443.1499 | AQ147: 0 | AR147: =$C$13+SUM($AK$97:AK147,$AM$97:AM147) -> 142000 | AS147: =SUM($AN$97:AN147,$AO$97:AO147,$AQ$97:AQ147) -> 32443.14987 | AT147: =SUM($AN$97:AN147,$AQ$97:AQ147) -> 11730 | AU147: =(AS147/(AVERAGE($AR$97:AR147))/AI147*12) -> 0.08297480786 | AV147: =(AT147/(AVERAGE($AR$97:AR147))/AI147*12) -> 0.03
AC148: 1969 | AD148: 65 let a 8 měsíců | AI148: 52 | AJ148: 176673.1499 | AK148: 1000 | AL148: 0 | AM148: 1000 | AN148: 230 | AO148: 677.2470745 | AP148: 177350.3969 | AQ148: 0 | AR148: =$C$13+SUM($AK$97:AK148,$AM$97:AM148) -> 144000 | AS148: =SUM($AN$97:AN148,$AO$97:AO148,$AQ$97:AQ148) -> 33350.39695 | AT148: =SUM($AN$97:AN148,$AQ$97:AQ148) -> 11960 | AU148: =(AS148/(AVERAGE($AR$97:AR148))/AI148*12) -> 0.08275532741 | AV148: =(AT148/(AVERAGE($AR$97:AR148))/AI148*12) -> 0.02967741935
AC149: 1968 | AD149: 65 let a 6 měsíců | AI149: 53 | AJ149: 179580.3969 | AK149: 1000 | AL149: 0 | AM149: 1000 | AN149: 230 | AO149: 688.3915216 | AP149: 180268.7885 | AQ149: 0 | AR149: =$C$13+SUM($AK$97:AK149,$AM$97:AM149) -> 146000 | AS149: =SUM($AN$97:AN149,$AO$97:AO149,$AQ$97:AQ149) -> 34268.78847 | AT149: =SUM($AN$97:AN149,$AQ$97:AQ149) -> 12190 | AU149: =(AS149/(AVERAGE($AR$97:AR149))/AI149*12) -> 0.08254224441 | AV149: =(AT149/(AVERAGE($AR$97:AR149))/AI149*12) -> 0.02936170213
AC150: 1967 | AD150: 65 let a 4 měsíce | AI150: 54 | AJ150: 182498.7885 | AK150: 1000 | AL150: 0 | AM150: 1000 | AN150: 230 | AO150: 699.5786891 | AP150: 183198.3672 | AQ150: 0 | AR150: =$C$13+SUM($AK$97:AK150,$AM$97:AM150) -> 148000 | AS150: =SUM($AN$97:AN150,$AO$97:AO150,$AQ$97:AQ150) -> 35198.36716 | AT150: =SUM($AN$97:AN150,$AQ$97:AQ150) -> 12420 | AU150: =(AS150/(AVERAGE($AR$97:AR150))/AI150*12) -> 0.08233536177 | AV150: =(AT150/(AVERAGE($AR$97:AR150))/AI150*12) -> 0.02905263158
AC151: 1966 | AD151: 65 let a 2 měsíce | AI151: 55 | AJ151: 185428.3672 | AK151: 1000 | AL151: 0 | AM151: 1000 | AN151: 230 | AO151: 710.8087408 | AP151: 186139.1759 | AQ151: 0 | AR151: =$C$13+SUM($AK$97:AK151,$AM$97:AM151) -> 150000 | AS151: =SUM($AN$97:AN151,$AO$97:AO151,$AQ$97:AQ151) -> 36139.1759 | AT151: =SUM($AN$97:AN151,$AQ$97:AQ151) -> 12650 | AU151: =(AS151/(AVERAGE($AR$97:AR151))/AI151*12) -> 0.08213449068 | AV151: =(AT151/(AVERAGE($AR$97:AR151))/AI151*12) -> 0.02875
AC152: 1965 | AD152: 65 let | AI152: 56 | AJ152: 188369.1759 | AK152: 1000 | AL152: 0 | AM152: 1000 | AN152: 230 | AO152: 722.0818409 | AP152: 189091.2577 | AQ152: 0 | AR152: =$C$13+SUM($AK$97:AK152,$AM$97:AM152) -> 152000 | AS152: =SUM($AN$97:AN152,$AO$97:AO152,$AQ$97:AQ152) -> 37091.25774 | AT152: =SUM($AN$97:AN152,$AQ$97:AQ152) -> 12880 | AU152: =(AS152/(AVERAGE($AR$97:AR152))/AI152*12) -> 0.08193945009 | AV152: =(AT152/(AVERAGE($AR$97:AR152))/AI152*12) -> 0.02845360825
AC153: 1964 | AD153: 64 let a 10 měsíců | AI153: 57 | AJ153: 191321.2577 | AK153: 1000 | AL153: 0 | AM153: 1000 | AN153: 230 | AO153: 733.3981547 | AP153: 192054.6559 | AQ153: 0 | AR153: =$C$13+SUM($AK$97:AK153,$AM$97:AM153) -> 154000 | AS153: =SUM($AN$97:AN153,$AO$97:AO153,$AQ$97:AQ153) -> 38054.65589 | AT153: =SUM($AN$97:AN153,$AQ$97:AQ153) -> 13110 | AU153: =(AS153/(AVERAGE($AR$97:AR153))/AI153*12) -> 0.08175006637 | AV153: =(AT153/(AVERAGE($AR$97:AR153))/AI153*12) -> 0.02816326531
AC154: 1963 | AD154: 64 let a 8 měsíců | AI154: 58 | AJ154: 194284.6559 | AK154: 1000 | AL154: 0 | AM154: 1000 | AN154: 230 | AO154: 744.7578476 | AP154: 195029.4137 | AQ154: 0 | AR154: =$C$13+SUM($AK$97:AK154,$AM$97:AM154) -> 156000 | AS154: =SUM($AN$97:AN154,$AO$97:AO154,$AQ$97:AQ154) -> 39029.41374 | AT154: =SUM($AN$97:AN154,$AQ$97:AQ154) -> 13340 | AU154: =(AS154/(AVERAGE($AR$97:AR154))/AI154*12) -> 0.08156617292 | AV154: =(AT154/(AVERAGE($AR$97:AR154))/AI154*12) -> 0.02787878788
AC155: 1962 | AD155: 64 let a 6 měsíců | AI155: 59 | AJ155: 197259.4137 | AK155: 1000 | AL155: 0 | AM155: 1000 | AN155: 230 | AO155: 756.161086 | AP155: 198015.5748 | AQ155: 0 | AR155: =$C$13+SUM($AK$97:AK155,$AM$97:AM155) -> 158000 | AS155: =SUM($AN$97:AN155,$AO$97:AO155,$AQ$97:AQ155) -> 40015.57483 | AT155: =SUM($AN$97:AN155,$AQ$97:AQ155) -> 13570 | AU155: =(AS155/(AVERAGE($AR$97:AR155))/AI155*12) -> 0.08138760982 | AV155: =(AT155/(AVERAGE($AR$97:AR155))/AI155*12) -> 0.0276
AC156: 1961 | AD156: 64 let a 4 měsíce | AI156: 60 | AJ156: 200245.5748 | AK156: 1000 | AL156: 0 | AM156: 1000 | AN156: 230 | AO156: 767.6080368 | AP156: 201013.1829 | AQ156: 0 | AR156: =$C$13+SUM($AK$97:AK156,$AM$97:AM156) -> 160000 | AS156: =SUM($AN$97:AN156,$AO$97:AO156,$AQ$97:AQ156) -> 41013.18287 | AT156: =SUM($AN$97:AN156,$AQ$97:AQ156) -> 13800 | AU156: =(AS156/(AVERAGE($AR$97:AR156))/AI156*12) -> 0.0812142235 | AV156: =(AT156/(AVERAGE($AR$97:AR156))/AI156*12) -> 0.02732673267
AC157: 1960 | AD157: 64 let a 2 měsíce | AI157: 61 | AJ157: 203243.1829 | AK157: 1000 | AL157: 0 | AM157: 1000 | AN157: 230 | AO157: 779.0988676 | AP157: 204022.2817 | AQ157: 0 | AR157: =$C$13+SUM($AK$97:AK157,$AM$97:AM157) -> 162000 | AS157: =SUM($AN$97:AN157,$AO$97:AO157,$AQ$97:AQ157) -> 42022.28173 | AT157: =SUM($AN$97:AN157,$AQ$97:AQ157) -> 14030 | AU157: =(AS157/(AVERAGE($AR$97:AR157))/AI157*12) -> 0.08104586641 | AV157: =(AT157/(AVERAGE($AR$97:AR157))/AI157*12) -> 0.02705882353
AC158: 1959 | AD158: 64 let | AI158: 62 | AJ158: 206252.2817 | AK158: 1000 | AL158: 0 | AM158: 1000 | AN158: 230 | AO158: 790.6337466 | AP158: 207042.9155 | AQ158: 0 | AR158: =$C$13+SUM($AK$97:AK158,$AM$97:AM158) -> 164000 | AS158: =SUM($AN$97:AN158,$AO$97:AO158,$AQ$97:AQ158) -> 43042.91548 | AT158: =SUM($AN$97:AN158,$AQ$97:AQ158) -> 14260 | AU158: =(AS158/(AVERAGE($AR$97:AR158))/AI158*12) -> 0.08088239677 | AV158: =(AT158/(AVERAGE($AR$97:AR158))/AI158*12) -> 0.0267961165
AC159: 1958 | AD159: 63 let a 10 měsíců | AI159: 63 | AJ159: 209272.9155 | AK159: 1000 | AL159: 0 | AM159: 1000 | AN159: 230 | AO159: 802.2128427 | AP159: 210075.1283 | AQ159: 0 | AR159: =$C$13+SUM($AK$97:AK159,$AM$97:AM159) -> 166000 | AS159: =SUM($AN$97:AN159,$AO$97:AO159,$AQ$97:AQ159) -> 44075.12832 | AT159: =SUM($AN$97:AN159,$AQ$97:AQ159) -> 14490 | AU159: =(AS159/(AVERAGE($AR$97:AR159))/AI159*12) -> 0.08072367825 | AV159: =(AT159/(AVERAGE($AR$97:AR159))/AI159*12) -> 0.02653846154
AC160: 1957 | AD160: 63 let a 8 měsíců | AI160: 64 | AJ160: 212305.1283 | AK160: 1000 | AL160: 0 | AM160: 1000 | AN160: 230 | AO160: 813.8363252 | AP160: 213118.9646 | AQ160: 0 | AR160: =$C$13+SUM($AK$97:AK160,$AM$97:AM160) -> 168000 | AS160: =SUM($AN$97:AN160,$AO$97:AO160,$AQ$97:AQ160) -> 45118.96465 | AT160: =SUM($AN$97:AN160,$AQ$97:AQ160) -> 14720 | AU160: =(AS160/(AVERAGE($AR$97:AR160))/AI160*12) -> 0.08056957973 | AV160: =(AT160/(AVERAGE($AR$97:AR160))/AI160*12) -> 0.02628571429
AC161: 1956 | AD161: 63 let a 6 měsíců | AI161: 65 | AJ161: 215348.9646 | AK161: =IF(($AH$70-$AH$71)>=AI161,0,$C$11) -> 1000 | AL161: =IF(($AH$70-$AH$71)>=AI161,$C$11,0) -> 0 | AM161: =$C$12 -> 1000 | AN161: =$AF$53 -> 230 | AO161: 825.5043645 | AP161: 216174.469 | AQ161: 0 | AR161: =$C$13+SUM($AK$97:AK161,$AM$97:AM161) -> 170000 | AS161: =SUM($AN$97:AN161,$AO$97:AO161,$AQ$97:AQ161) -> 46174.46901 | AT161: =SUM($AN$97:AN161,$AQ$97:AQ161) -> 14950 | AU161: =(AS161/(AVERAGE($AR$97:AR161))/AI161*12) -> 0.08041997506 | AV161: =(AT161/(AVERAGE($AR$97:AR161))/AI161*12) -> 0.02603773585
AC162: 1955 | AD162: 63 let a 4 měsíce | AI162: 66 | AJ162: =AP161+AK162+AM162+AN162 -> 218404.469 | AK162: 1000 | AL162: 0 | AM162: 1000 | AN162: 230 | AO162: =AJ162*$AF$51/12 -> 837.2171312 | AP162: 219241.6861 | AQ162: =$AF$54 -> 0 | AR162: =$C$13+SUM($AK$97:AK162,$AM$97:AM162) -> 172000 | AS162: =SUM($AN$97:AN162,$AO$97:AO162,$AQ$97:AQ162) -> 47241.68614 | AT162: =SUM($AN$97:AN162,$AQ$97:AQ162) -> 15180 | AU162: =(AS162/(AVERAGE($AR$97:AR162))/AI162*12) -> 0.08027474281 | AV162: =(AT162/(AVERAGE($AR$97:AR162))/AI162*12) -> 0.02579439252
AC163: 1954 | AD163: 63 let a 2 měsíce | AI163: 67 | AJ163: 221471.6861 | AK163: 1000 | AL163: 0 | AM163: 1000 | AN163: 230 | AO163: 848.9747969 | AP163: 222320.6609 | AQ163: 0 | AR163: =$C$13+SUM($AK$97:AK163,$AM$97:AM163) -> 174000 | AS163: =SUM($AN$97:AN163,$AO$97:AO163,$AQ$97:AQ163) -> 48320.66094 | AT163: =SUM($AN$97:AN163,$AQ$97:AQ163) -> 15410 | AU163: =(AS163/(AVERAGE($AR$97:AR163))/AI163*12) -> 0.08013376607 | AV163: =(AT163/(AVERAGE($AR$97:AR163))/AI163*12) -> 0.02555555556
AC164: 1953 | AD164: 63 let | AI164: 68 | AJ164: 224550.6609 | AK164: 1000 | AL164: 0 | AM164: 1000 | AN164: 230 | AO164: 860.7775336 | AP164: 225411.4385 | AQ164: 0 | AR164: =$C$13+SUM($AK$97:AK164,$AM$97:AM164) -> 176000 | AS164: =SUM($AN$97:AN164,$AO$97:AO164,$AQ$97:AQ164) -> 49411.43847 | AT164: =SUM($AN$97:AN164,$AQ$97:AQ164) -> 15640 | AU164: =(AS164/(AVERAGE($AR$97:AR164))/AI164*12) -> 0.07999693223 | AV164: =(AT164/(AVERAGE($AR$97:AR164))/AI164*12) -> 0.02532110092
AC165: 1952 | AD165: 62 let a 10 měsíců | AI165: 69 | AJ165: 227641.4385 | AK165: 1000 | AL165: 0 | AM165: 1000 | AN165: 230 | AO165: 872.6255141 | AP165: =AJ165+AO165 -> 228514.064 | AQ165: 0 | AR165: =$C$13+SUM($AK$97:AK165,$AM$97:AM165) -> 178000 | AS165: =SUM($AN$97:AN165,$AO$97:AO165,$AQ$97:AQ165) -> 50514.06399 | AT165: =SUM($AN$97:AN165,$AQ$97:AQ165) -> 15870 | AU165: =(AS165/(AVERAGE($AR$97:AR165))/AI165*12) -> 0.07986413279 | AV165: =(AT165/(AVERAGE($AR$97:AR165))/AI165*12) -> 0.02509090909
AC166: 1951 | AD166: 62 let a 8 měsíců | AI166: 70 | AJ166: 230744.064 | AK166: 1000 | AL166: 0 | AM166: 1000 | AN166: 230 | AO166: 884.518912 | AP166: 231628.5829 | AQ166: 0 | AR166: =$C$13+SUM($AK$97:AK166,$AM$97:AM166) -> 180000 | AS166: =SUM($AN$97:AN166,$AO$97:AO166,$AQ$97:AQ166) -> 51628.5829 | AT166: =SUM($AN$97:AN166,$AQ$97:AQ166) -> 16100 | AU166: =(AS166/(AVERAGE($AR$97:AR166))/AI166*12) -> 0.07973526317 | AV166: =(AT166/(AVERAGE($AR$97:AR166))/AI166*12) -> 0.02486486486
AC167: 1950 | AD167: 62 let a 6 měsíců | AI167: 71 | AJ167: 233858.5829 | AK167: 1000 | AL167: 0 | AM167: 1000 | AN167: 230 | AO167: 896.4579011 | AP167: 234755.0408 | AQ167: 0 | AR167: =$C$13+SUM($AK$97:AK167,$AM$97:AM167) -> 182000 | AS167: =SUM($AN$97:AN167,$AO$97:AO167,$AQ$97:AQ167) -> 52755.0408 | AT167: =SUM($AN$97:AN167,$AQ$97:AQ167) -> 16330 | AU167: =(AS167/(AVERAGE($AR$97:AR167))/AI167*12) -> 0.07961022254 | AV167: =(AT167/(AVERAGE($AR$97:AR167))/AI167*12) -> 0.02464285714
AC168: 1949 | AD168: 62 let a 4 měsíce | AI168: 72 | AJ168: 236985.0408 | AK168: 1000 | AL168: 0 | AM168: 1000 | AN168: 230 | AO168: 908.4426564 | AP168: 237893.4835 | AQ168: 0 | AR168: =$C$13+SUM($AK$97:AK168,$AM$97:AM168) -> 184000 | AS168: =SUM($AN$97:AN168,$AO$97:AO168,$AQ$97:AQ168) -> 53893.48346 | AT168: =SUM($AN$97:AN168,$AQ$97:AQ168) -> 16560 | AU168: =(AS168/(AVERAGE($AR$97:AR168))/AI168*12) -> 0.07948891365 | AV168: =(AT168/(AVERAGE($AR$97:AR168))/AI168*12) -> 0.02442477876
AC169: 1948 | AD169: 62 let a 2 měsíce | AI169: 73 | AJ169: 240123.4835 | AK169: 1000 | AL169: 0 | AM169: 1000 | AN169: 230 | AO169: 920.4733533 | AP169: 241043.9568 | AQ169: 0 | AR169: =$C$13+SUM($AK$97:AK169,$AM$97:AM169) -> 186000 | AS169: =SUM($AN$97:AN169,$AO$97:AO169,$AQ$97:AQ169) -> 55043.95681 | AT169: =SUM($AN$97:AN169,$AQ$97:AQ169) -> 16790 | AU169: =(AS169/(AVERAGE($AR$97:AR169))/AI169*12) -> 0.0793712427 | AV169: =(AT169/(AVERAGE($AR$97:AR169))/AI169*12) -> 0.02421052632
AC170: 1947 | AD170: 62 let | AI170: 74 | AJ170: 243273.9568 | AK170: 1000 | AL170: 0 | AM170: 1000 | AN170: 230 | AO170: 932.5501678 | AP170: 244206.507 | AQ170: 0 | AR170: =$C$13+SUM($AK$97:AK170,$AM$97:AM170) -> 188000 | AS170: =SUM($AN$97:AN170,$AO$97:AO170,$AQ$97:AQ170) -> 56206.50698 | AT170: =SUM($AN$97:AN170,$AQ$97:AQ170) -> 17020 | AU170: =(AS170/(AVERAGE($AR$97:AR170))/AI170*12) -> 0.07925711912 | AV170: =(AT170/(AVERAGE($AR$97:AR170))/AI170*12) -> 0.024
AC171: 1946 | AD171: 61 let a 10 měsíců | AI171: 75 | AJ171: 246436.507 | AK171: 1000 | AL171: 0 | AM171: 1000 | AN171: 230 | AO171: 944.6732767 | AP171: 247381.1803 | AQ171: 0 | AR171: =$C$13+SUM($AK$97:AK171,$AM$97:AM171) -> 190000 | AS171: =SUM($AN$97:AN171,$AO$97:AO171,$AQ$97:AQ171) -> 57381.18025 | AT171: =SUM($AN$97:AN171,$AQ$97:AQ171) -> 17250 | AU171: =(AS171/(AVERAGE($AR$97:AR171))/AI171*12) -> 0.07914645552 | AV171: =(AT171/(AVERAGE($AR$97:AR171))/AI171*12) -> 0.02379310345
AC172: 1945 | AD172: 61 let a 8 měsíců | AI172: 76 | AJ172: 249611.1803 | AK172: 1000 | AL172: 0 | AM172: 1000 | AN172: 230 | AO172: 956.8428576 | AP172: 250568.0231 | AQ172: 0 | AR172: =$C$13+SUM($AK$97:AK172,$AM$97:AM172) -> 192000 | AS172: =SUM($AN$97:AN172,$AO$97:AO172,$AQ$97:AQ172) -> 58568.02311 | AT172: =SUM($AN$97:AN172,$AQ$97:AQ172) -> 17480 | AU172: =(AS172/(AVERAGE($AR$97:AR172))/AI172*12) -> 0.07903916749 | AV172: =(AT172/(AVERAGE($AR$97:AR172))/AI172*12) -> 0.02358974359
AC173: 1944 | AD173: 61 let a 6 měsíců | AI173: 77 | AJ173: 252798.0231 | AK173: 1000 | AL173: 0 | AM173: 1000 | AN173: 230 | AO173: 969.0590886 | AP173: 253767.0822 | AQ173: 0 | AR173: =$C$13+SUM($AK$97:AK173,$AM$97:AM173) -> 194000 | AS173: =SUM($AN$97:AN173,$AO$97:AO173,$AQ$97:AQ173) -> 59767.0822 | AT173: =SUM($AN$97:AN173,$AQ$97:AQ173) -> 17710 | AU173: =(AS173/(AVERAGE($AR$97:AR173))/AI173*12) -> 0.0789351735 | AV173: =(AT173/(AVERAGE($AR$97:AR173))/AI173*12) -> 0.02338983051
AC174: 1943 | AD174: 61 let a 4 měsíce | AI174: 78 | AJ174: 255997.0822 | AK174: 1000 | AL174: 0 | AM174: 1000 | AN174: 230 | AO174: 981.3221484 | AP174: 256978.4043 | AQ174: 0 | AR174: =$C$13+SUM($AK$97:AK174,$AM$97:AM174) -> 196000 | AS174: =SUM($AN$97:AN174,$AO$97:AO174,$AQ$97:AQ174) -> 60978.40435 | AT174: =SUM($AN$97:AN174,$AQ$97:AQ174) -> 17940 | AU174: =(AS174/(AVERAGE($AR$97:AR174))/AI174*12) -> 0.07883439476 | AV174: =(AT174/(AVERAGE($AR$97:AR174))/AI174*12) -> 0.02319327731
AC175: 1942 | AD175: 61 let a 2 měsíce | AI175: 79 | AJ175: 259208.4043 | AK175: 1000 | AL175: 0 | AM175: 1000 | AN175: 230 | AO175: 993.6322167 | AP175: 260202.0366 | AQ175: 0 | AR175: =$C$13+SUM($AK$97:AK175,$AM$97:AM175) -> 198000 | AS175: =SUM($AN$97:AN175,$AO$97:AO175,$AQ$97:AQ175) -> 62202.03657 | AT175: =SUM($AN$97:AN175,$AQ$97:AQ175) -> 18170 | AU175: =(AS175/(AVERAGE($AR$97:AR175))/AI175*12) -> 0.07873675515 | AV175: =(AT175/(AVERAGE($AR$97:AR175))/AI175*12) -> 0.023
AC176: 1941 | AD176: 61 let | AI176: 80 | AJ176: 262432.0366 | AK176: 1000 | AL176: 0 | AM176: 1000 | AN176: 230 | AO176: 1005.989474 | AP176: 263438.026 | AQ176: 0 | AR176: =$C$13+SUM($AK$97:AK176,$AM$97:AM176) -> 200000 | AS176: =SUM($AN$97:AN176,$AO$97:AO176,$AQ$97:AQ176) -> 63438.02604 | AT176: =SUM($AN$97:AN176,$AQ$97:AQ176) -> 18400 | AU176: =(AS176/(AVERAGE($AR$97:AR176))/AI176*12) -> 0.07864218104 | AV176: =(AT176/(AVERAGE($AR$97:AR176))/AI176*12) -> 0.02280991736
AC177: 1940 | AD177: 60 let a 10 měsíců | AI177: 81 | AJ177: 265668.026 | AK177: 1000 | AL177: 0 | AM177: 1000 | AN177: 230 | AO177: 1018.3941 | AP177: 266686.4201 | AQ177: 0 | AR177: =$C$13+SUM($AK$97:AK177,$AM$97:AM177) -> 202000 | AS177: =SUM($AN$97:AN177,$AO$97:AO177,$AQ$97:AQ177) -> 64686.42014 | AT177: =SUM($AN$97:AN177,$AQ$97:AQ177) -> 18630 | AU177: =(AS177/(AVERAGE($AR$97:AR177))/AI177*12) -> 0.07855060126 | AV177: =(AT177/(AVERAGE($AR$97:AR177))/AI177*12) -> 0.02262295082
AC178: 1939 | AD178: 60 let a 8 měsíců | AI178: 82 | AJ178: 268916.4201 | AK178: 1000 | AL178: 0 | AM178: 1000 | AN178: 230 | AO178: 1030.846277 | AP178: 269947.2664 | AQ178: 0 | AR178: =$C$13+SUM($AK$97:AK178,$AM$97:AM178) -> 204000 | AS178: =SUM($AN$97:AN178,$AO$97:AO178,$AQ$97:AQ178) -> 65947.26642 | AT178: =SUM($AN$97:AN178,$AQ$97:AQ178) -> 18860 | AU178: =(AS178/(AVERAGE($AR$97:AR178))/AI178*12) -> 0.07846194696 | AV178: =(AT178/(AVERAGE($AR$97:AR178))/AI178*12) -> 0.02243902439
AC179: 1938 | AD179: 60 let a 6 měsíců | AI179: 83 | AJ179: 272177.2664 | AK179: 1000 | AL179: 0 | AM179: 1000 | AN179: 230 | AO179: 1043.346188 | AP179: 273220.6126 | AQ179: 0 | AR179: =$C$13+SUM($AK$97:AK179,$AM$97:AM179) -> 206000 | AS179: =SUM($AN$97:AN179,$AO$97:AO179,$AQ$97:AQ179) -> 67220.6126 | AT179: =SUM($AN$97:AN179,$AQ$97:AQ179) -> 19090 | AU179: =(AS179/(AVERAGE($AR$97:AR179))/AI179*12) -> 0.0783761515 | AV179: =(AT179/(AVERAGE($AR$97:AR179))/AI179*12) -> 0.02225806452
AC180: 1937 | AD180: 60 let a 4 měsíce | AI180: 84 | AJ180: 275450.6126 | AK180: 1000 | AL180: 0 | AM180: 1000 | AN180: 230 | AO180: 1055.894015 | AP180: 276506.5066 | AQ180: 0 | AR180: =$C$13+SUM($AK$97:AK180,$AM$97:AM180) -> 208000 | AS180: =SUM($AN$97:AN180,$AO$97:AO180,$AQ$97:AQ180) -> 68506.50662 | AT180: =SUM($AN$97:AN180,$AQ$97:AQ180) -> 19320 | AU180: =(AS180/(AVERAGE($AR$97:AR180))/AI180*12) -> 0.07829315042 | AV180: =(AT180/(AVERAGE($AR$97:AR180))/AI180*12) -> 0.02208
AC181: 1936 | AD181: 60 let a 2 měsíce | AI181: 85 | AJ181: 278736.5066 | AK181: 1000 | AL181: 0 | AM181: 1000 | AN181: 230 | AO181: 1068.489942 | AP181: 279804.9966 | AQ181: 0 | AR181: =$C$13+SUM($AK$97:AK181,$AM$97:AM181) -> 210000 | AS181: =SUM($AN$97:AN181,$AO$97:AO181,$AQ$97:AQ181) -> 69804.99656 | AT181: =SUM($AN$97:AN181,$AQ$97:AQ181) -> 19550 | AU181: =(AS181/(AVERAGE($AR$97:AR181))/AI181*12) -> 0.0782128813 | AV181: =(AT181/(AVERAGE($AR$97:AR181))/AI181*12) -> 0.0219047619
AC182: 1935 | AD182: 60 let | AI182: 86 | AJ182: 282034.9966 | AK182: 1000 | AL182: 0 | AM182: 1000 | AN182: 230 | AO182: 1081.134153 | AP182: 283116.1307 | AQ182: 0 | AR182: =$C$13+SUM($AK$97:AK182,$AM$97:AM182) -> 212000 | AS182: =SUM($AN$97:AN182,$AO$97:AO182,$AQ$97:AQ182) -> 71116.13072 | AT182: =SUM($AN$97:AN182,$AQ$97:AQ182) -> 19780 | AU182: =(AS182/(AVERAGE($AR$97:AR182))/AI182*12) -> 0.0781352837 | AV182: =(AT182/(AVERAGE($AR$97:AR182))/AI182*12) -> 0.02173228346
AC183: 1934 | AD183: 60 let a 10 měsíců | AI183: 87 | AJ183: 285346.1307 | AK183: 1000 | AL183: 0 | AM183: 1000 | AN183: 230 | AO183: 1093.826834 | AP183: 286439.9575 | AQ183: 0 | AR183: =$C$13+SUM($AK$97:AK183,$AM$97:AM183) -> 214000 | AS183: =SUM($AN$97:AN183,$AO$97:AO183,$AQ$97:AQ183) -> 72439.95755 | AT183: =SUM($AN$97:AN183,$AQ$97:AQ183) -> 20010 | AU183: =(AS183/(AVERAGE($AR$97:AR183))/AI183*12) -> 0.07806029908 | AV183: =(AT183/(AVERAGE($AR$97:AR183))/AI183*12) -> 0.0215625
AC184: 1933 | AD184: 60 let a 8 měsíců | AI184: 88 | AJ184: 288669.9575 | AK184: 1000 | AL184: 0 | AM184: 1000 | AN184: 230 | AO184: 1106.568171 | AP184: 289776.5257 | AQ184: 0 | AR184: =$C$13+SUM($AK$97:AK184,$AM$97:AM184) -> 216000 | AS184: =SUM($AN$97:AN184,$AO$97:AO184,$AQ$97:AQ184) -> 73776.52572 | AT184: =SUM($AN$97:AN184,$AQ$97:AQ184) -> 20240 | AU184: =(AS184/(AVERAGE($AR$97:AR184))/AI184*12) -> 0.07798787074 | AV184: =(AT184/(AVERAGE($AR$97:AR184))/AI184*12) -> 0.02139534884
AC185: 1932 | AD185: 60 let a 6 měsíců | AI185: 89 | AJ185: 292006.5257 | AK185: 1000 | AL185: 0 | AM185: 1000 | AN185: 230 | AO185: 1119.358349 | AP185: 293125.8841 | AQ185: 0 | AR185: =$C$13+SUM($AK$97:AK185,$AM$97:AM185) -> 218000 | AS185: =SUM($AN$97:AN185,$AO$97:AO185,$AQ$97:AQ185) -> 75125.88407 | AT185: =SUM($AN$97:AN185,$AQ$97:AQ185) -> 20470 | AU185: =(AS185/(AVERAGE($AR$97:AR185))/AI185*12) -> 0.07791794372 | AV185: =(AT185/(AVERAGE($AR$97:AR185))/AI185*12) -> 0.02123076923
AC186: 1931 | AD186: 60 let a 4 měsíce | AI186: 90 | AJ186: 295355.8841 | AK186: 1000 | AL186: 0 | AM186: 1000 | AN186: 230 | AO186: 1132.197556 | AP186: 296488.0816 | AQ186: 0 | AR186: =$C$13+SUM($AK$97:AK186,$AM$97:AM186) -> 220000 | AS186: =SUM($AN$97:AN186,$AO$97:AO186,$AQ$97:AQ186) -> 76488.08162 | AT186: =SUM($AN$97:AN186,$AQ$97:AQ186) -> 20700 | AU186: =(AS186/(AVERAGE($AR$97:AR186))/AI186*12) -> 0.07785046476 | AV186: =(AT186/(AVERAGE($AR$97:AR186))/AI186*12) -> 0.02106870229
AC187: 1930 | AD187: 60 let a 2 měsíce | AI187: 91 | AJ187: 298718.0816 | AK187: 1000 | AL187: 0 | AM187: 1000 | AN187: 230 | AO187: 1145.08598 | AP187: 299863.1676 | AQ187: 0 | AR187: =$C$13+SUM($AK$97:AK187,$AM$97:AM187) -> 222000 | AS187: =SUM($AN$97:AN187,$AO$97:AO187,$AQ$97:AQ187) -> 77863.1676 | AT187: =SUM($AN$97:AN187,$AQ$97:AQ187) -> 20930 | AU187: =(AS187/(AVERAGE($AR$97:AR187))/AI187*12) -> 0.07778538222 | AV187: =(AT187/(AVERAGE($AR$97:AR187))/AI187*12) -> 0.02090909091
AC188: 1929 | AD188: 60 let | AI188: 92 | AJ188: 302093.1676 | AK188: 1000 | AL188: 0 | AM188: 1000 | AN188: 230 | AO188: 1158.023809 | AP188: 303251.1914 | AQ188: 0 | AR188: =$C$13+SUM($AK$97:AK188,$AM$97:AM188) -> 224000 | AS188: =SUM($AN$97:AN188,$AO$97:AO188,$AQ$97:AQ188) -> 79251.19141 | AT188: =SUM($AN$97:AN188,$AQ$97:AQ188) -> 21160 | AU188: =(AS188/(AVERAGE($AR$97:AR188))/AI188*12) -> 0.07772264604 | AV188: =(AT188/(AVERAGE($AR$97:AR188))/AI188*12) -> 0.0207518797
AI189: 93 | AJ189: 305481.1914 | AK189: 1000 | AL189: 0 | AM189: 1000 | AN189: 230 | AO189: 1171.011234 | AP189: 306652.2026 | AQ189: 0 | AR189: =$C$13+SUM($AK$97:AK189,$AM$97:AM189) -> 226000 | AS189: =SUM($AN$97:AN189,$AO$97:AO189,$AQ$97:AQ189) -> 80652.20265 | AT189: =SUM($AN$97:AN189,$AQ$97:AQ189) -> 21390 | AU189: =(AS189/(AVERAGE($AR$97:AR189))/AI189*12) -> 0.07766220765 | AV189: =(AT189/(AVERAGE($AR$97:AR189))/AI189*12) -> 0.02059701493
AI190: 94 | AJ190: 308882.2026 | AK190: 1000 | AL190: 0 | AM190: 1000 | AN190: 230 | AO190: 1184.048443 | AP190: 310066.2511 | AQ190: 0 | AR190: =$C$13+SUM($AK$97:AK190,$AM$97:AM190) -> 228000 | AS190: =SUM($AN$97:AN190,$AO$97:AO190,$AQ$97:AQ190) -> 82066.25109 | AT190: =SUM($AN$97:AN190,$AQ$97:AQ190) -> 21620 | AU190: =(AS190/(AVERAGE($AR$97:AR190))/AI190*12) -> 0.07760401994 | AV190: =(AT190/(AVERAGE($AR$97:AR190))/AI190*12) -> 0.02044444444
AI191: 95 | AJ191: 312296.2511 | AK191: 1000 | AL191: 0 | AM191: 1000 | AN191: 230 | AO191: 1197.135629 | AP191: 313493.3867 | AQ191: 0 | AR191: =$C$13+SUM($AK$97:AK191,$AM$97:AM191) -> 230000 | AS191: =SUM($AN$97:AN191,$AO$97:AO191,$AQ$97:AQ191) -> 83493.38672 | AT191: =SUM($AN$97:AN191,$AQ$97:AQ191) -> 21850 | AU191: =(AS191/(AVERAGE($AR$97:AR191))/AI191*12) -> 0.0775480372 | AV191: =(AT191/(AVERAGE($AR$97:AR191))/AI191*12) -> 0.02029411765
AI192: 96 | AJ192: 315723.3867 | AK192: 1000 | AL192: 0 | AM192: 1000 | AN192: 230 | AO192: 1210.272982 | AP192: 316933.6597 | AQ192: 0 | AR192: =$C$13+SUM($AK$97:AK192,$AM$97:AM192) -> 232000 | AS192: =SUM($AN$97:AN192,$AO$97:AO192,$AQ$97:AQ192) -> 84933.6597 | AT192: =SUM($AN$97:AN192,$AQ$97:AQ192) -> 22080 | AU192: =(AS192/(AVERAGE($AR$97:AR192))/AI192*12) -> 0.07749421506 | AV192: =(AT192/(AVERAGE($AR$97:AR192))/AI192*12) -> 0.0201459854
AI193: 97 | AJ193: 319163.6597 | AK193: 1000 | AL193: 0 | AM193: 1000 | AN193: 230 | AO193: 1223.460696 | AP193: 320387.1204 | AQ193: 0 | AR193: =$C$13+SUM($AK$97:AK193,$AM$97:AM193) -> 234000 | AS193: =SUM($AN$97:AN193,$AO$97:AO193,$AQ$97:AQ193) -> 86387.1204 | AT193: =SUM($AN$97:AN193,$AQ$97:AQ193) -> 22310 | AU193: =(AS193/(AVERAGE($AR$97:AR193))/AI193*12) -> 0.07744251044 | AV193: =(AT193/(AVERAGE($AR$97:AR193))/AI193*12) -> 0.02
AI194: 98 | AJ194: 322617.1204 | AK194: 1000 | AL194: 0 | AM194: 1000 | AN194: 230 | AO194: 1236.698962 | AP194: 323853.8194 | AQ194: 0 | AR194: =$C$13+SUM($AK$97:AK194,$AM$97:AM194) -> 236000 | AS194: =SUM($AN$97:AN194,$AO$97:AO194,$AQ$97:AQ194) -> 87853.81936 | AT194: =SUM($AN$97:AN194,$AQ$97:AQ194) -> 22540 | AU194: =(AS194/(AVERAGE($AR$97:AR194))/AI194*12) -> 0.07739288154 | AV194: =(AT194/(AVERAGE($AR$97:AR194))/AI194*12) -> 0.01985611511
AI195: 99 | AJ195: 326083.8194 | AK195: 1000 | AL195: 0 | AM195: 1000 | AN195: 230 | AO195: 1249.987974 | AP195: 327333.8073 | AQ195: 0 | AR195: =$C$13+SUM($AK$97:AK195,$AM$97:AM195) -> 238000 | AS195: =SUM($AN$97:AN195,$AO$97:AO195,$AQ$97:AQ195) -> 89333.80733 | AT195: =SUM($AN$97:AN195,$AQ$97:AQ195) -> 22770 | AU195: =(AS195/(AVERAGE($AR$97:AR195))/AI195*12) -> 0.07734528773 | AV195: =(AT195/(AVERAGE($AR$97:AR195))/AI195*12) -> 0.01971428571
AI196: 100 | AJ196: 329563.8073 | AK196: 1000 | AL196: 0 | AM196: 1000 | AN196: 230 | AO196: 1263.327928 | AP196: 330827.1353 | AQ196: 0 | AR196: =$C$13+SUM($AK$97:AK196,$AM$97:AM196) -> 240000 | AS196: =SUM($AN$97:AN196,$AO$97:AO196,$AQ$97:AQ196) -> 90827.13526 | AT196: =SUM($AN$97:AN196,$AQ$97:AQ196) -> 23000 | AU196: =(AS196/(AVERAGE($AR$97:AR196))/AI196*12) -> 0.07729968958 | AV196: =(AT196/(AVERAGE($AR$97:AR196))/AI196*12) -> 0.01957446809
AI197: 101 | AJ197: 333057.1353 | AK197: 1000 | AL197: 0 | AM197: 1000 | AN197: 230 | AO197: 1276.719019 | AP197: 334333.8543 | AQ197: 0 | AR197: =$C$13+SUM($AK$97:AK197,$AM$97:AM197) -> 242000 | AS197: =SUM($AN$97:AN197,$AO$97:AO197,$AQ$97:AQ197) -> 92333.85428 | AT197: =SUM($AN$97:AN197,$AQ$97:AQ197) -> 23230 | AU197: =(AS197/(AVERAGE($AR$97:AR197))/AI197*12) -> 0.07725604876 | AV197: =(AT197/(AVERAGE($AR$97:AR197))/AI197*12) -> 0.01943661972
AI198: 102 | AJ198: 336563.8543 | AK198: 1000 | AL198: 0 | AM198: 1000 | AN198: 230 | AO198: 1290.161441 | AP198: 337854.0157 | AQ198: 0 | AR198: =$C$13+SUM($AK$97:AK198,$AM$97:AM198) -> 244000 | AS198: =SUM($AN$97:AN198,$AO$97:AO198,$AQ$97:AQ198) -> 93854.01572 | AT198: =SUM($AN$97:AN198,$AQ$97:AQ198) -> 23460 | AU198: =(AS198/(AVERAGE($AR$97:AR198))/AI198*12) -> 0.07721432803 | AV198: =(AT198/(AVERAGE($AR$97:AR198))/AI198*12) -> 0.0193006993
AI199: 103 | AJ199: 340084.0157 | AK199: 1000 | AL199: 0 | AM199: 1000 | AN199: 230 | AO199: 1303.655394 | AP199: 341387.6711 | AQ199: 0 | AR199: =$C$13+SUM($AK$97:AK199,$AM$97:AM199) -> 246000 | AS199: =SUM($AN$97:AN199,$AO$97:AO199,$AQ$97:AQ199) -> 95387.67111 | AT199: =SUM($AN$97:AN199,$AQ$97:AQ199) -> 23690 | AU199: =(AS199/(AVERAGE($AR$97:AR199))/AI199*12) -> 0.07717449119 | AV199: =(AT199/(AVERAGE($AR$97:AR199))/AI199*12) -> 0.01916666667
AI200: 104 | AJ200: 343617.6711 | AK200: 1000 | AL200: 0 | AM200: 1000 | AN200: 230 | AO200: 1317.201073 | AP200: 344934.8722 | AQ200: 0 | AR200: =$C$13+SUM($AK$97:AK200,$AM$97:AM200) -> 248000 | AS200: =SUM($AN$97:AN200,$AO$97:AO200,$AQ$97:AQ200) -> 96934.87219 | AT200: =SUM($AN$97:AN200,$AQ$97:AQ200) -> 23920 | AU200: =(AS200/(AVERAGE($AR$97:AR200))/AI200*12) -> 0.07713650307 | AV200: =(AT200/(AVERAGE($AR$97:AR200))/AI200*12) -> 0.01903448276
AI201: 105 | AJ201: 347164.8722 | AK201: 1000 | AL201: 0 | AM201: 1000 | AN201: 230 | AO201: 1330.798677 | AP201: 348495.6709 | AQ201: 0 | AR201: =$C$13+SUM($AK$97:AK201,$AM$97:AM201) -> 250000 | AS201: =SUM($AN$97:AN201,$AO$97:AO201,$AQ$97:AQ201) -> 98495.67086 | AT201: =SUM($AN$97:AN201,$AQ$97:AQ201) -> 24150 | AU201: =(AS201/(AVERAGE($AR$97:AR201))/AI201*12) -> 0.07710032944 | AV201: =(AT201/(AVERAGE($AR$97:AR201))/AI201*12) -> 0.01890410959
AI202: 106 | AJ202: 350725.6709 | AK202: 1000 | AL202: 0 | AM202: 1000 | AN202: 230 | AO202: 1344.448405 | AP202: 352070.1193 | AQ202: 0 | AR202: =$C$13+SUM($AK$97:AK202,$AM$97:AM202) -> 252000 | AS202: =SUM($AN$97:AN202,$AO$97:AO202,$AQ$97:AQ202) -> 100070.1193 | AT202: =SUM($AN$97:AN202,$AQ$97:AQ202) -> 24380 | AU202: =(AS202/(AVERAGE($AR$97:AR202))/AI202*12) -> 0.07706593706 | AV202: =(AT202/(AVERAGE($AR$97:AR202))/AI202*12) -> 0.0187755102
AI203: 107 | AJ203: 354300.1193 | AK203: 1000 | AL203: 0 | AM203: 1000 | AN203: 230 | AO203: 1358.150457 | AP203: 355658.2697 | AQ203: 0 | AR203: =$C$13+SUM($AK$97:AK203,$AM$97:AM203) -> 254000 | AS203: =SUM($AN$97:AN203,$AO$97:AO203,$AQ$97:AQ203) -> 101658.2697 | AT203: =SUM($AN$97:AN203,$AQ$97:AQ203) -> 24610 | AU203: =(AS203/(AVERAGE($AR$97:AR203))/AI203*12) -> 0.07703329355 | AV203: =(AT203/(AVERAGE($AR$97:AR203))/AI203*12) -> 0.01864864865
AI204: 108 | AJ204: 357888.2697 | AK204: 1000 | AL204: 0 | AM204: 1000 | AN204: 230 | AO204: 1371.905034 | AP204: 359260.1748 | AQ204: 0 | AR204: =$C$13+SUM($AK$97:AK204,$AM$97:AM204) -> 256000 | AS204: =SUM($AN$97:AN204,$AO$97:AO204,$AQ$97:AQ204) -> 103260.1748 | AT204: =SUM($AN$97:AN204,$AQ$97:AQ204) -> 24840 | AU204: =(AS204/(AVERAGE($AR$97:AR204))/AI204*12) -> 0.07700236746 | AV204: =(AT204/(AVERAGE($AR$97:AR204))/AI204*12) -> 0.01852348993
AI205: 109 | AJ205: 361490.1748 | AK205: 1000 | AL205: 0 | AM205: 1000 | AN205: 230 | AO205: 1385.712337 | AP205: 362875.8871 | AQ205: 0 | AR205: =$C$13+SUM($AK$97:AK205,$AM$97:AM205) -> 258000 | AS205: =SUM($AN$97:AN205,$AO$97:AO205,$AQ$97:AQ205) -> 104875.8871 | AT205: =SUM($AN$97:AN205,$AQ$97:AQ205) -> 25070 | AU205: =(AS205/(AVERAGE($AR$97:AR205))/AI205*12) -> 0.07697312814 | AV205: =(AT205/(AVERAGE($AR$97:AR205))/AI205*12) -> 0.0184
AI206: 110 | AJ206: 365105.8871 | AK206: 1000 | AL206: 0 | AM206: 1000 | AN206: 230 | AO206: 1399.572567 | AP206: 366505.4597 | AQ206: 0 | AR206: =$C$13+SUM($AK$97:AK206,$AM$97:AM206) -> 260000 | AS206: =SUM($AN$97:AN206,$AO$97:AO206,$AQ$97:AQ206) -> 106505.4597 | AT206: =SUM($AN$97:AN206,$AQ$97:AQ206) -> 25300 | AU206: =(AS206/(AVERAGE($AR$97:AR206))/AI206*12) -> 0.07694554581 | AV206: =(AT206/(AVERAGE($AR$97:AR206))/AI206*12) -> 0.0182781457
AI207: 111 | AJ207: 368735.4597 | AK207: 1000 | AL207: 0 | AM207: 1000 | AN207: 230 | AO207: 1413.485929 | AP207: 370148.9456 | AQ207: 0 | AR207: =$C$13+SUM($AK$97:AK207,$AM$97:AM207) -> 262000 | AS207: =SUM($AN$97:AN207,$AO$97:AO207,$AQ$97:AQ207) -> 108148.9456 | AT207: =SUM($AN$97:AN207,$AQ$97:AQ207) -> 25530 | AU207: =(AS207/(AVERAGE($AR$97:AR207))/AI207*12) -> 0.07691959146 | AV207: =(AT207/(AVERAGE($AR$97:AR207))/AI207*12) -> 0.01815789474
AI208: 112 | AJ208: 372378.9456 | AK208: 1000 | AL208: 0 | AM208: 1000 | AN208: 230 | AO208: 1427.452625 | AP208: 373806.3982 | AQ208: 0 | AR208: =$C$13+SUM($AK$97:AK208,$AM$97:AM208) -> 264000 | AS208: =SUM($AN$97:AN208,$AO$97:AO208,$AQ$97:AQ208) -> 109806.3982 | AT208: =SUM($AN$97:AN208,$AQ$97:AQ208) -> 25760 | AU208: =(AS208/(AVERAGE($AR$97:AR208))/AI208*12) -> 0.07689523685 | AV208: =(AT208/(AVERAGE($AR$97:AR208))/AI208*12) -> 0.01803921569
AI209: 113 | AJ209: 376036.3982 | AK209: 1000 | AL209: 0 | AM209: 1000 | AN209: 230 | AO209: 1441.47286 | AP209: 377477.8711 | AQ209: 0 | AR209: =$C$13+SUM($AK$97:AK209,$AM$97:AM209) -> 266000 | AS209: =SUM($AN$97:AN209,$AO$97:AO209,$AQ$97:AQ209) -> 111477.8711 | AT209: =SUM($AN$97:AN209,$AQ$97:AQ209) -> 25990 | AU209: =(AS209/(AVERAGE($AR$97:AR209))/AI209*12) -> 0.07687245448 | AV209: =(AT209/(AVERAGE($AR$97:AR209))/AI209*12) -> 0.01792207792
AI210: 114 | AJ210: 379707.8711 | AK210: 1000 | AL210: 0 | AM210: 1000 | AN210: 230 | AO210: 1455.546839 | AP210: 381163.4179 | AQ210: 0 | AR210: =$C$13+SUM($AK$97:AK210,$AM$97:AM210) -> 268000 | AS210: =SUM($AN$97:AN210,$AO$97:AO210,$AQ$97:AQ210) -> 113163.4179 | AT210: =SUM($AN$97:AN210,$AQ$97:AQ210) -> 26220 | AU210: =(AS210/(AVERAGE($AR$97:AR210))/AI210*12) -> 0.0768512176 | AV210: =(AT210/(AVERAGE($AR$97:AR210))/AI210*12) -> 0.01780645161
AI211: 115 | AJ211: 383393.4179 | AK211: 1000 | AL211: 0 | AM211: 1000 | AN211: 230 | AO211: 1469.674769 | AP211: 384863.0927 | AQ211: 0 | AR211: =$C$13+SUM($AK$97:AK211,$AM$97:AM211) -> 270000 | AS211: =SUM($AN$97:AN211,$AO$97:AO211,$AQ$97:AQ211) -> 114863.0927 | AT211: =SUM($AN$97:AN211,$AQ$97:AQ211) -> 26450 | AU211: =(AS211/(AVERAGE($AR$97:AR211))/AI211*12) -> 0.07683150012 | AV211: =(AT211/(AVERAGE($AR$97:AR211))/AI211*12) -> 0.01769230769
AI212: 116 | AJ212: 387093.0927 | AK212: 1000 | AL212: 0 | AM212: 1000 | AN212: 230 | AO212: 1483.856855 | AP212: 388576.9495 | AQ212: 0 | AR212: =$C$13+SUM($AK$97:AK212,$AM$97:AM212) -> 272000 | AS212: =SUM($AN$97:AN212,$AO$97:AO212,$AQ$97:AQ212) -> 116576.9495 | AT212: =SUM($AN$97:AN212,$AQ$97:AQ212) -> 26680 | AU212: =(AS212/(AVERAGE($AR$97:AR212))/AI212*12) -> 0.07681327666 | AV212: =(AT212/(AVERAGE($AR$97:AR212))/AI212*12) -> 0.01757961783
AI213: 117 | AJ213: 390806.9495 | AK213: 1000 | AL213: 0 | AM213: 1000 | AN213: 230 | AO213: 1498.093307 | AP213: 392305.0428 | AQ213: 0 | AR213: =$C$13+SUM($AK$97:AK213,$AM$97:AM213) -> 274000 | AS213: =SUM($AN$97:AN213,$AO$97:AO213,$AQ$97:AQ213) -> 118305.0428 | AT213: =SUM($AN$97:AN213,$AQ$97:AQ213) -> 26910 | AU213: =(AS213/(AVERAGE($AR$97:AR213))/AI213*12) -> 0.07679652246 | AV213: =(AT213/(AVERAGE($AR$97:AR213))/AI213*12) -> 0.01746835443
AI214: 118 | AJ214: 394535.0428 | AK214: 1000 | AL214: 0 | AM214: 1000 | AN214: 230 | AO214: 1512.384331 | AP214: 396047.4272 | AQ214: 0 | AR214: =$C$13+SUM($AK$97:AK214,$AM$97:AM214) -> 276000 | AS214: =SUM($AN$97:AN214,$AO$97:AO214,$AQ$97:AQ214) -> 120047.4272 | AT214: =SUM($AN$97:AN214,$AQ$97:AQ214) -> 27140 | AU214: =(AS214/(AVERAGE($AR$97:AR214))/AI214*12) -> 0.07678121342 | AV214: =(AT214/(AVERAGE($AR$97:AR214))/AI214*12) -> 0.01735849057
AI215: 119 | AJ215: 398277.4272 | AK215: 1000 | AL215: 0 | AM215: 1000 | AN215: 230 | AO215: 1526.730138 | AP215: 399804.1573 | AQ215: 0 | AR215: =$C$13+SUM($AK$97:AK215,$AM$97:AM215) -> 278000 | AS215: =SUM($AN$97:AN215,$AO$97:AO215,$AQ$97:AQ215) -> 121804.1573 | AT215: =SUM($AN$97:AN215,$AQ$97:AQ215) -> 27370 | AU215: =(AS215/(AVERAGE($AR$97:AR215))/AI215*12) -> 0.07676732604 | AV215: =(AT215/(AVERAGE($AR$97:AR215))/AI215*12) -> 0.01725
AI216: 120 | AJ216: 402034.1573 | AK216: 1000 | AL216: 0 | AM216: 1000 | AN216: 230 | AO216: 1541.130936 | AP216: 403575.2883 | AQ216: 0 | AR216: =$C$13+SUM($AK$97:AK216,$AM$97:AM216) -> 280000 | AS216: =SUM($AN$97:AN216,$AO$97:AO216,$AQ$97:AQ216) -> 123575.2883 | AT216: =SUM($AN$97:AN216,$AQ$97:AQ216) -> 27600 | AU216: =(AS216/(AVERAGE($AR$97:AR216))/AI216*12) -> 0.07675483742 | AV216: =(AT216/(AVERAGE($AR$97:AR216))/AI216*12) -> 0.01714285714
AI217: 121 | AJ217: 405805.2883 | AK217: 1000 | AL217: 0 | AM217: 1000 | AN217: 230 | AO217: 1555.586938 | AP217: 407360.8752 | AQ217: 0 | AR217: =$C$13+SUM($AK$97:AK217,$AM$97:AM217) -> 282000 | AS217: =SUM($AN$97:AN217,$AO$97:AO217,$AQ$97:AQ217) -> 125360.8752 | AT217: =SUM($AN$97:AN217,$AQ$97:AQ217) -> 27830 | AU217: =(AS217/(AVERAGE($AR$97:AR217))/AI217*12) -> 0.07674372525 | AV217: =(AT217/(AVERAGE($AR$97:AR217))/AI217*12) -> 0.01703703704
AI218: 122 | AJ218: 409590.8752 | AK218: 1000 | AL218: 0 | AM218: 1000 | AN218: 230 | AO218: 1570.098355 | AP218: 411160.9735 | AQ218: 0 | AR218: =$C$13+SUM($AK$97:AK218,$AM$97:AM218) -> 284000 | AS218: =SUM($AN$97:AN218,$AO$97:AO218,$AQ$97:AQ218) -> 127160.9735 | AT218: =SUM($AN$97:AN218,$AQ$97:AQ218) -> 28060 | AU218: =(AS218/(AVERAGE($AR$97:AR218))/AI218*12) -> 0.07673396774 | AV218: =(AT218/(AVERAGE($AR$97:AR218))/AI218*12) -> 0.01693251534
AI219: 123 | AJ219: 413390.9735 | AK219: 1000 | AL219: 0 | AM219: 1000 | AN219: 230 | AO219: 1584.665399 | AP219: 414975.6389 | AQ219: 0 | AR219: =$C$13+SUM($AK$97:AK219,$AM$97:AM219) -> 286000 | AS219: =SUM($AN$97:AN219,$AO$97:AO219,$AQ$97:AQ219) -> 128975.6389 | AT219: =SUM($AN$97:AN219,$AQ$97:AQ219) -> 28290 | AU219: =(AS219/(AVERAGE($AR$97:AR219))/AI219*12) -> 0.07672554369 | AV219: =(AT219/(AVERAGE($AR$97:AR219))/AI219*12) -> 0.01682926829
AI220: 124 | AJ220: 417205.6389 | AK220: 1000 | AL220: 0 | AM220: 1000 | AN220: 230 | AO220: 1599.288283 | AP220: 418804.9272 | AQ220: 0 | AR220: =$C$13+SUM($AK$97:AK220,$AM$97:AM220) -> 288000 | AS220: =SUM($AN$97:AN220,$AO$97:AO220,$AQ$97:AQ220) -> 130804.9272 | AT220: =SUM($AN$97:AN220,$AQ$97:AQ220) -> 28520 | AU220: =(AS220/(AVERAGE($AR$97:AR220))/AI220*12) -> 0.07671843239 | AV220: =(AT220/(AVERAGE($AR$97:AR220))/AI220*12) -> 0.01672727273
AI221: 125 | AJ221: 421034.9272 | AK221: 1000 | AL221: 0 | AM221: 1000 | AN221: 230 | AO221: 1613.967221 | AP221: 422648.8944 | AQ221: 0 | AR221: =$C$13+SUM($AK$97:AK221,$AM$97:AM221) -> 290000 | AS221: =SUM($AN$97:AN221,$AO$97:AO221,$AQ$97:AQ221) -> 132648.8944 | AT221: =SUM($AN$97:AN221,$AQ$97:AQ221) -> 28750 | AU221: =(AS221/(AVERAGE($AR$97:AR221))/AI221*12) -> 0.07671261366 | AV221: =(AT221/(AVERAGE($AR$97:AR221))/AI221*12) -> 0.01662650602
... 875 more rows
